Workbook

Sheet Cover

Sheet Actual
A1: BSUoS Outturn
A3: Average BSUoS charge | B3: £/MWh | C3: £/MWh
A4: =P20 -> Sep-18 | B4: =P39 -> 4.432898632
A5: Past 12 months | B5: 2.405567674
A6: 2017/18 | B6: ='Error Stats'!L6 -> 2.31
X16: ='Monthly Summary Actual'!$Q21 -> 0 | Y16: ='Monthly Summary Actual'!$Q22 -> 0 | Z16: ='Monthly Summary Actual'!$Q23 -> 0
X18: ='Monthly Summary Actual'!$P21 -> 0 | Y18: ='Monthly Summary Actual'!$P22 -> 0 | Z18: ='Monthly Summary Actual'!$P23 -> 0 | AA18: ='Monthly Summary Actual'!$P24 -> 0 | AB18: ='Monthly Summary Actual'!$P25 -> 0
X19: ='Monthly Summary Actual'!$T21 -> 0 | Y19: ='Monthly Summary Actual'!$T22 -> 0 | Z19: ='Monthly Summary Actual'!$T23 -> 0 | AA19: ='Monthly Summary Actual'!$T24 -> 0 | AB19: ='Monthly Summary Actual'!$T25 -> 0
D20: Month | E20: ='Monthly Summary Actual'!$A2 -> Oct-17 | F20: ='Monthly Summary Actual'!$A3 -> Nov-17 | G20: ='Monthly Summary Actual'!A4 -> Dec-17 | H20: ='Monthly Summary Actual'!A5 -> Jan-18 | I20: ='Monthly Summary Actual'!A6 -> Feb-18 | J20: ='Monthly Summary Actual'!A7 -> Mar-18 | K20: ='Monthly Summary Actual'!A8 -> Apr-18 | L20: ='Monthly Summary Actual'!A9 -> May-18 | M20: ='Monthly Summary Actual'!A10 -> Jun-18 | N20: ='Monthly Summary Actual'!A11 -> Jul-18 | O20: ='Monthly Summary Actual'!A12 -> Aug-18 | P20: ='Monthly Summary Actual'!A13 -> Sep-18
D21: Energy Imbalance | E21: ='Monthly Summary Actual'!$B2 -> -2.842516968 | F21: ='Monthly Summary Actual'!$B3 -> -3.133263798 | G21: ='Monthly Summary Actual'!$B4 -> 5.112603244 | H21: ='Monthly Summary Actual'!$B5 -> -1.949725068 | I21: ='Monthly Summary Actual'!$B6 -> -3.012041097 | J21: ='Monthly Summary Actual'!$B7 -> 3.28843045 | K21: ='Monthly Summary Actual'!$B8 -> -5.678595773 | L21: ='Monthly Summary Actual'!$B9 -> -6.760679548 | M21: ='Monthly Summary Actual'!$B10 -> -2.810221268 | N21: ='Monthly Summary Actual'!$B11 -> -1.110751301 | O21: ='Monthly Summary Actual'!$B12 -> -3.902354275 | P21: ='Monthly Summary Actual'!$B13 -> -0.642132211 | X21: ='Monthly Summary Actual'!$U21 -> 0 | Y21: ='Monthly Summary Actual'!$U22 -> 0 | Z21: ='Monthly Summary Actual'!$U23 -> 0 | AA21: ='Monthly Summary Actual'!$U24 -> 0 | AB21: ='Monthly Summary Actual'!$U25 -> 0 | AC21: ='Monthly Summary Actual'!$U26 -> 0
D22: Operating Reserve | E22: ='Monthly Summary Actual'!$C2 -> 6.018816398 | F22: ='Monthly Summary Actual'!$C3 -> 6.146629905 | G22: ='Monthly Summary Actual'!$C4 -> 8.987521463 | H22: ='Monthly Summary Actual'!$C5 -> 8.619913881 | I22: ='Monthly Summary Actual'!$C6 -> 9.228118844 | J22: ='Monthly Summary Actual'!$C7 -> 15.91006067 | K22: ='Monthly Summary Actual'!$C8 -> 4.056805357 | L22: ='Monthly Summary Actual'!$C9 -> 4.384309523 | M22: ='Monthly Summary Actual'!$C10 -> 3.540148552 | N22: ='Monthly Summary Actual'!$C11 -> 4.788280494 | O22: ='Monthly Summary Actual'!$C12 -> 4.66708187 | P22: ='Monthly Summary Actual'!$C13 -> 5.578828882
D23: STOR | E23: ='Monthly Summary Actual'!$D2 -> 6.178008962 | F23: ='Monthly Summary Actual'!$D3 -> 8.940615847 | G23: ='Monthly Summary Actual'!$D4 -> 9.430998645 | H23: ='Monthly Summary Actual'!$D5 -> 9.421794756 | I23: ='Monthly Summary Actual'!$D6 -> 8.55305134 | J23: ='Monthly Summary Actual'!$D7 -> 8.098531184 | K23: ='Monthly Summary Actual'!$D8 -> 6.096036792 | L23: ='Monthly Summary Actual'!$D9 -> 7.038844709 | M23: ='Monthly Summary Actual'!$D10 -> 6.649184693 | N23: ='Monthly Summary Actual'!$D11 -> 7.367863841 | O23: ='Monthly Summary Actual'!$D12 -> 6.713354274 | P23: ='Monthly Summary Actual'!$D13 -> 5.690164449
D24: Constraints - E&W | E24: ='Monthly Summary Actual'!$E2 -> 9.958197188 | F24: ='Monthly Summary Actual'!$E3 -> 16.32295779 | G24: ='Monthly Summary Actual'!$E4 -> 9.768965953 | H24: ='Monthly Summary Actual'!$E5 -> 12.32096526 | I24: ='Monthly Summary Actual'!$E6 -> 4.021996155 | J24: ='Monthly Summary Actual'!$E7 -> 14.19561426 | K24: ='Monthly Summary Actual'!$E8 -> 9.107920387 | L24: ='Monthly Summary Actual'!$E9 -> 20.34603563 | M24: ='Monthly Summary Actual'!$E10 -> 33.33151617 | N24: ='Monthly Summary Actual'!$E11 -> 37.33388798 | O24: ='Monthly Summary Actual'!$E12 -> 32.28538328 | P24: ='Monthly Summary Actual'!$E13 -> 78.35859309
D25: Constraints - Cheviot | E25: ='Monthly Summary Actual'!$F2 -> 54.60265779 | F25: ='Monthly Summary Actual'!$F3 -> 15.53629598 | G25: ='Monthly Summary Actual'!$F4 -> 19.15118313 | H25: ='Monthly Summary Actual'!$F5 -> 11.94898274 | I25: ='Monthly Summary Actual'!$F6 -> 5.383852701 | J25: ='Monthly Summary Actual'!$F7 -> 2.305382085 | K25: ='Monthly Summary Actual'!$F8 -> 13.23123316 | L25: ='Monthly Summary Actual'!$F9 -> 1.45616127 | M25: ='Monthly Summary Actual'!$F10 -> 7.780194908 | N25: ='Monthly Summary Actual'!$F11 -> 1.390168163 | O25: ='Monthly Summary Actual'!$F12 -> 1.582099012 | P25: ='Monthly Summary Actual'!$F13 -> 18.17768928
D26: Constraints - Scotland | E26: ='Monthly Summary Actual'!$G2 -> 2.878566782 | F26: ='Monthly Summary Actual'!$G3 -> 7.144633289 | G26: ='Monthly Summary Actual'!$G4 -> 5.223834344 | H26: ='Monthly Summary Actual'!$G5 -> 5.396008767 | I26: ='Monthly Summary Actual'!$G6 -> 2.768240749 | J26: ='Monthly Summary Actual'!$G7 -> 1.440756399 | K26: ='Monthly Summary Actual'!$G8 -> 0.3588389631 | L26: ='Monthly Summary Actual'!$G9 -> 2.105893864 | M26: ='Monthly Summary Actual'!$G10 -> 6.258501603 | N26: ='Monthly Summary Actual'!$G11 -> 0.2337361441 | O26: ='Monthly Summary Actual'!$G12 -> 1.2863796 | P26: ='Monthly Summary Actual'!$G13 -> 4.068498612
D27: Constraints - AS | E27: ='Monthly Summary Actual'!$H2 -> 1.666545641 | F27: ='Monthly Summary Actual'!$H3 -> 2.700489268 | G27: ='Monthly Summary Actual'!$H4 -> 1.930289596 | H27: ='Monthly Summary Actual'!$H5 -> 0.4694887264 | I27: ='Monthly Summary Actual'!$H6 -> 0.3543655606 | J27: ='Monthly Summary Actual'!$H7 -> 3.691478862 | K27: ='Monthly Summary Actual'!$H8 -> 2.740013785 | L27: ='Monthly Summary Actual'!$H9 -> 0.9340882941 | M27: ='Monthly Summary Actual'!$H10 -> 3.770372235 | N27: ='Monthly Summary Actual'!$H11 -> 0.1932135837 | O27: ='Monthly Summary Actual'!$H12 -> 0.3395766641 | P27: ='Monthly Summary Actual'!$H13 -> 1.307313954
D28: Negative Reserve | E28: ='Monthly Summary Actual'!$I2 -> 0.7877157572 | F28: ='Monthly Summary Actual'!$I3 -> 0.6011300105 | G28: ='Monthly Summary Actual'!$I4 -> 0.09934702949 | H28: ='Monthly Summary Actual'!$I5 -> 0.8728323017 | I28: ='Monthly Summary Actual'!$I6 -> 0.09421270946 | J28: ='Monthly Summary Actual'!$I7 -> 0.4284472862 | K28: ='Monthly Summary Actual'!$I8 -> 0.4200337111 | L28: ='Monthly Summary Actual'!$I9 -> 2.057471895 | M28: ='Monthly Summary Actual'!$I10 -> 0.4077661289 | N28: ='Monthly Summary Actual'!$I11 -> 0.5725288452 | O28: ='Monthly Summary Actual'!$I12 -> 0.3958837945 | P28: ='Monthly Summary Actual'!$I13 -> 0.4184334081
D29: Fast Reserve | E29: ='Monthly Summary Actual'!$J2 -> 7.572502194 | F29: ='Monthly Summary Actual'!$J3 -> 6.997815743 | G29: ='Monthly Summary Actual'!$J4 -> 7.679601686 | H29: ='Monthly Summary Actual'!$J5 -> 8.095275845 | I29: ='Monthly Summary Actual'!$J6 -> 6.871321621 | J29: ='Monthly Summary Actual'!$J7 -> 7.849012085 | K29: ='Monthly Summary Actual'!$J8 -> 6.461642445 | L29: ='Monthly Summary Actual'!$J9 -> 6.469285509 | M29: ='Monthly Summary Actual'!$J10 -> 6.007894146 | N29: ='Monthly Summary Actual'!$J11 -> 7.555926175 | O29: ='Monthly Summary Actual'!$J12 -> 8.244163722 | P29: ='Monthly Summary Actual'!$J13 -> 6.990971019
D30: Response | E30: ='Monthly Summary Actual'!$K2 -> 11.44035473 | F30: ='Monthly Summary Actual'!$K3 -> 10.27943159 | G30: ='Monthly Summary Actual'!$K4 -> 11.39872494 | H30: ='Monthly Summary Actual'!$K5 -> 10.42150085 | I30: ='Monthly Summary Actual'!$K6 -> 9.314764346 | J30: ='Monthly Summary Actual'!$K7 -> 11.56686944 | K30: ='Monthly Summary Actual'!$K8 -> 11.01178477 | L30: ='Monthly Summary Actual'!$K9 -> 12.21229682 | M30: ='Monthly Summary Actual'!$K10 -> 11.46043661 | N30: ='Monthly Summary Actual'!$K11 -> 10.53168237 | O30: ='Monthly Summary Actual'!$K12 -> 10.74746024 | P30: ='Monthly Summary Actual'!$K13 -> 11.32012155
D31: Other Reserve | E31: ='Monthly Summary Actual'!$L2 -> 1.59051244 | F31: ='Monthly Summary Actual'!$L3 -> 1.19691699 | G31: ='Monthly Summary Actual'!$L4 -> 1.29142999 | H31: ='Monthly Summary Actual'!$L5 -> 1.56689246 | I31: ='Monthly Summary Actual'!$L6 -> 1.17264198 | J31: ='Monthly Summary Actual'!$L7 -> 1.07642294 | K31: ='Monthly Summary Actual'!$L8 -> 0.78711943 | L31: ='Monthly Summary Actual'!$L9 -> 0.9197058 | M31: ='Monthly Summary Actual'!$L10 -> 0.82597977 | N31: ='Monthly Summary Actual'!$L11 -> 1.15896295 | O31: ='Monthly Summary Actual'!$L12 -> 1.1584881 | P31: ='Monthly Summary Actual'!$L13 -> 1.05673805
D32: Reactive | E32: ='Monthly Summary Actual'!$M2 -> 6.273613719 | F32: ='Monthly Summary Actual'!$M3 -> 6.169308893 | G32: ='Monthly Summary Actual'!$M4 -> 6.709756463 | H32: ='Monthly Summary Actual'!$M5 -> 6.573886373 | I32: ='Monthly Summary Actual'!$M6 -> 5.654450053 | J32: ='Monthly Summary Actual'!$M7 -> 5.858231873 | K32: ='Monthly Summary Actual'!$M8 -> 6.46582811 | L32: ='Monthly Summary Actual'!$M9 -> 7.054301742 | M32: ='Monthly Summary Actual'!$M10 -> 7.36038081 | N32: ='Monthly Summary Actual'!$M11 -> 6.56190176 | O32: ='Monthly Summary Actual'!$M12 -> 6.696767338 | P32: ='Monthly Summary Actual'!$M13 -> 6.165980141
D33: Minor Components | E33: ='Monthly Summary Actual'!$N2 -> 3.3162248 | F33: ='Monthly Summary Actual'!$N3 -> 0.9200239865 | G33: ='Monthly Summary Actual'!$N4 -> 2.088839606 | H33: ='Monthly Summary Actual'!$N5 -> 1.83875352 | I33: ='Monthly Summary Actual'!$N6 -> 1.565104753 | J33: ='Monthly Summary Actual'!$N7 -> 1.217916476 | K33: ='Monthly Summary Actual'!$N8 -> 1.416913323 | L33: ='Monthly Summary Actual'!$N9 -> 1.045670644 | M33: ='Monthly Summary Actual'!$N10 -> 1.174760974 | N33: ='Monthly Summary Actual'!$N11 -> 1.202683079 | O33: ='Monthly Summary Actual'!$N12 -> 2.078673911 | P33: ='Monthly Summary Actual'!$N13 -> 1.413623981
D34: Black Start | E34: ='Monthly Summary Actual'!$O2 -> 4.566070888 | F34: ='Monthly Summary Actual'!$O3 -> 3.539920584 | G34: ='Monthly Summary Actual'!$O4 -> 4.494288897 | H34: ='Monthly Summary Actual'!$O5 -> 3.809301732 | I34: ='Monthly Summary Actual'!$O6 -> 3.35622808 | J34: ='Monthly Summary Actual'!$O7 -> 3.74831314 | K34: ='Monthly Summary Actual'!$O8 -> 3.36605017 | L34: ='Monthly Summary Actual'!$O9 -> 3.670413224 | M34: ='Monthly Summary Actual'!$O10 -> 3.23176055 | N34: ='Monthly Summary Actual'!$O11 -> 3.06142822 | O34: ='Monthly Summary Actual'!$O12 -> 3.574906769 | P34: ='Monthly Summary Actual'!$O13 -> 3.65337467
D35: Total BSUos | E35: ='Monthly Summary Actual'!$P2 -> 114.0072703 | F35: ='Monthly Summary Actual'!$P3 -> 83.36290608 | G35: ='Monthly Summary Actual'!$P4 -> 93.36738499 | H35: ='Monthly Summary Actual'!$P5 -> 79.40587215 | I35: ='Monthly Summary Actual'!$P6 -> 55.32630779 | J35: ='Monthly Summary Actual'!$P7 -> 80.67546714 | K35: ='Monthly Summary Actual'!$P8 -> 59.84162464 | L35: ='Monthly Summary Actual'!$P9 -> 62.93379938 | M35: ='Monthly Summary Actual'!$P10 -> 88.98867588 | N35: ='Monthly Summary Actual'!$P11 -> 80.8415123 | O35: ='Monthly Summary Actual'!$P12 -> 75.86786431 | P35: ='Monthly Summary Actual'!$P13 -> 143.5581989
D36: Estimated BSUos Vol (TWh) | E36: ='Monthly Summary Actual'!$Q2 -> 41.46052096 | F36: ='Monthly Summary Actual'!$Q3 -> 47.16417137 | G36: ='Monthly Summary Actual'!$Q4 -> 49.24352693 | H36: ='Monthly Summary Actual'!$Q5 -> 48.85290924 | I36: ='Monthly Summary Actual'!$Q6 -> 45.37605256 | J36: ='Monthly Summary Actual'!$Q7 -> 48.74975032 | K36: ='Monthly Summary Actual'!$Q8 -> 40.38570033 | L36: ='Monthly Summary Actual'!$Q9 -> 36.96006484 | M36: ='Monthly Summary Actual'!$Q10 -> 35.31246865 | N36: ='Monthly Summary Actual'!$Q11 -> 35.96236592 | O36: ='Monthly Summary Actual'!$Q12 -> 36.38645178 | P36: ='Monthly Summary Actual'!$Q13 -> 36.17642346
D37: Estimated Internal BSUos(£m) | E37: ='Monthly Summary Actual'!$R2 -> 13.96273973 | F37: ='Monthly Summary Actual'!$R3 -> 13.51232877 | G37: ='Monthly Summary Actual'!$R4 -> 13.96273973 | H37: ='Monthly Summary Actual'!$R5 -> 13.96273973 | I37: ='Monthly Summary Actual'!$R6 -> 12.61150685 | J37: ='Monthly Summary Actual'!$R7 -> 13.96273973 | K37: ='Monthly Summary Actual'!$R8 -> 15.57534247 | L37: ='Monthly Summary Actual'!$R9 -> 16.09452055 | M37: ='Monthly Summary Actual'!$R10 -> 15.57534247 | N37: ='Monthly Summary Actual'!$R11 -> 16.09452055 | O37: ='Monthly Summary Actual'!$R12 -> 16.09452055 | P37: ='Monthly Summary Actual'!$R13 -> 15.57534247
D38: Estimated NGET Profit/(Loss) | E38: ='Monthly Summary Actual'!$S2 -> 0.8493150685 | F38: ='Monthly Summary Actual'!$S3 -> 0.8219178082 | G38: ='Monthly Summary Actual'!$S4 -> 0.8493150685 | H38: ='Monthly Summary Actual'!$S5 -> 0.8493150685 | I38: ='Monthly Summary Actual'!$S6 -> 0.7671232877 | J38: ='Monthly Summary Actual'!$S7 -> 0.8493150685 | K38: ='Monthly Summary Actual'!$S8 -> 1.232876712 | L38: ='Monthly Summary Actual'!$S9 -> 1.273972603 | M38: ='Monthly Summary Actual'!$S10 -> 1.232876712 | N38: ='Monthly Summary Actual'!$S11 -> 1.273972603 | O38: ='Monthly Summary Actual'!$S12 -> 1.273972603 | P38: ='Monthly Summary Actual'!$S13 -> 1.232876712
D39: Estimated BSUoS Charge (£/MWh) | E39: =(E35+E38+E37)/E36 -> 3.107035853 | F39: =(F35+F38+F37)/F36 -> 2.07142731 | G39: 2.196825583 | H39: 1.92860422 | I39: 1.514123289 | J39: 1.958728431 | K39: 1.897945144 | L39: 2.172677263 | M39: 2.996020927 | N39: 2.730910577 | O39: 2.562392124 | P39: 4.432898632
D41: Year ahead forecast (£/MWh) | E41: 1.45 | F41: 1.89 | G41: 1.924784602 | H41: 1.74 | I41: 1.39 | J41: 1.958870517 | K41: 1.27 | L41: 1.742510243 | M41: 2.298898285 | N41: 2.486092019 | O41: 2.368699713 | P41: 1.80936353

Sheet Forecast
A1: BSUoS Forecast
A3: Average BSUoS charge | B3: £/MWh | C3: £/MWh
A4: =E42 -> Oct-18 | B4: =E58 -> 3.321932934
A5: 2018/19 | B5: 2.435858833
A6: 2019/20 | B6: 2.303734325
A7: Next 12 months | B7: 2.3250341
X38: ='Monthly Summary Actual'!$Q21 -> 0 | Y38: ='Monthly Summary Actual'!$Q22 -> 0 | Z38: ='Monthly Summary Actual'!$Q23 -> 0
X40: ='Monthly Summary Actual'!$P21 -> 0 | Y40: ='Monthly Summary Actual'!$P22 -> 0 | Z40: ='Monthly Summary Actual'!$P23 -> 0 | AA40: ='Monthly Summary Actual'!$P24 -> 0 | AB40: ='Monthly Summary Actual'!$P25 -> 0
D42: Month | E42: ='Monthly Summary Forecast'!$A2 -> Oct-18 | F42: ='Monthly Summary Forecast'!$A3 -> Nov-18 | G42: ='Monthly Summary Forecast'!A4 -> Dec-18 | H42: ='Monthly Summary Forecast'!A5 -> Jan-19 | I42: ='Monthly Summary Forecast'!A6 -> Feb-19 | J42: ='Monthly Summary Forecast'!A7 -> Mar-19 | K42: ='Monthly Summary Forecast'!A8 -> Apr-19 | L42: ='Monthly Summary Forecast'!A9 -> May-19 | M42: ='Monthly Summary Forecast'!A10 -> Jun-19 | N42: ='Monthly Summary Forecast'!A11 -> Jul-19 | O42: ='Monthly Summary Forecast'!A12 -> Aug-19 | P42: ='Monthly Summary Forecast'!A13 -> Sep-19 | Q42: ='Monthly Summary Forecast'!$A14 -> Oct-19 | R42: ='Monthly Summary Forecast'!$A15 -> Nov-19 | S42: ='Monthly Summary Forecast'!A16 -> Dec-19 | T42: ='Monthly Summary Forecast'!A17 -> Jan-20 | U42: ='Monthly Summary Forecast'!A18 -> Feb-20 | V42: ='Monthly Summary Forecast'!A19 -> Mar-20 | W42: ='Monthly Summary Forecast'!A20 -> Apr-20 | X42: ='Monthly Summary Forecast'!A21 -> May-20 | Y42: ='Monthly Summary Forecast'!A22 -> Jun-20 | Z42: ='Monthly Summary Forecast'!A23 -> Jul-20 | AA42: ='Monthly Summary Forecast'!A24 -> Aug-20 | AB42: ='Monthly Summary Forecast'!A25 -> Sep-20
D43: Energy Imbalance | E43: ='Monthly Summary Forecast'!$B2 -> 0.8840120602 | F43: ='Monthly Summary Forecast'!$B3 -> -1.50161 | G43: ='Monthly Summary Forecast'!$B4 -> -1.66084 | H43: ='Monthly Summary Forecast'!$B5 -> -0.87291 | I43: ='Monthly Summary Forecast'!$B6 -> 1.097639 | J43: ='Monthly Summary Forecast'!$B7 -> -1.88797 | K43: ='Monthly Summary Forecast'!$B8 -> -6.86193 | L43: ='Monthly Summary Forecast'!$B9 -> -4.87904 | M43: ='Monthly Summary Forecast'!$B10 -> -4.18636 | N43: ='Monthly Summary Forecast'!$B11 -> -3.47302 | O43: ='Monthly Summary Forecast'!$B12 -> -4.09887 | P43: ='Monthly Summary Forecast'!$B13 -> -2.29425 | Q43: ='Monthly Summary Forecast'!$B14 -> -1.4504 | R43: ='Monthly Summary Forecast'!$B15 -> -1.50161 | S43: ='Monthly Summary Forecast'!$B16 -> -1.66084 | T43: ='Monthly Summary Forecast'!$B17 -> -0.87291 | U43: ='Monthly Summary Forecast'!$B18 -> 1.036736742 | V43: ='Monthly Summary Forecast'!$B19 -> -1.966613075 | W43: ='Monthly Summary Forecast'!$B20 -> -6.86193 | X43: ='Monthly Summary Forecast'!$B21 -> -4.87904 | Y43: ='Monthly Summary Forecast'!$B22 -> -4.18636 | Z43: ='Monthly Summary Forecast'!$B23 -> -3.47302 | AA43: ='Monthly Summary Forecast'!$B24 -> -4.09887 | AB43: ='Monthly Summary Forecast'!$B25 -> -2.29425
D44: Operating Reserve | E44: ='Monthly Summary Forecast'!$C2 -> 6.134152397 | F44: ='Monthly Summary Forecast'!$C3 -> 12.06921782 | G44: ='Monthly Summary Forecast'!$C4 -> 11.7111909 | H44: ='Monthly Summary Forecast'!$C5 -> 9.784243093 | I44: ='Monthly Summary Forecast'!$C6 -> 12.79447421 | J44: ='Monthly Summary Forecast'!$C7 -> 13.06150212 | K44: ='Monthly Summary Forecast'!$C8 -> 8.240256406 | L44: ='Monthly Summary Forecast'!$C9 -> 8.930688654 | M44: ='Monthly Summary Forecast'!$C10 -> 5.822879521 | N44: ='Monthly Summary Forecast'!$C11 -> 6.967501368 | O44: ='Monthly Summary Forecast'!$C12 -> 8.151525632 | P44: ='Monthly Summary Forecast'!$C13 -> 14.07594364 | Q44: ='Monthly Summary Forecast'!$C14 -> 16.34633217 | R44: ='Monthly Summary Forecast'!$C15 -> 16.05215931 | S44: ='Monthly Summary Forecast'!$C16 -> 11.80086942 | T44: ='Monthly Summary Forecast'!$C17 -> 10.0496849 | U44: ='Monthly Summary Forecast'!$C18 -> 12.99519901 | V44: ='Monthly Summary Forecast'!$C19 -> 12.85049462 | W44: ='Monthly Summary Forecast'!$C20 -> 8.292958957 | X44: ='Monthly Summary Forecast'!$C21 -> 8.955818674 | Y44: ='Monthly Summary Forecast'!$C22 -> 5.833712861 | Z44: ='Monthly Summary Forecast'!$C23 -> 6.970418038 | AA44: ='Monthly Summary Forecast'!$C24 -> 8.247641882 | AB44: ='Monthly Summary Forecast'!$C25 -> 14.12836031
D45: STOR | E45: ='Monthly Summary Forecast'!$D2 -> 5.994831432 | F45: ='Monthly Summary Forecast'!$D3 -> 7.428685335 | G45: ='Monthly Summary Forecast'!$D4 -> 7.470250666 | H45: ='Monthly Summary Forecast'!$D5 -> 7.574538827 | I45: ='Monthly Summary Forecast'!$D6 -> 6.5184684 | J45: ='Monthly Summary Forecast'!$D7 -> 7.399366707 | K45: ='Monthly Summary Forecast'!$D8 -> 5.167662387 | L45: ='Monthly Summary Forecast'!$D9 -> 5.575822434 | M45: ='Monthly Summary Forecast'!$D10 -> 5.434767887 | N45: ='Monthly Summary Forecast'!$D11 -> 5.962998065 | O45: ='Monthly Summary Forecast'!$D12 -> 5.817931184 | P45: ='Monthly Summary Forecast'!$D13 -> 6.307976992 | Q45: ='Monthly Summary Forecast'!$D14 -> 6.226388327 | R45: ='Monthly Summary Forecast'!$D15 -> 7.428685335 | S45: ='Monthly Summary Forecast'!$D16 -> 7.470250666 | T45: ='Monthly Summary Forecast'!$D17 -> 7.574538827 | U45: ='Monthly Summary Forecast'!$D18 -> 6.5184684 | V45: ='Monthly Summary Forecast'!$D19 -> 7.567027998 | W45: ='Monthly Summary Forecast'!$D20 -> 5.167662387 | X45: ='Monthly Summary Forecast'!$D21 -> 5.575822434 | Y45: ='Monthly Summary Forecast'!$D22 -> 5.434767887 | Z45: ='Monthly Summary Forecast'!$D23 -> 5.962998065 | AA45: ='Monthly Summary Forecast'!$D24 -> 5.817931184 | AB45: ='Monthly Summary Forecast'!$D25 -> 6.307976992
D46: Constraints | E46: ='Monthly Summary Forecast'!$U2 -> 76.53594117 | F46: ='Monthly Summary Forecast'!$U3 -> 44.68611623 | G46: ='Monthly Summary Forecast'!$U4 -> 29.36978907 | H46: ='Monthly Summary Forecast'!$U5 -> 15.91867921 | I46: ='Monthly Summary Forecast'!$U6 -> 17.77968639 | J46: ='Monthly Summary Forecast'!$U7 -> 23.27348311 | K46: ='Monthly Summary Forecast'!$U8 -> 21.28731883 | L46: ='Monthly Summary Forecast'!$U9 -> 25.17411709 | M46: ='Monthly Summary Forecast'!$U10 -> 23.74014697 | N46: ='Monthly Summary Forecast'!$U11 -> 27.48787404 | O46: ='Monthly Summary Forecast'!$U12 -> 31.55902904 | P46: ='Monthly Summary Forecast'!$U13 -> 29.59897497 | Q46: ='Monthly Summary Forecast'!$U14 -> 28.56281804 | R46: ='Monthly Summary Forecast'!$U15 -> 30.495011 | S46: ='Monthly Summary Forecast'!$U16 -> 26.529983 | T46: ='Monthly Summary Forecast'!$U17 -> 19.936728 | U46: ='Monthly Summary Forecast'!$U18 -> 19.125504 | V46: ='Monthly Summary Forecast'!$U19 -> 19.455197 | W46: ='Monthly Summary Forecast'!$U20 -> 21.28731883 | X46: ='Monthly Summary Forecast'!$U21 -> 25.17411709 | Y46: ='Monthly Summary Forecast'!$U22 -> 23.74014697 | Z46: ='Monthly Summary Forecast'!$U23 -> 27.48787404 | AA46: ='Monthly Summary Forecast'!$U24 -> 31.55902904 | AB46: ='Monthly Summary Forecast'!$U25 -> 29.59897497
D47: Negative Reserve | E47: ='Monthly Summary Forecast'!$I2 -> 0.4739975229 | F47: ='Monthly Summary Forecast'!$I3 -> 0.5021293865 | G47: ='Monthly Summary Forecast'!$I4 -> 0.467609764 | H47: ='Monthly Summary Forecast'!$I5 -> 0.6438143638 | I47: ='Monthly Summary Forecast'!$I6 -> 0.1192310308 | J47: ='Monthly Summary Forecast'!$I7 -> 0.2231438847 | K47: ='Monthly Summary Forecast'!$I8 -> 0.404275131 | L47: ='Monthly Summary Forecast'!$I9 -> 0.8954865094 | M47: ='Monthly Summary Forecast'!$I10 -> 1.643863178 | N47: ='Monthly Summary Forecast'!$I11 -> 1.846568357 | O47: ='Monthly Summary Forecast'!$I12 -> 1.666469361 | P47: ='Monthly Summary Forecast'!$I13 -> 1.761269194 | Q47: ='Monthly Summary Forecast'!$I14 -> 1.210690085 | R47: ='Monthly Summary Forecast'!$I15 -> 0.5021293865 | S47: ='Monthly Summary Forecast'!$I16 -> 0.467609764 | T47: ='Monthly Summary Forecast'!$I17 -> 0.6438143638 | U47: ='Monthly Summary Forecast'!$I18 -> 0.1192310308 | V47: ='Monthly Summary Forecast'!$I19 -> 0.2231438847 | W47: ='Monthly Summary Forecast'!$I20 -> 0.404275131 | X47: ='Monthly Summary Forecast'!$I21 -> 0.8954865094 | Y47: ='Monthly Summary Forecast'!$I22 -> 1.643863178 | Z47: ='Monthly Summary Forecast'!$I23 -> 1.846568357 | AA47: ='Monthly Summary Forecast'!$I24 -> 1.666469361 | AB47: ='Monthly Summary Forecast'!$I25 -> 1.761269194
D48: Fast Reserve | E48: ='Monthly Summary Forecast'!$J2 -> 7.440165182 | F48: ='Monthly Summary Forecast'!$J3 -> 7.913092712 | G48: ='Monthly Summary Forecast'!$J4 -> 10.04094001 | H48: ='Monthly Summary Forecast'!$J5 -> 10.29715057 | I48: ='Monthly Summary Forecast'!$J6 -> 8.712608818 | J48: ='Monthly Summary Forecast'!$J7 -> 9.713440979 | K48: ='Monthly Summary Forecast'!$J8 -> 9.036835996 | L48: ='Monthly Summary Forecast'!$J9 -> 8.973187964 | M48: ='Monthly Summary Forecast'!$J10 -> 8.81344767 | N48: ='Monthly Summary Forecast'!$J11 -> 9.082911269 | O48: ='Monthly Summary Forecast'!$J12 -> 9.597955749 | P48: ='Monthly Summary Forecast'!$J13 -> 8.773887424 | Q48: ='Monthly Summary Forecast'!$J14 -> 9.101970386 | R48: ='Monthly Summary Forecast'!$J15 -> 9.388502548 | S48: ='Monthly Summary Forecast'!$J16 -> 10.04094001 | T48: ='Monthly Summary Forecast'!$J17 -> 10.29715057 | U48: ='Monthly Summary Forecast'!$J18 -> 8.712608818 | V48: ='Monthly Summary Forecast'!$J19 -> 9.852717215 | W48: ='Monthly Summary Forecast'!$J20 -> 9.036835996 | X48: ='Monthly Summary Forecast'!$J21 -> 8.973187964 | Y48: ='Monthly Summary Forecast'!$J22 -> 8.81344767 | Z48: ='Monthly Summary Forecast'!$J23 -> 9.082911269 | AA48: ='Monthly Summary Forecast'!$J24 -> 9.597955749 | AB48: ='Monthly Summary Forecast'!$J25 -> 8.773887424
D49: Response | E49: ='Monthly Summary Forecast'!$K2 -> 11.25450469 | F49: ='Monthly Summary Forecast'!$K3 -> 11.26125103 | G49: ='Monthly Summary Forecast'!$K4 -> 12.12146899 | H49: ='Monthly Summary Forecast'!$K5 -> 11.87242982 | I49: ='Monthly Summary Forecast'!$K6 -> 12.3105407 | J49: ='Monthly Summary Forecast'!$K7 -> 11.36668776 | K49: ='Monthly Summary Forecast'!$K8 -> 11.80912289 | L49: ='Monthly Summary Forecast'!$K9 -> 11.56918306 | M49: ='Monthly Summary Forecast'!$K10 -> 11.22325724 | N49: ='Monthly Summary Forecast'!$K11 -> 11.82832355 | O49: ='Monthly Summary Forecast'!$K12 -> 11.62279721 | P49: ='Monthly Summary Forecast'!$K13 -> 11.45979667 | Q49: ='Monthly Summary Forecast'!$K14 -> 11.74848183 | R49: ='Monthly Summary Forecast'!$K15 -> 11.26125103 | S49: ='Monthly Summary Forecast'!$K16 -> 11.4084414 | T49: ='Monthly Summary Forecast'!$K17 -> 11.1740516 | U49: ='Monthly Summary Forecast'!$K18 -> 11.07948663 | V49: ='Monthly Summary Forecast'!$K19 -> 11.59485645 | W49: ='Monthly Summary Forecast'!$K20 -> 11.80912289 | X49: ='Monthly Summary Forecast'!$K21 -> 12.58148658 | Y49: ='Monthly Summary Forecast'!$K22 -> 11.92471082 | Z49: ='Monthly Summary Forecast'!$K23 -> 12.56759378 | AA49: ='Monthly Summary Forecast'!$K24 -> 13.07564686 | AB49: ='Monthly Summary Forecast'!$K25 -> 11.29935952
D50: Other Reserve | E50: ='Monthly Summary Forecast'!$L2 -> 1.59051244 | F50: ='Monthly Summary Forecast'!$L3 -> 1.19691699 | G50: ='Monthly Summary Forecast'!$L4 -> 1.29142999 | H50: ='Monthly Summary Forecast'!$L5 -> 1.56689246 | I50: ='Monthly Summary Forecast'!$L6 -> 1.17264198 | J50: ='Monthly Summary Forecast'!$L7 -> 1.07642294 | K50: ='Monthly Summary Forecast'!$L8 -> 1.14423862 | L50: ='Monthly Summary Forecast'!$L9 -> 0.869565856 | M50: ='Monthly Summary Forecast'!$L10 -> 1.007946391 | N50: ='Monthly Summary Forecast'!$L11 -> 1.171890175 | O50: ='Monthly Summary Forecast'!$L12 -> 1.284052818 | P50: ='Monthly Summary Forecast'!$L13 -> 1.049152513 | Q50: ='Monthly Summary Forecast'!$L14 -> 0.886843321 | R50: ='Monthly Summary Forecast'!$L15 -> 0.916175573 | S50: ='Monthly Summary Forecast'!$L16 -> 0.882285583 | T50: ='Monthly Summary Forecast'!$L17 -> 0.851570155 | U50: ='Monthly Summary Forecast'!$L18 -> 0.920916997 | V50: ='Monthly Summary Forecast'!$L19 -> 1.042687849 | W50: ='Monthly Summary Forecast'!$L20 -> 1.14423862 | X50: ='Monthly Summary Forecast'!$L21 -> 0.869565856 | Y50: ='Monthly Summary Forecast'!$L22 -> 1.007946391 | Z50: ='Monthly Summary Forecast'!$L23 -> 1.171890175 | AA50: ='Monthly Summary Forecast'!$L24 -> 1.284052818 | AB50: ='Monthly Summary Forecast'!$L25 -> 1.049152513
D51: Reactive | E51: ='Monthly Summary Forecast'!$M2 -> 6.064290407 | F51: ='Monthly Summary Forecast'!$M3 -> 5.819559456 | G51: ='Monthly Summary Forecast'!$M4 -> 6.392731356 | H51: ='Monthly Summary Forecast'!$M5 -> 6.329059938 | I51: ='Monthly Summary Forecast'!$M6 -> 5.086122881 | J51: ='Monthly Summary Forecast'!$M7 -> 5.410541881 | K51: ='Monthly Summary Forecast'!$M8 -> 6.038171563 | L51: ='Monthly Summary Forecast'!$M9 -> 6.814015764 | M51: ='Monthly Summary Forecast'!$M10 -> 6.383657907 | N51: ='Monthly Summary Forecast'!$M11 -> 6.24820381 | O51: ='Monthly Summary Forecast'!$M12 -> 6.115690414 | P51: ='Monthly Summary Forecast'!$M13 -> 5.903843179 | Q51: ='Monthly Summary Forecast'!$M14 -> 6.064290407 | R51: ='Monthly Summary Forecast'!$M15 -> 5.819559456 | S51: ='Monthly Summary Forecast'!$M16 -> 6.392731356 | T51: ='Monthly Summary Forecast'!$M17 -> 6.329059938 | U51: ='Monthly Summary Forecast'!$M18 -> 5.086122881 | V51: ='Monthly Summary Forecast'!$M19 -> 5.410541881 | W51: ='Monthly Summary Forecast'!$M20 -> 6.038171563 | X51: ='Monthly Summary Forecast'!$M21 -> 6.814015764 | Y51: ='Monthly Summary Forecast'!$M22 -> 6.383657907 | Z51: ='Monthly Summary Forecast'!$M23 -> 6.24820381 | AA51: ='Monthly Summary Forecast'!$M24 -> 6.115690414 | AB51: ='Monthly Summary Forecast'!$M25 -> 5.903843179
D52: Minor Components | E52: ='Monthly Summary Forecast'!$N2 -> -1.232806722 | F52: ='Monthly Summary Forecast'!$N3 -> -1.098452042 | G52: ='Monthly Summary Forecast'!$N4 -> -0.2841069963 | H52: ='Monthly Summary Forecast'!$N5 -> -2.014285052 | I52: ='Monthly Summary Forecast'!$N6 -> 1.128311979 | J52: ='Monthly Summary Forecast'!$N7 -> -0.8369172103 | K52: ='Monthly Summary Forecast'!$N8 -> 1.839695 | L52: ='Monthly Summary Forecast'!$N9 -> 2.064174342 | M52: ='Monthly Summary Forecast'!$N10 -> 1.399141142 | N52: ='Monthly Summary Forecast'!$N11 -> 1.109641065 | O52: ='Monthly Summary Forecast'!$N12 -> 0.1412688306 | P52: ='Monthly Summary Forecast'!$N13 -> -0.2530733819 | Q52: ='Monthly Summary Forecast'!$N14 -> 0.8853786014 | R52: ='Monthly Summary Forecast'!$N15 -> -0.8006521155 | S52: ='Monthly Summary Forecast'!$N16 -> 0.03535889066 | T52: ='Monthly Summary Forecast'!$N17 -> -1.564404557 | U52: ='Monthly Summary Forecast'!$N18 -> 1.304996255 | V52: ='Monthly Summary Forecast'!$N19 -> -0.5624386337 | W52: ='Monthly Summary Forecast'!$N20 -> 3.01394728 | X52: ='Monthly Summary Forecast'!$N21 -> 2.96319145 | Y52: ='Monthly Summary Forecast'!$N22 -> 2.577322236 | Z52: ='Monthly Summary Forecast'!$N23 -> 2.561929697 | AA52: ='Monthly Summary Forecast'!$N24 -> 1.545159449 | AB52: ='Monthly Summary Forecast'!$N25 -> 1.071485672
D53: Black Start | E53: ='Monthly Summary Forecast'!$O2 -> 3.821917808 | F53: ='Monthly Summary Forecast'!$O3 -> 3.698630137 | G53: ='Monthly Summary Forecast'!$O4 -> 3.821917808 | H53: ='Monthly Summary Forecast'!$O5 -> 3.821917808 | I53: ='Monthly Summary Forecast'!$O6 -> 3.452054795 | J53: ='Monthly Summary Forecast'!$O7 -> 3.821917808 | K53: ='Monthly Summary Forecast'!$O8 -> 3.698630137 | L53: ='Monthly Summary Forecast'!$O9 -> 3.821917808 | M53: ='Monthly Summary Forecast'!$O10 -> 3.698630137 | N53: ='Monthly Summary Forecast'!$O11 -> 3.821917808 | O53: ='Monthly Summary Forecast'!$O12 -> 3.821917808 | P53: ='Monthly Summary Forecast'!$O13 -> 3.698630137 | Q53: ='Monthly Summary Forecast'!$O14 -> 3.821917808 | R53: ='Monthly Summary Forecast'!$O15 -> 3.698630137 | S53: ='Monthly Summary Forecast'!$O16 -> 3.821917808 | T53: ='Monthly Summary Forecast'!$O17 -> 3.821917808 | U53: ='Monthly Summary Forecast'!$O18 -> 3.452054795 | V53: ='Monthly Summary Forecast'!$O19 -> 3.821917808 | W53: ='Monthly Summary Forecast'!$O20 -> 3.698630137 | X53: ='Monthly Summary Forecast'!$O21 -> 3.821917808 | Y53: ='Monthly Summary Forecast'!$O22 -> 3.698630137 | Z53: ='Monthly Summary Forecast'!$O23 -> 3.821917808 | AA53: ='Monthly Summary Forecast'!$O24 -> 3.821917808 | AB53: ='Monthly Summary Forecast'!$O25 -> 3.698630137
D54: Total BSUos | E54: =SUM(E43:E53) -> 118.9615184 | F54: 91.97553705 | G54: 80.74238156 | H54: 64.92153104 | I54: 70.17178019 | J54: 72.62161998 | K54: 61.80427696 | L54: 69.80911948 | M54: 64.98137805 | N54: 72.05480951 | O54: 75.67976804 | P54: 80.08215134 | Q54: 83.40471098 | R54: 83.25984166 | S54: 77.1895479 | T54: 68.2412016 | U54: 70.35132556 | V54: 69.289533 | W54: 63.03123179 | X54: 71.74557013 | Y54: 66.87184606 | Z54: 74.24928503 | AA54: 78.63262456 | AB54: 81.29868991
D55: Esitmated BSUos Vol (TWh) | E55: ='Monthly Summary Forecast'!$Q2 -> 41.039363 | F55: ='Monthly Summary Forecast'!$Q3 -> 46.68507545 | G55: ='Monthly Summary Forecast'!$Q4 -> 48.74330882 | H55: ='Monthly Summary Forecast'!$Q5 -> 48.35665904 | I55: ='Monthly Summary Forecast'!$Q6 -> 44.91512043 | J55: ='Monthly Summary Forecast'!$Q7 -> 48.25454801 | K55: ='Monthly Summary Forecast'!$Q8 -> 35.27584128 | L55: ='Monthly Summary Forecast'!$Q9 -> 35.83799938 | M55: ='Monthly Summary Forecast'!$Q10 -> 33.07689983 | N55: ='Monthly Summary Forecast'!$Q11 -> 33.84858242 | O55: ='Monthly Summary Forecast'!$Q12 -> 33.57408573 | P55: ='Monthly Summary Forecast'!$Q13 -> 35.13914761 | Q55: ='Monthly Summary Forecast'!$Q14 -> 38.56711221 | R55: ='Monthly Summary Forecast'!$Q15 -> 43.87272151 | S55: ='Monthly Summary Forecast'!$Q16 -> 45.80696492 | T55: ='Monthly Summary Forecast'!$Q17 -> 45.44360729 | U55: ='Monthly Summary Forecast'!$Q18 -> 42.20939029 | V55: ='Monthly Summary Forecast'!$Q19 -> 45.34764753 | W55: ='Monthly Summary Forecast'!$Q20 -> 35.27584128 | X55: ='Monthly Summary Forecast'!$Q21 -> 35.83799938 | Y55: ='Monthly Summary Forecast'!$Q22 -> 33.07689983 | Z55: ='Monthly Summary Forecast'!$Q23 -> 33.84858242 | AA55: ='Monthly Summary Forecast'!$Q24 -> 33.57408573 | AB55: ='Monthly Summary Forecast'!$Q25 -> 35.13914761
D56: Estimated Internal BSUos(£m) | E56: ='Monthly Summary Forecast'!$R2 -> 16.09452055 | F56: ='Monthly Summary Forecast'!$R3 -> 15.57534247 | G56: ='Monthly Summary Forecast'!$R4 -> 16.09452055 | H56: ='Monthly Summary Forecast'!$R5 -> 16.09452055 | I56: ='Monthly Summary Forecast'!$R6 -> 14.5369863 | J56: ='Monthly Summary Forecast'!$R7 -> 16.09452055 | K56: ='Monthly Summary Forecast'!$R8 -> 15.61643836 | L56: ='Monthly Summary Forecast'!$R9 -> 16.1369863 | M56: ='Monthly Summary Forecast'!$R10 -> 15.61643836 | N56: ='Monthly Summary Forecast'!$R11 -> 16.1369863 | O56: ='Monthly Summary Forecast'!$R12 -> 16.1369863 | P56: ='Monthly Summary Forecast'!$R13 -> 15.61643836 | Q56: ='Monthly Summary Forecast'!$R14 -> 16.1369863 | R56: ='Monthly Summary Forecast'!$R15 -> 15.61643836 | S56: ='Monthly Summary Forecast'!$R16 -> 16.1369863 | T56: ='Monthly Summary Forecast'!$R17 -> 16.1369863 | U56: ='Monthly Summary Forecast'!$R18 -> 14.57534247 | V56: ='Monthly Summary Forecast'!$R19 -> 16.1369863 | W56: ='Monthly Summary Forecast'!$R20 -> 15.61643836 | X56: ='Monthly Summary Forecast'!$R21 -> 16.1369863 | Y56: ='Monthly Summary Forecast'!$R22 -> 15.61643836 | Z56: ='Monthly Summary Forecast'!$R23 -> 16.1369863 | AA56: ='Monthly Summary Forecast'!$R24 -> 16.1369863 | AB56: ='Monthly Summary Forecast'!$R25 -> 15.61643836
D57: Esitmated NGET Profit/(Loss) | E57: ='Monthly Summary Forecast'!$S2 -> 1.273972603 | F57: ='Monthly Summary Forecast'!$S3 -> 1.232876712 | G57: ='Monthly Summary Forecast'!$S4 -> 1.273972603 | H57: ='Monthly Summary Forecast'!$S5 -> 1.273972603 | I57: ='Monthly Summary Forecast'!$S6 -> 1.150684932 | J57: ='Monthly Summary Forecast'!$S7 -> 1.273972603 | K57: ='Monthly Summary Forecast'!$S8 -> 0.9863013699 | L57: ='Monthly Summary Forecast'!$S9 -> 1.019178082 | M57: ='Monthly Summary Forecast'!$S10 -> 0.9863013699 | N57: ='Monthly Summary Forecast'!$S11 -> 1.019178082 | O57: ='Monthly Summary Forecast'!$S12 -> 1.019178082 | P57: ='Monthly Summary Forecast'!$S13 -> 0.9863013699 | Q57: ='Monthly Summary Forecast'!$S14 -> 1.019178082 | R57: ='Monthly Summary Forecast'!$S15 -> 0.9863013699 | S57: ='Monthly Summary Forecast'!$S16 -> 1.019178082 | T57: ='Monthly Summary Forecast'!$S17 -> 1.019178082 | U57: ='Monthly Summary Forecast'!$S18 -> 0.9205479452 | V57: ='Monthly Summary Forecast'!$S19 -> 1.019178082 | W57: ='Monthly Summary Forecast'!$S20 -> 0.9863013699 | X57: ='Monthly Summary Forecast'!$S21 -> 1.019178082 | Y57: ='Monthly Summary Forecast'!$S22 -> 0.9863013699 | Z57: ='Monthly Summary Forecast'!$S23 -> 1.019178082 | AA57: ='Monthly Summary Forecast'!$S24 -> 1.019178082 | AB57: ='Monthly Summary Forecast'!$S25 -> 0.9863013699
D58: Esitimated BSUoS Charge (£/MWh) | E58: =(E54+E56+E57)/E55 -> 3.321932934 | F58: 2.330161303 | G58: 2.012807031 | H58: 1.701730968 | I58: 1.911593481 | J58: 1.86490428 | K58: 2.222683112 | L58: 2.426622171 | M58: 2.466498317 | N58: 2.635589662 | O58: 2.76510679 | P58: 2.751486523 | Q58: 2.607425591 | R58: 2.276188437 | S58: 2.059636836 | T58: 1.87919426 | U58: 2.033841649 | V58: 1.906288465 | W58: 2.257464844 | X58: 2.480655618 | Y58: 2.523652041 | Z58: 2.700421786 | AA58: 2.853057257 | AB58: 2.786107128
D64: High Error Band (£/MWh) | E64: 3.823314425 | F64: 2.821868399 | G64: 2.508083097 | H64: 2.168942032 | I64: 2.444176429 | J64: 2.438613848 | K64: 2.692532035 | L64: 2.971485021 | M64: 3.11308979 | N64: 3.207185426 | O64: 3.436742812 | P64: 3.449709145 | Q64: 3.315236153 | R64: 3.088590403 | S64: 2.987462284 | T64: 2.876182009 | U64: 3.008287685 | V64: 2.74786427 | W64: 3.099040648 | X64: 3.322231423 | Y64: 3.365227846 | Z64: 3.541997591 | AA64: 3.694633062 | AB64: 3.627682933
D65: Low Error Band (£/MWh) | E65: 2.820551444 | F65: 1.838454206 | G65: 1.517530965 | H65: 1.234519904 | I65: 1.379010533 | J65: 1.291194712 | K65: 1.75283419 | L65: 1.881759322 | M65: 1.819906844 | N65: 2.063993897 | O65: 2.093470768 | P65: 2.053263901 | Q65: 1.89961503 | R65: 1.46378647 | S65: 1.131811388 | T65: 0.882206511 | U65: 1.059395614 | V65: 1.06471266 | W65: 1.415889039 | X65: 1.639079814 | Y65: 1.682076237 | Z65: 1.858845982 | AA65: 2.011481452 | AB65: 1.944531323

Sheet Accuracy
A1: BSUoS Volatility and Forecast Accuracy

Sheet Forecast Data For Import
A1: Month | B1: ='Monthly Summary Forecast'!$A2 -> Oct-18 | C1: ='Monthly Summary Forecast'!$A3 -> Nov-18 | D1: ='Monthly Summary Forecast'!A4 -> Dec-18 | E1: ='Monthly Summary Forecast'!A5 -> Jan-19 | F1: ='Monthly Summary Forecast'!A6 -> Feb-19 | G1: ='Monthly Summary Forecast'!A7 -> Mar-19 | H1: ='Monthly Summary Forecast'!A8 -> Apr-19 | I1: ='Monthly Summary Forecast'!A9 -> May-19 | J1: ='Monthly Summary Forecast'!A10 -> Jun-19 | K1: ='Monthly Summary Forecast'!A11 -> Jul-19 | L1: ='Monthly Summary Forecast'!A12 -> Aug-19 | M1: ='Monthly Summary Forecast'!A13 -> Sep-19 | N1: ='Monthly Summary Forecast'!$A14 -> Oct-19 | O1: ='Monthly Summary Forecast'!$A15 -> Nov-19 | P1: ='Monthly Summary Forecast'!A16 -> Dec-19 | Q1: ='Monthly Summary Forecast'!A17 -> Jan-20 | R1: ='Monthly Summary Forecast'!A18 -> Feb-20 | S1: ='Monthly Summary Forecast'!A19 -> Mar-20 | T1: ='Monthly Summary Forecast'!A20 -> Apr-20 | U1: ='Monthly Summary Forecast'!A21 -> May-20 | V1: ='Monthly Summary Forecast'!A22 -> Jun-20 | W1: ='Monthly Summary Forecast'!A23 -> Jul-20 | X1: ='Monthly Summary Forecast'!A24 -> Aug-20 | Y1: ='Monthly Summary Forecast'!A25 -> Sep-20
A2: Energy Imbalance | B2: ='Monthly Summary Forecast'!$B2 -> 0.8840120602 | C2: ='Monthly Summary Forecast'!$B3 -> -1.50161 | D2: ='Monthly Summary Forecast'!$B4 -> -1.66084 | E2: ='Monthly Summary Forecast'!$B5 -> -0.87291 | F2: ='Monthly Summary Forecast'!$B6 -> 1.097639 | G2: ='Monthly Summary Forecast'!$B7 -> -1.88797 | H2: ='Monthly Summary Forecast'!$B8 -> -6.86193 | I2: ='Monthly Summary Forecast'!$B9 -> -4.87904 | J2: ='Monthly Summary Forecast'!$B10 -> -4.18636 | K2: ='Monthly Summary Forecast'!$B11 -> -3.47302 | L2: ='Monthly Summary Forecast'!$B12 -> -4.09887 | M2: ='Monthly Summary Forecast'!$B13 -> -2.29425 | N2: ='Monthly Summary Forecast'!$B14 -> -1.4504 | O2: ='Monthly Summary Forecast'!$B15 -> -1.50161 | P2: ='Monthly Summary Forecast'!$B16 -> -1.66084 | Q2: ='Monthly Summary Forecast'!$B17 -> -0.87291 | R2: ='Monthly Summary Forecast'!$B18 -> 1.036736742 | S2: ='Monthly Summary Forecast'!$B19 -> -1.966613075 | T2: ='Monthly Summary Forecast'!$B20 -> -6.86193 | U2: ='Monthly Summary Forecast'!$B21 -> -4.87904 | V2: ='Monthly Summary Forecast'!$B22 -> -4.18636 | W2: ='Monthly Summary Forecast'!$B23 -> -3.47302 | X2: ='Monthly Summary Forecast'!$B24 -> -4.09887 | Y2: ='Monthly Summary Forecast'!$B25 -> -2.29425
A3: Operating Reserve | B3: ='Monthly Summary Forecast'!$C2 -> 6.134152397 | C3: ='Monthly Summary Forecast'!$C3 -> 12.06921782 | D3: ='Monthly Summary Forecast'!$C4 -> 11.7111909 | E3: ='Monthly Summary Forecast'!$C5 -> 9.784243093 | F3: ='Monthly Summary Forecast'!$C6 -> 12.79447421 | G3: ='Monthly Summary Forecast'!$C7 -> 13.06150212 | H3: ='Monthly Summary Forecast'!$C8 -> 8.240256406 | I3: ='Monthly Summary Forecast'!$C9 -> 8.930688654 | J3: ='Monthly Summary Forecast'!$C10 -> 5.822879521 | K3: ='Monthly Summary Forecast'!$C11 -> 6.967501368 | L3: ='Monthly Summary Forecast'!$C12 -> 8.151525632 | M3: ='Monthly Summary Forecast'!$C13 -> 14.07594364 | N3: ='Monthly Summary Forecast'!$C14 -> 16.34633217 | O3: ='Monthly Summary Forecast'!$C15 -> 16.05215931 | P3: ='Monthly Summary Forecast'!$C16 -> 11.80086942 | Q3: ='Monthly Summary Forecast'!$C17 -> 10.0496849 | R3: ='Monthly Summary Forecast'!$C18 -> 12.99519901 | S3: ='Monthly Summary Forecast'!$C19 -> 12.85049462 | T3: ='Monthly Summary Forecast'!$C20 -> 8.292958957 | U3: ='Monthly Summary Forecast'!$C21 -> 8.955818674 | V3: ='Monthly Summary Forecast'!$C22 -> 5.833712861 | W3: ='Monthly Summary Forecast'!$C23 -> 6.970418038 | X3: ='Monthly Summary Forecast'!$C24 -> 8.247641882 | Y3: ='Monthly Summary Forecast'!$C25 -> 14.12836031
A4: STOR | B4: ='Monthly Summary Forecast'!$D2 -> 5.994831432 | C4: ='Monthly Summary Forecast'!$D3 -> 7.428685335 | D4: ='Monthly Summary Forecast'!$D4 -> 7.470250666 | E4: ='Monthly Summary Forecast'!$D5 -> 7.574538827 | F4: ='Monthly Summary Forecast'!$D6 -> 6.5184684 | G4: ='Monthly Summary Forecast'!$D7 -> 7.399366707 | H4: ='Monthly Summary Forecast'!$D8 -> 5.167662387 | I4: ='Monthly Summary Forecast'!$D9 -> 5.575822434 | J4: ='Monthly Summary Forecast'!$D10 -> 5.434767887 | K4: ='Monthly Summary Forecast'!$D11 -> 5.962998065 | L4: ='Monthly Summary Forecast'!$D12 -> 5.817931184 | M4: ='Monthly Summary Forecast'!$D13 -> 6.307976992 | N4: ='Monthly Summary Forecast'!$D14 -> 6.226388327 | O4: ='Monthly Summary Forecast'!$D15 -> 7.428685335 | P4: ='Monthly Summary Forecast'!$D16 -> 7.470250666 | Q4: ='Monthly Summary Forecast'!$D17 -> 7.574538827 | R4: ='Monthly Summary Forecast'!$D18 -> 6.5184684 | S4: ='Monthly Summary Forecast'!$D19 -> 7.567027998 | T4: ='Monthly Summary Forecast'!$D20 -> 5.167662387 | U4: ='Monthly Summary Forecast'!$D21 -> 5.575822434 | V4: ='Monthly Summary Forecast'!$D22 -> 5.434767887 | W4: ='Monthly Summary Forecast'!$D23 -> 5.962998065 | X4: ='Monthly Summary Forecast'!$D24 -> 5.817931184 | Y4: ='Monthly Summary Forecast'!$D25 -> 6.307976992
A5: Constraints | B5: ='Monthly Summary Forecast'!$U2 -> 76.53594117 | C5: ='Monthly Summary Forecast'!$U3 -> 44.68611623 | D5: ='Monthly Summary Forecast'!$U4 -> 29.36978907 | E5: ='Monthly Summary Forecast'!$U5 -> 15.91867921 | F5: ='Monthly Summary Forecast'!$U6 -> 17.77968639 | G5: ='Monthly Summary Forecast'!$U7 -> 23.27348311 | H5: ='Monthly Summary Forecast'!$U8 -> 21.28731883 | I5: ='Monthly Summary Forecast'!$U9 -> 25.17411709 | J5: ='Monthly Summary Forecast'!$U10 -> 23.74014697 | K5: ='Monthly Summary Forecast'!$U11 -> 27.48787404 | L5: ='Monthly Summary Forecast'!$U12 -> 31.55902904 | M5: ='Monthly Summary Forecast'!$U13 -> 29.59897497 | N5: ='Monthly Summary Forecast'!$U14 -> 28.56281804 | O5: ='Monthly Summary Forecast'!$U15 -> 30.495011 | P5: ='Monthly Summary Forecast'!$U16 -> 26.529983 | Q5: ='Monthly Summary Forecast'!$U17 -> 19.936728 | R5: ='Monthly Summary Forecast'!$U18 -> 19.125504 | S5: ='Monthly Summary Forecast'!$U19 -> 19.455197 | T5: ='Monthly Summary Forecast'!$U20 -> 21.28731883 | U5: ='Monthly Summary Forecast'!$U21 -> 25.17411709 | V5: ='Monthly Summary Forecast'!$U22 -> 23.74014697 | W5: ='Monthly Summary Forecast'!$U23 -> 27.48787404 | X5: ='Monthly Summary Forecast'!$U24 -> 31.55902904 | Y5: ='Monthly Summary Forecast'!$U25 -> 29.59897497
A6: Negative Reserve | B6: ='Monthly Summary Forecast'!$I2 -> 0.4739975229 | C6: ='Monthly Summary Forecast'!$I3 -> 0.5021293865 | D6: ='Monthly Summary Forecast'!$I4 -> 0.467609764 | E6: ='Monthly Summary Forecast'!$I5 -> 0.6438143638 | F6: ='Monthly Summary Forecast'!$I6 -> 0.1192310308 | G6: ='Monthly Summary Forecast'!$I7 -> 0.2231438847 | H6: ='Monthly Summary Forecast'!$I8 -> 0.404275131 | I6: ='Monthly Summary Forecast'!$I9 -> 0.8954865094 | J6: ='Monthly Summary Forecast'!$I10 -> 1.643863178 | K6: ='Monthly Summary Forecast'!$I11 -> 1.846568357 | L6: ='Monthly Summary Forecast'!$I12 -> 1.666469361 | M6: ='Monthly Summary Forecast'!$I13 -> 1.761269194 | N6: ='Monthly Summary Forecast'!$I14 -> 1.210690085 | O6: ='Monthly Summary Forecast'!$I15 -> 0.5021293865 | P6: ='Monthly Summary Forecast'!$I16 -> 0.467609764 | Q6: ='Monthly Summary Forecast'!$I17 -> 0.6438143638 | R6: ='Monthly Summary Forecast'!$I18 -> 0.1192310308 | S6: ='Monthly Summary Forecast'!$I19 -> 0.2231438847 | T6: ='Monthly Summary Forecast'!$I20 -> 0.404275131 | U6: ='Monthly Summary Forecast'!$I21 -> 0.8954865094 | V6: ='Monthly Summary Forecast'!$I22 -> 1.643863178 | W6: ='Monthly Summary Forecast'!$I23 -> 1.846568357 | X6: ='Monthly Summary Forecast'!$I24 -> 1.666469361 | Y6: ='Monthly Summary Forecast'!$I25 -> 1.761269194
A7: Fast Reserve | B7: ='Monthly Summary Forecast'!$J2 -> 7.440165182 | C7: ='Monthly Summary Forecast'!$J3 -> 7.913092712 | D7: ='Monthly Summary Forecast'!$J4 -> 10.04094001 | E7: ='Monthly Summary Forecast'!$J5 -> 10.29715057 | F7: ='Monthly Summary Forecast'!$J6 -> 8.712608818 | G7: ='Monthly Summary Forecast'!$J7 -> 9.713440979 | H7: ='Monthly Summary Forecast'!$J8 -> 9.036835996 | I7: ='Monthly Summary Forecast'!$J9 -> 8.973187964 | J7: ='Monthly Summary Forecast'!$J10 -> 8.81344767 | K7: ='Monthly Summary Forecast'!$J11 -> 9.082911269 | L7: ='Monthly Summary Forecast'!$J12 -> 9.597955749 | M7: ='Monthly Summary Forecast'!$J13 -> 8.773887424 | N7: ='Monthly Summary Forecast'!$J14 -> 9.101970386 | O7: ='Monthly Summary Forecast'!$J15 -> 9.388502548 | P7: ='Monthly Summary Forecast'!$J16 -> 10.04094001 | Q7: ='Monthly Summary Forecast'!$J17 -> 10.29715057 | R7: ='Monthly Summary Forecast'!$J18 -> 8.712608818 | S7: ='Monthly Summary Forecast'!$J19 -> 9.852717215 | T7: ='Monthly Summary Forecast'!$J20 -> 9.036835996 | U7: ='Monthly Summary Forecast'!$J21 -> 8.973187964 | V7: ='Monthly Summary Forecast'!$J22 -> 8.81344767 | W7: ='Monthly Summary Forecast'!$J23 -> 9.082911269 | X7: ='Monthly Summary Forecast'!$J24 -> 9.597955749 | Y7: ='Monthly Summary Forecast'!$J25 -> 8.773887424
A8: Response | B8: ='Monthly Summary Forecast'!$K2 -> 11.25450469 | C8: ='Monthly Summary Forecast'!$K3 -> 11.26125103 | D8: ='Monthly Summary Forecast'!$K4 -> 12.12146899 | E8: ='Monthly Summary Forecast'!$K5 -> 11.87242982 | F8: ='Monthly Summary Forecast'!$K6 -> 12.3105407 | G8: ='Monthly Summary Forecast'!$K7 -> 11.36668776 | H8: ='Monthly Summary Forecast'!$K8 -> 11.80912289 | I8: ='Monthly Summary Forecast'!$K9 -> 11.56918306 | J8: ='Monthly Summary Forecast'!$K10 -> 11.22325724 | K8: ='Monthly Summary Forecast'!$K11 -> 11.82832355 | L8: ='Monthly Summary Forecast'!$K12 -> 11.62279721 | M8: ='Monthly Summary Forecast'!$K13 -> 11.45979667 | N8: ='Monthly Summary Forecast'!$K14 -> 11.74848183 | O8: ='Monthly Summary Forecast'!$K15 -> 11.26125103 | P8: ='Monthly Summary Forecast'!$K4 -> 12.12146899 | Q8: ='Monthly Summary Forecast'!$K17 -> 11.1740516 | R8: ='Monthly Summary Forecast'!$K18 -> 11.07948663 | S8: ='Monthly Summary Forecast'!$K19 -> 11.59485645 | T8: ='Monthly Summary Forecast'!$K20 -> 11.80912289 | U8: ='Monthly Summary Forecast'!$K21 -> 12.58148658 | V8: ='Monthly Summary Forecast'!$K22 -> 11.92471082 | W8: ='Monthly Summary Forecast'!$K23 -> 12.56759378 | X8: ='Monthly Summary Forecast'!$K24 -> 13.07564686 | Y8: ='Monthly Summary Forecast'!$K25 -> 11.29935952
A9: Other Reserve | B9: ='Monthly Summary Forecast'!$L2 -> 1.59051244 | C9: ='Monthly Summary Forecast'!$L3 -> 1.19691699 | D9: ='Monthly Summary Forecast'!$L4 -> 1.29142999 | E9: ='Monthly Summary Forecast'!$L5 -> 1.56689246 | F9: ='Monthly Summary Forecast'!$L6 -> 1.17264198 | G9: ='Monthly Summary Forecast'!$L7 -> 1.07642294 | H9: ='Monthly Summary Forecast'!$L8 -> 1.14423862 | I9: ='Monthly Summary Forecast'!$L9 -> 0.869565856 | J9: ='Monthly Summary Forecast'!$L10 -> 1.007946391 | K9: ='Monthly Summary Forecast'!$L11 -> 1.171890175 | L9: ='Monthly Summary Forecast'!$L12 -> 1.284052818 | M9: ='Monthly Summary Forecast'!$L13 -> 1.049152513 | N9: ='Monthly Summary Forecast'!$L14 -> 0.886843321 | O9: ='Monthly Summary Forecast'!$L15 -> 0.916175573 | P9: ='Monthly Summary Forecast'!$L4 -> 1.29142999 | Q9: ='Monthly Summary Forecast'!$L17 -> 0.851570155 | R9: ='Monthly Summary Forecast'!$L18 -> 0.920916997 | S9: ='Monthly Summary Forecast'!$L19 -> 1.042687849 | T9: ='Monthly Summary Forecast'!$L20 -> 1.14423862 | U9: ='Monthly Summary Forecast'!$L21 -> 0.869565856 | V9: ='Monthly Summary Forecast'!$L22 -> 1.007946391 | W9: ='Monthly Summary Forecast'!$L23 -> 1.171890175 | X9: ='Monthly Summary Forecast'!$L24 -> 1.284052818 | Y9: ='Monthly Summary Forecast'!$L25 -> 1.049152513
A10: Reactive | B10: ='Monthly Summary Forecast'!$M2 -> 6.064290407 | C10: ='Monthly Summary Forecast'!$M3 -> 5.819559456 | D10: ='Monthly Summary Forecast'!$M4 -> 6.392731356 | E10: ='Monthly Summary Forecast'!$M5 -> 6.329059938 | F10: ='Monthly Summary Forecast'!$M6 -> 5.086122881 | G10: ='Monthly Summary Forecast'!$M7 -> 5.410541881 | H10: ='Monthly Summary Forecast'!$M8 -> 6.038171563 | I10: ='Monthly Summary Forecast'!$M9 -> 6.814015764 | J10: ='Monthly Summary Forecast'!$M10 -> 6.383657907 | K10: ='Monthly Summary Forecast'!$M11 -> 6.24820381 | L10: ='Monthly Summary Forecast'!$M12 -> 6.115690414 | M10: ='Monthly Summary Forecast'!$M13 -> 5.903843179 | N10: ='Monthly Summary Forecast'!$M14 -> 6.064290407 | O10: ='Monthly Summary Forecast'!$M15 -> 5.819559456 | P10: ='Monthly Summary Forecast'!$M4 -> 6.392731356 | Q10: ='Monthly Summary Forecast'!$M17 -> 6.329059938 | R10: ='Monthly Summary Forecast'!$M18 -> 5.086122881 | S10: ='Monthly Summary Forecast'!$M19 -> 5.410541881 | T10: ='Monthly Summary Forecast'!$M20 -> 6.038171563 | U10: ='Monthly Summary Forecast'!$M21 -> 6.814015764 | V10: ='Monthly Summary Forecast'!$M22 -> 6.383657907 | W10: ='Monthly Summary Forecast'!$M23 -> 6.24820381 | X10: ='Monthly Summary Forecast'!$M24 -> 6.115690414 | Y10: ='Monthly Summary Forecast'!$M25 -> 5.903843179
A11: Minor Components | B11: ='Monthly Summary Forecast'!$N2 -> -1.232806722 | C11: ='Monthly Summary Forecast'!$N3 -> -1.098452042 | D11: ='Monthly Summary Forecast'!$N4 -> -0.2841069963 | E11: ='Monthly Summary Forecast'!$N5 -> -2.014285052 | F11: ='Monthly Summary Forecast'!$N6 -> 1.128311979 | G11: ='Monthly Summary Forecast'!$N7 -> -0.8369172103 | H11: ='Monthly Summary Forecast'!$N8 -> 1.839695 | I11: ='Monthly Summary Forecast'!$N9 -> 2.064174342 | J11: ='Monthly Summary Forecast'!$N10 -> 1.399141142 | K11: ='Monthly Summary Forecast'!$N11 -> 1.109641065 | L11: ='Monthly Summary Forecast'!$N12 -> 0.1412688306 | M11: ='Monthly Summary Forecast'!$N13 -> -0.2530733819 | N11: ='Monthly Summary Forecast'!$N14 -> 0.8853786014 | O11: ='Monthly Summary Forecast'!$N15 -> -0.8006521155 | P11: ='Monthly Summary Forecast'!$N16 -> 0.03535889066 | Q11: ='Monthly Summary Forecast'!$N17 -> -1.564404557 | R11: ='Monthly Summary Forecast'!$N18 -> 1.304996255 | S11: ='Monthly Summary Forecast'!$N19 -> -0.5624386337 | T11: ='Monthly Summary Forecast'!$N20 -> 3.01394728 | U11: ='Monthly Summary Forecast'!$N21 -> 2.96319145 | V11: ='Monthly Summary Forecast'!$N22 -> 2.577322236 | W11: ='Monthly Summary Forecast'!$N23 -> 2.561929697 | X11: ='Monthly Summary Forecast'!$N24 -> 1.545159449 | Y11: ='Monthly Summary Forecast'!$N25 -> 1.071485672
A12: Black Start (non-incentivised) | B12: ='Monthly Summary Forecast'!$O2 -> 3.821917808 | C12: ='Monthly Summary Forecast'!$O3 -> 3.698630137 | D12: ='Monthly Summary Forecast'!$O4 -> 3.821917808 | E12: ='Monthly Summary Forecast'!$O5 -> 3.821917808 | F12: ='Monthly Summary Forecast'!$O6 -> 3.452054795 | G12: ='Monthly Summary Forecast'!$O7 -> 3.821917808 | H12: ='Monthly Summary Forecast'!$O8 -> 3.698630137 | I12: ='Monthly Summary Forecast'!$O9 -> 3.821917808 | J12: ='Monthly Summary Forecast'!$O10 -> 3.698630137 | K12: ='Monthly Summary Forecast'!$O11 -> 3.821917808 | L12: ='Monthly Summary Forecast'!$O12 -> 3.821917808 | M12: ='Monthly Summary Forecast'!$O13 -> 3.698630137 | N12: ='Monthly Summary Forecast'!$O14 -> 3.821917808 | O12: ='Monthly Summary Forecast'!$O15 -> 3.698630137 | P12: ='Monthly Summary Forecast'!$O4 -> 3.821917808 | Q12: ='Monthly Summary Forecast'!$O17 -> 3.821917808 | R12: ='Monthly Summary Forecast'!$O18 -> 3.452054795 | S12: ='Monthly Summary Forecast'!$O19 -> 3.821917808 | T12: ='Monthly Summary Forecast'!$O20 -> 3.698630137 | U12: ='Monthly Summary Forecast'!$O21 -> 3.821917808 | V12: ='Monthly Summary Forecast'!$O22 -> 3.698630137 | W12: ='Monthly Summary Forecast'!$O23 -> 3.821917808 | X12: ='Monthly Summary Forecast'!$O24 -> 3.821917808 | Y12: ='Monthly Summary Forecast'!$O25 -> 3.698630137
A13: Total BSUos | B13: =SUM(B2:B12) -> 118.9615184 | C13: 91.97553705 | D13: 80.74238156 | E13: 64.92153104 | F13: 70.17178019 | G13: 72.62161998 | H13: 61.80427696 | I13: 69.80911948 | J13: 64.98137805 | K13: 72.05480951 | L13: 75.67976804 | M13: 80.08215134 | N13: 83.40471098 | O13: 83.25984166 | P13: 78.31171989 | Q13: 68.2412016 | R13: 70.35132556 | S13: 69.289533 | T13: 63.03123179 | U13: 71.74557013 | V13: 66.87184606 | W13: 74.24928503 | X13: 78.63262456 | Y13: 81.29868991
A14: Esitmated BSUos Vol (TWh) | B14: ='Monthly Summary Forecast'!$Q2 -> 41.039363 | C14: ='Monthly Summary Forecast'!$Q3 -> 46.68507545 | D14: ='Monthly Summary Forecast'!$Q4 -> 48.74330882 | E14: ='Monthly Summary Forecast'!$Q5 -> 48.35665904 | F14: ='Monthly Summary Forecast'!$Q6 -> 44.91512043 | G14: ='Monthly Summary Forecast'!$Q7 -> 48.25454801 | H14: ='Monthly Summary Forecast'!$Q8 -> 35.27584128 | I14: ='Monthly Summary Forecast'!$Q9 -> 35.83799938 | J14: ='Monthly Summary Forecast'!$Q10 -> 33.07689983 | K14: ='Monthly Summary Forecast'!$Q11 -> 33.84858242 | L14: ='Monthly Summary Forecast'!$Q12 -> 33.57408573 | M14: ='Monthly Summary Forecast'!$Q13 -> 35.13914761 | N14: ='Monthly Summary Forecast'!$Q14 -> 38.56711221 | O14: ='Monthly Summary Forecast'!$Q15 -> 43.87272151 | P14: ='Monthly Summary Forecast'!$Q16 -> 45.80696492 | Q14: ='Monthly Summary Forecast'!$Q17 -> 45.44360729 | R14: ='Monthly Summary Forecast'!$Q18 -> 42.20939029 | S14: ='Monthly Summary Forecast'!$Q19 -> 45.34764753 | T14: ='Monthly Summary Forecast'!$Q20 -> 35.27584128 | U14: ='Monthly Summary Forecast'!$Q21 -> 35.83799938 | V14: ='Monthly Summary Forecast'!$Q22 -> 33.07689983 | W14: ='Monthly Summary Forecast'!$Q23 -> 33.84858242 | X14: ='Monthly Summary Forecast'!$Q24 -> 33.57408573 | Y14: ='Monthly Summary Forecast'!$Q25 -> 35.13914761
A15: Esitmated NGET Profit/(Loss) | B15: ='Monthly Summary Forecast'!$S2 -> 1.273972603 | C15: ='Monthly Summary Forecast'!$S3 -> 1.232876712 | D15: ='Monthly Summary Forecast'!$S4 -> 1.273972603 | E15: ='Monthly Summary Forecast'!$S5 -> 1.273972603 | F15: ='Monthly Summary Forecast'!$S6 -> 1.150684932 | G15: ='Monthly Summary Forecast'!$S7 -> 1.273972603 | H15: ='Monthly Summary Forecast'!$S8 -> 0.9863013699 | I15: ='Monthly Summary Forecast'!$S9 -> 1.019178082 | J15: ='Monthly Summary Forecast'!$S10 -> 0.9863013699 | K15: ='Monthly Summary Forecast'!$S11 -> 1.019178082 | L15: ='Monthly Summary Forecast'!$S12 -> 1.019178082 | M15: ='Monthly Summary Forecast'!$S13 -> 0.9863013699 | N15: ='Monthly Summary Forecast'!$S14 -> 1.019178082 | O15: ='Monthly Summary Forecast'!$S15 -> 0.9863013699 | P15: ='Monthly Summary Forecast'!$S16 -> 1.019178082 | Q15: ='Monthly Summary Forecast'!$S17 -> 1.019178082 | R15: ='Monthly Summary Forecast'!$S18 -> 0.9205479452 | S15: ='Monthly Summary Forecast'!$S19 -> 1.019178082 | T15: ='Monthly Summary Forecast'!$S20 -> 0.9863013699 | U15: ='Monthly Summary Forecast'!$S21 -> 1.019178082 | V15: ='Monthly Summary Forecast'!$S22 -> 0.9863013699 | W15: ='Monthly Summary Forecast'!$S23 -> 1.019178082 | X15: ='Monthly Summary Forecast'!$S24 -> 1.019178082 | Y15: ='Monthly Summary Forecast'!$S25 -> 0.9863013699
A16: Estimated Internal BSUoS(£m) | B16: ='Monthly Summary Forecast'!$R2 -> 16.09452055 | C16: ='Monthly Summary Forecast'!$R3 -> 15.57534247 | D16: ='Monthly Summary Forecast'!$R4 -> 16.09452055 | E16: ='Monthly Summary Forecast'!$R5 -> 16.09452055 | F16: ='Monthly Summary Forecast'!$R6 -> 14.5369863 | G16: ='Monthly Summary Forecast'!$R7 -> 16.09452055 | H16: ='Monthly Summary Forecast'!$R8 -> 15.61643836 | I16: ='Monthly Summary Forecast'!$R9 -> 16.1369863 | J16: ='Monthly Summary Forecast'!$R10 -> 15.61643836 | K16: ='Monthly Summary Forecast'!$R11 -> 16.1369863 | L16: ='Monthly Summary Forecast'!$R12 -> 16.1369863 | M16: ='Monthly Summary Forecast'!$R13 -> 15.61643836 | N16: ='Monthly Summary Forecast'!$R14 -> 16.1369863 | O16: ='Monthly Summary Forecast'!$R15 -> 15.61643836 | P16: ='Monthly Summary Forecast'!$R4 -> 16.09452055 | Q16: ='Monthly Summary Forecast'!$R17 -> 16.1369863 | R16: ='Monthly Summary Forecast'!$R18 -> 14.57534247 | S16: ='Monthly Summary Forecast'!$R19 -> 16.1369863 | T16: ='Monthly Summary Forecast'!$R20 -> 15.61643836 | U16: ='Monthly Summary Forecast'!$R21 -> 16.1369863 | V16: ='Monthly Summary Forecast'!$R22 -> 15.61643836 | W16: ='Monthly Summary Forecast'!$R23 -> 16.1369863 | X16: ='Monthly Summary Forecast'!$R24 -> 16.1369863 | Y16: ='Monthly Summary Forecast'!$R25 -> 15.61643836
A17: Esitimated BSUoS Charge (£/MWh) | B17: =(B13+B15+B16)/B14 -> 3.321932934 | C17: =(C13+C15+C16)/C14 -> 2.330161303 | D17: 2.012807031 | E17: 1.701730968 | F17: 1.911593481 | G17: 1.86490428 | H17: 2.222683112 | I17: 2.426622171 | J17: 2.466498317 | K17: 2.635589662 | L17: 2.76510679 | M17: 2.751486523 | N17: 2.607425591 | O17: 2.276188437 | P17: 2.083207623 | Q17: 1.87919426 | R17: 2.033841649 | S17: 1.906288465 | T17: 2.257464844 | U17: 2.480655618 | V17: 2.523652041 | W17: 2.700421786 | X17: 2.853057257 | Y17: 2.786107128
A18: High Error Band (£/MWh) | B18: =Forecast!E64 -> 3.823314425 | C18: =Forecast!F64 -> 2.821868399 | D18: =Forecast!G64 -> 2.508083097 | E18: =Forecast!H64 -> 2.168942032 | F18: =Forecast!I64 -> 2.444176429 | G18: =Forecast!J64 -> 2.438613848 | H18: =Forecast!K64 -> 2.692532035 | I18: =Forecast!L64 -> 2.971485021 | J18: =Forecast!M64 -> 3.11308979 | K18: =Forecast!N64 -> 3.207185426 | L18: =Forecast!O64 -> 3.436742812 | M18: =Forecast!P64 -> 3.449709145 | N18: =Forecast!Q64 -> 3.315236153 | O18: =Forecast!R64 -> 3.088590403 | P18: =Forecast!S64 -> 2.987462284 | Q18: =Forecast!T64 -> 2.876182009 | R18: =Forecast!U64 -> 3.008287685 | S18: =Forecast!V64 -> 2.74786427 | T18: =Forecast!W64 -> 3.099040648 | U18: =Forecast!X64 -> 3.322231423 | V18: =Forecast!Y64 -> 3.365227846 | W18: =Forecast!Z64 -> 3.541997591 | X18: =Forecast!AA64 -> 3.694633062 | Y18: =Forecast!AB64 -> 3.627682933
A19: Low Error Band (£/MWh) | B19: =Forecast!E65 -> 2.820551444 | C19: =Forecast!F65 -> 1.838454206 | D19: =Forecast!G65 -> 1.517530965 | E19: =Forecast!H65 -> 1.234519904 | F19: =Forecast!I65 -> 1.379010533 | G19: =Forecast!J65 -> 1.291194712 | H19: =Forecast!K65 -> 1.75283419 | I19: =Forecast!L65 -> 1.881759322 | J19: =Forecast!M65 -> 1.819906844 | K19: =Forecast!N65 -> 2.063993897 | L19: =Forecast!O65 -> 2.093470768 | M19: =Forecast!P65 -> 2.053263901 | N19: =Forecast!Q65 -> 1.89961503 | O19: =Forecast!R65 -> 1.46378647 | P19: =Forecast!S65 -> 1.131811388 | Q19: =Forecast!T65 -> 0.882206511 | R19: =Forecast!U65 -> 1.059395614 | S19: =Forecast!V65 -> 1.06471266 | T19: =Forecast!W65 -> 1.415889039 | U19: =Forecast!X65 -> 1.639079814 | V19: =Forecast!Y65 -> 1.682076237 | W19: =Forecast!Z65 -> 1.858845982 | X19: =Forecast!AA65 -> 2.011481452 | Y19: =Forecast!AB65 -> 1.944531323

Sheet Actual Data For Import
A1: Month | B1: ='Monthly Summary Actual'!$A2 -> Oct-17 | C1: ='Monthly Summary Actual'!$A3 -> Nov-17 | D1: ='Monthly Summary Actual'!A4 -> Dec-17 | E1: ='Monthly Summary Actual'!A5 -> Jan-18 | F1: ='Monthly Summary Actual'!A6 -> Feb-18 | G1: ='Monthly Summary Actual'!A7 -> Mar-18 | H1: ='Monthly Summary Actual'!A8 -> Apr-18 | I1: ='Monthly Summary Actual'!A9 -> May-18 | J1: ='Monthly Summary Actual'!A10 -> Jun-18 | K1: ='Monthly Summary Actual'!A11 -> Jul-18 | L1: ='Monthly Summary Actual'!A12 -> Aug-18 | M1: ='Monthly Summary Actual'!A13 -> Sep-18
A2: Energy Imbalance | B2: ='Monthly Summary Actual'!$B2 -> -2.842516968 | C2: ='Monthly Summary Actual'!$B3 -> -3.133263798 | D2: ='Monthly Summary Actual'!$B4 -> 5.112603244 | E2: ='Monthly Summary Actual'!$B5 -> -1.949725068 | F2: ='Monthly Summary Actual'!$B6 -> -3.012041097 | G2: ='Monthly Summary Actual'!$B7 -> 3.28843045 | H2: ='Monthly Summary Actual'!$B8 -> -5.678595773 | I2: ='Monthly Summary Actual'!$B9 -> -6.760679548 | J2: ='Monthly Summary Actual'!$B10 -> -2.810221268 | K2: ='Monthly Summary Actual'!$B11 -> -1.110751301 | L2: ='Monthly Summary Actual'!$B12 -> -3.902354275 | M2: ='Monthly Summary Actual'!$B13 -> -0.642132211
A3: Operating Reserve | B3: ='Monthly Summary Actual'!$C2 -> 6.018816398 | C3: ='Monthly Summary Actual'!$C3 -> 6.146629905 | D3: ='Monthly Summary Actual'!$C4 -> 8.987521463 | E3: ='Monthly Summary Actual'!$C5 -> 8.619913881 | F3: ='Monthly Summary Actual'!$C6 -> 9.228118844 | G3: ='Monthly Summary Actual'!$C7 -> 15.91006067 | H3: ='Monthly Summary Actual'!$C8 -> 4.056805357 | I3: ='Monthly Summary Actual'!$C9 -> 4.384309523 | J3: ='Monthly Summary Actual'!$C10 -> 3.540148552 | K3: ='Monthly Summary Actual'!$C11 -> 4.788280494 | L3: ='Monthly Summary Actual'!$C12 -> 4.66708187 | M3: ='Monthly Summary Actual'!$C13 -> 5.578828882
A4: STOR | B4: ='Monthly Summary Actual'!$D2 -> 6.178008962 | C4: ='Monthly Summary Actual'!$D3 -> 8.940615847 | D4: ='Monthly Summary Actual'!$D4 -> 9.430998645 | E4: ='Monthly Summary Actual'!$D5 -> 9.421794756 | F4: ='Monthly Summary Actual'!$D6 -> 8.55305134 | G4: ='Monthly Summary Actual'!$D7 -> 8.098531184 | H4: ='Monthly Summary Actual'!$D8 -> 6.096036792 | I4: ='Monthly Summary Actual'!$D9 -> 7.038844709 | J4: ='Monthly Summary Actual'!$D10 -> 6.649184693 | K4: ='Monthly Summary Actual'!$D11 -> 7.367863841 | L4: ='Monthly Summary Actual'!$D12 -> 6.713354274 | M4: ='Monthly Summary Actual'!$D13 -> 5.690164449
A5: Constraints - E&W | B5: ='Monthly Summary Actual'!$E2 -> 9.958197188 | C5: ='Monthly Summary Actual'!$E3 -> 16.32295779 | D5: ='Monthly Summary Actual'!$E4 -> 9.768965953 | E5: ='Monthly Summary Actual'!$E5 -> 12.32096526 | F5: ='Monthly Summary Actual'!$E6 -> 4.021996155 | G5: ='Monthly Summary Actual'!$E7 -> 14.19561426 | H5: ='Monthly Summary Actual'!$E8 -> 9.107920387 | I5: ='Monthly Summary Actual'!$E9 -> 20.34603563 | J5: ='Monthly Summary Actual'!$E10 -> 33.33151617 | K5: ='Monthly Summary Actual'!$E11 -> 37.33388798 | L5: ='Monthly Summary Actual'!$E12 -> 32.28538328 | M5: ='Monthly Summary Actual'!$E13 -> 78.35859309
A6: Constraints - Cheviot | B6: ='Monthly Summary Actual'!$F2 -> 54.60265779 | C6: ='Monthly Summary Actual'!$F3 -> 15.53629598 | D6: ='Monthly Summary Actual'!$F4 -> 19.15118313 | E6: ='Monthly Summary Actual'!$F5 -> 11.94898274 | F6: ='Monthly Summary Actual'!$F6 -> 5.383852701 | G6: ='Monthly Summary Actual'!$F7 -> 2.305382085 | H6: ='Monthly Summary Actual'!$F8 -> 13.23123316 | I6: ='Monthly Summary Actual'!$F9 -> 1.45616127 | J6: ='Monthly Summary Actual'!$F10 -> 7.780194908 | K6: ='Monthly Summary Actual'!$F11 -> 1.390168163 | L6: ='Monthly Summary Actual'!$F12 -> 1.582099012 | M6: ='Monthly Summary Actual'!$F13 -> 18.17768928
A7: Constraints - Scotland | B7: ='Monthly Summary Actual'!$G2 -> 2.878566782 | C7: ='Monthly Summary Actual'!$G3 -> 7.144633289 | D7: ='Monthly Summary Actual'!$G4 -> 5.223834344 | E7: ='Monthly Summary Actual'!$G5 -> 5.396008767 | F7: ='Monthly Summary Actual'!$G6 -> 2.768240749 | G7: ='Monthly Summary Actual'!$G7 -> 1.440756399 | H7: ='Monthly Summary Actual'!$G8 -> 0.3588389631 | I7: ='Monthly Summary Actual'!$G9 -> 2.105893864 | J7: ='Monthly Summary Actual'!$G10 -> 6.258501603 | K7: ='Monthly Summary Actual'!$G11 -> 0.2337361441 | L7: ='Monthly Summary Actual'!$G12 -> 1.2863796 | M7: ='Monthly Summary Actual'!$G13 -> 4.068498612
A8: Constraints - AS | B8: ='Monthly Summary Actual'!$H2 -> 1.666545641 | C8: ='Monthly Summary Actual'!$H3 -> 2.700489268 | D8: ='Monthly Summary Actual'!$H4 -> 1.930289596 | E8: ='Monthly Summary Actual'!$H5 -> 0.4694887264 | F8: ='Monthly Summary Actual'!$H6 -> 0.3543655606 | G8: ='Monthly Summary Actual'!$H7 -> 3.691478862 | H8: ='Monthly Summary Actual'!$H8 -> 2.740013785 | I8: ='Monthly Summary Actual'!$H9 -> 0.9340882941 | J8: ='Monthly Summary Actual'!$H10 -> 3.770372235 | K8: ='Monthly Summary Actual'!$H11 -> 0.1932135837 | L8: ='Monthly Summary Actual'!$H12 -> 0.3395766641 | M8: ='Monthly Summary Actual'!$H13 -> 1.307313954
A9: Negative Reserve | B9: ='Monthly Summary Actual'!$I2 -> 0.7877157572 | C9: ='Monthly Summary Actual'!$I3 -> 0.6011300105 | D9: ='Monthly Summary Actual'!$I4 -> 0.09934702949 | E9: ='Monthly Summary Actual'!$I5 -> 0.8728323017 | F9: ='Monthly Summary Actual'!$I6 -> 0.09421270946 | G9: ='Monthly Summary Actual'!$I7 -> 0.4284472862 | H9: ='Monthly Summary Actual'!$I8 -> 0.4200337111 | I9: ='Monthly Summary Actual'!$I9 -> 2.057471895 | J9: ='Monthly Summary Actual'!$I10 -> 0.4077661289 | K9: ='Monthly Summary Actual'!$I11 -> 0.5725288452 | L9: ='Monthly Summary Actual'!$I12 -> 0.3958837945 | M9: ='Monthly Summary Actual'!$I13 -> 0.4184334081
A10: Fast Reserve | B10: ='Monthly Summary Actual'!$J2 -> 7.572502194 | C10: ='Monthly Summary Actual'!$J3 -> 6.997815743 | D10: ='Monthly Summary Actual'!$J4 -> 7.679601686 | E10: ='Monthly Summary Actual'!$J5 -> 8.095275845 | F10: ='Monthly Summary Actual'!$J6 -> 6.871321621 | G10: ='Monthly Summary Actual'!$J7 -> 7.849012085 | H10: ='Monthly Summary Actual'!$J8 -> 6.461642445 | I10: ='Monthly Summary Actual'!$J9 -> 6.469285509 | J10: ='Monthly Summary Actual'!$J10 -> 6.007894146 | K10: ='Monthly Summary Actual'!$J11 -> 7.555926175 | L10: ='Monthly Summary Actual'!$J12 -> 8.244163722 | M10: ='Monthly Summary Actual'!$J13 -> 6.990971019
A11: Response | B11: ='Monthly Summary Actual'!$K2 -> 11.44035473 | C11: ='Monthly Summary Actual'!$K3 -> 10.27943159 | D11: ='Monthly Summary Actual'!$K4 -> 11.39872494 | E11: ='Monthly Summary Actual'!$K5 -> 10.42150085 | F11: ='Monthly Summary Actual'!$K6 -> 9.314764346 | G11: ='Monthly Summary Actual'!$K7 -> 11.56686944 | H11: ='Monthly Summary Actual'!$K8 -> 11.01178477 | I11: ='Monthly Summary Actual'!$K9 -> 12.21229682 | J11: ='Monthly Summary Actual'!$K10 -> 11.46043661 | K11: ='Monthly Summary Actual'!$K11 -> 10.53168237 | L11: ='Monthly Summary Actual'!$K12 -> 10.74746024 | M11: ='Monthly Summary Actual'!$K13 -> 11.32012155
A12: Other Reserve | B12: ='Monthly Summary Actual'!$L2 -> 1.59051244 | C12: ='Monthly Summary Actual'!$L3 -> 1.19691699 | D12: ='Monthly Summary Actual'!$L4 -> 1.29142999 | E12: ='Monthly Summary Actual'!$L5 -> 1.56689246 | F12: ='Monthly Summary Actual'!$L6 -> 1.17264198 | G12: ='Monthly Summary Actual'!$L7 -> 1.07642294 | H12: ='Monthly Summary Actual'!$L8 -> 0.78711943 | I12: ='Monthly Summary Actual'!$L9 -> 0.9197058 | J12: ='Monthly Summary Actual'!$L10 -> 0.82597977 | K12: ='Monthly Summary Actual'!$L11 -> 1.15896295 | L12: ='Monthly Summary Actual'!$L12 -> 1.1584881 | M12: ='Monthly Summary Actual'!$L13 -> 1.05673805
A13: Reactive | B13: ='Monthly Summary Actual'!$M2 -> 6.273613719 | C13: ='Monthly Summary Actual'!$M3 -> 6.169308893 | D13: ='Monthly Summary Actual'!$M4 -> 6.709756463 | E13: ='Monthly Summary Actual'!$M5 -> 6.573886373 | F13: ='Monthly Summary Actual'!$M6 -> 5.654450053 | G13: ='Monthly Summary Actual'!$M7 -> 5.858231873 | H13: ='Monthly Summary Actual'!$M8 -> 6.46582811 | I13: ='Monthly Summary Actual'!$M9 -> 7.054301742 | J13: ='Monthly Summary Actual'!$M10 -> 7.36038081 | K13: ='Monthly Summary Actual'!$M11 -> 6.56190176 | L13: ='Monthly Summary Actual'!$M12 -> 6.696767338 | M13: ='Monthly Summary Actual'!$M13 -> 6.165980141
A14: Minor Components | B14: ='Monthly Summary Actual'!$N2 -> 3.3162248 | C14: ='Monthly Summary Actual'!$N3 -> 0.9200239865 | D14: ='Monthly Summary Actual'!$N4 -> 2.088839606 | E14: ='Monthly Summary Actual'!$N5 -> 1.83875352 | F14: ='Monthly Summary Actual'!$N6 -> 1.565104753 | G14: ='Monthly Summary Actual'!$N7 -> 1.217916476 | H14: ='Monthly Summary Actual'!$N8 -> 1.416913323 | I14: ='Monthly Summary Actual'!$N9 -> 1.045670644 | J14: ='Monthly Summary Actual'!$N10 -> 1.174760974 | K14: ='Monthly Summary Actual'!$N11 -> 1.202683079 | L14: ='Monthly Summary Actual'!$N12 -> 2.078673911 | M14: ='Monthly Summary Actual'!$N13 -> 1.413623981
A15: Black Start (non-incentivised) | B15: ='Monthly Summary Actual'!$O2 -> 4.566070888 | C15: ='Monthly Summary Actual'!$O3 -> 3.539920584 | D15: ='Monthly Summary Actual'!$O4 -> 4.494288897 | E15: ='Monthly Summary Actual'!$O5 -> 3.809301732 | F15: ='Monthly Summary Actual'!$O6 -> 3.35622808 | G15: ='Monthly Summary Actual'!$O7 -> 3.74831314 | H15: ='Monthly Summary Actual'!$O8 -> 3.36605017 | I15: ='Monthly Summary Actual'!$O9 -> 3.670413224 | J15: ='Monthly Summary Actual'!$O10 -> 3.23176055 | K15: ='Monthly Summary Actual'!$O11 -> 3.06142822 | L15: ='Monthly Summary Actual'!$O12 -> 3.574906769 | M15: ='Monthly Summary Actual'!$O13 -> 3.65337467
A16: Total BSUos | B16: =SUM(B2:B15) -> 114.0072703 | C16: =SUM(C2:C15) -> 83.36290608 | D16: 93.36738499 | E16: 79.40587215 | F16: 55.32630779 | G16: 80.67546714 | H16: 59.84162464 | I16: 62.93379938 | J16: 88.98867588 | K16: 80.8415123 | L16: 75.86786431 | M16: 143.5581989
A17: Esitmated BSUos Vol (TWh) | B17: ='Monthly Summary Actual'!$Q2 -> 41.46052096 | C17: ='Monthly Summary Actual'!$Q3 -> 47.16417137 | D17: ='Monthly Summary Actual'!$Q4 -> 49.24352693 | E17: ='Monthly Summary Actual'!$Q5 -> 48.85290924 | F17: ='Monthly Summary Actual'!$Q6 -> 45.37605256 | G17: ='Monthly Summary Actual'!$Q7 -> 48.74975032 | H17: ='Monthly Summary Actual'!$Q8 -> 40.38570033 | I17: ='Monthly Summary Actual'!$Q9 -> 36.96006484 | J17: ='Monthly Summary Actual'!$Q10 -> 35.31246865 | K17: ='Monthly Summary Actual'!$Q11 -> 35.96236592 | L17: ='Monthly Summary Actual'!$Q12 -> 36.38645178 | M17: ='Monthly Summary Actual'!$Q13 -> 36.17642346
A18: Esitmated NGET Profit/(Loss) | B18: ='Monthly Summary Actual'!$S2 -> 0.8493150685 | C18: ='Monthly Summary Actual'!$S3 -> 0.8219178082 | D18: ='Monthly Summary Actual'!$S4 -> 0.8493150685 | E18: ='Monthly Summary Actual'!$S5 -> 0.8493150685 | F18: ='Monthly Summary Actual'!$S6 -> 0.7671232877 | G18: ='Monthly Summary Actual'!$S7 -> 0.8493150685 | H18: ='Monthly Summary Actual'!$S8 -> 1.232876712 | I18: ='Monthly Summary Actual'!$S9 -> 1.273972603 | J18: ='Monthly Summary Actual'!$S10 -> 1.232876712 | K18: ='Monthly Summary Actual'!$S11 -> 1.273972603 | L18: ='Monthly Summary Actual'!$S12 -> 1.273972603 | M18: ='Monthly Summary Actual'!$S13 -> 1.232876712
A19: Estimated Internal BSUos(£m) | B19: ='Monthly Summary Actual'!$R2 -> 13.96273973 | C19: ='Monthly Summary Actual'!$R3 -> 13.51232877 | D19: ='Monthly Summary Actual'!$R4 -> 13.96273973 | E19: ='Monthly Summary Actual'!$R5 -> 13.96273973 | F19: ='Monthly Summary Actual'!$R6 -> 12.61150685 | G19: ='Monthly Summary Actual'!$R7 -> 13.96273973 | H19: ='Monthly Summary Actual'!$R8 -> 15.57534247 | I19: ='Monthly Summary Actual'!$R9 -> 16.09452055 | J19: ='Monthly Summary Actual'!$R10 -> 15.57534247 | K19: ='Monthly Summary Actual'!$R11 -> 16.09452055 | L19: ='Monthly Summary Actual'!$R12 -> 16.09452055 | M19: ='Monthly Summary Actual'!$R13 -> 15.57534247
A20: Esitimated BSUoS Charge (£/MWh) | B20: =(B16+B19+B18)/B17 -> 3.107035853 | C20: =(C16+C19+C18)/C17 -> 2.07142731 | D20: 2.196825583 | E20: 1.92860422 | F20: 1.514123289 | G20: 1.958728431 | H20: 1.897945144 | I20: 2.172677263 | J20: 2.996020927 | K20: 2.730910577 | L20: 2.562392124 | M20: 4.432898632
A21: Year ahead forecast (£/MWh) | B21: 2.217925511 | C21: 1.98 | D21: 1.83 | E21: 1.89 | F21: 1.47 | G21: 1.45 | H21: 1.89 | I21: 1.924784602 | J21: 1.74 | K21: 1.39 | L21: 1.958870517 | M21: 1.27

Sheet Data_store
A1: Month | B1: Actual | C1: F_Apr-15 | D1: F_May-15 | E1: F_Jun-15 | F1: F_Jul-15 | G1: F_Aug-15 | H1: F_Sep-15 | I1: F_Oct-15 | J1: F_Nov-15 | K1: F_Dec-15 | L1: F_Jan-16 | M1: F_Feb-16 | N1: F_Mar-16 | O1: F_Apr-16 | P1: F_May-16 | Q1: F_Jun-16 | R1: F_Jul-16 | S1: F_Aug-16 | T1: F_Sep-16 | U1: F_Oct-16 | V1: F_Nov-16 | W1: F_Dec-16 | X1: F_Jan-17 | Y1: F_Feb-17 | Z1: F_Mar-17 | AA1: F_Apr-17 | AB1: F_May-17 | AC1: F_Jun-17 | AD1: F_Jul-17 | AE1: F_Aug-17 | AF1: F_Sep-17 | AG1: F_Oct-17 | AH1: F_Nov-17 | AI1: F_Dec-17 | AJ1: F_Jan-18 | AK1: F_Feb-18 | AL1: F_Mar-18 | AM1: F_Apr-18 | AN1: F_May-18 | AO1: F_Jun-18 | AP1: F_Jul-18 | AQ1: F_Aug-18 | AR1: F_Sep-18 | AS1: F_Oct-18
A2: Apr-15 | B2: 1.48 | C2: 1.33 | G2: 1.449462284 | H2: 1.484150014 | I2: 1.479876765 | J2: 1.483104782 | K2: 1.483552897 | L2: 1.487179471 | M2: 1.489374354 | N2: 1.484704232
A3: May-15 | B3: 2.79 | C3: 1.52 | D3: 2.57 | G3: 2.743718024 | H3: 2.781073153 | I3: 2.776756145 | J3: 2.782716319 | K3: 2.784077394 | L3: 2.791508433 | M3: 2.796482164 | N3: 2.790925964
A4: Jun-15 | B4: 2.29 | C4: 1.6 | D4: 1.55 | E4: 1.91 | G4: 2.181850823 | H4: 2.23706681 | I4: 2.25453876 | J4: 2.263092953 | K4: 2.263514971 | L4: 2.287587985 | M4: 2.291158968 | N4: 2.286689675
A5: Jul-15 | B5: 2.14 | C5: 1.93 | D5: 1.89 | E5: 1.94 | F5: 1.99 | G5: 2.033916599 | H5: 2.099538928 | I5: 2.135843701 | J5: 2.140647228 | K5: 2.141060356 | L5: 2.141910808 | M5: 2.145509374 | N5: 2.142496379
A6: Aug-15 | B6: 2.33 | C6: 2.06 | D6: 2.01 | E6: 2.06 | F6: 2.06 | G6: 2.265561936 | H6: 2.327754787 | I6: 2.311164156 | J6: 2.314307534 | K6: 2.315461486 | L6: 2.326651741 | M6: 2.331771746 | N6: 2.329380319
A7: Sep-15 | B7: 1.48 | C7: 2.1 | D7: 2.06 | E7: 2.1 | F7: 2.1 | G7: 2.127698508 | H7: 1.428196553 | I7: 1.440565196 | J7: 1.47242099 | K7: 1.482362607 | L7: 1.48268408 | M7: 1.484752912 | N7: 1.483192744
A8: Oct-15 | B8: 1.58 | C8: 1.97 | D8: 1.92 | E8: 1.96 | F8: 1.96 | G8: 1.989520658 | H8: 2.015762798 | I8: 1.537585368 | J8: 1.554594449 | K8: 1.574111091 | L8: 1.574516416 | M8: 1.580825719 | N8: 1.578133263
A9: Nov-15 | B9: 2.49 | C9: 1.63 | D9: 1.58 | E9: 1.62 | F9: 1.62 | G9: 1.641026086 | H9: 1.665002045 | I9: 1.665002045 | J9: 2.508869673 | K9: 2.48264953 | L9: 2.484234472 | M9: 2.495121249 | N9: 2.493757259
A10: Dec-15 | B10: 2.65 | C10: 1.52 | D10: 1.47 | E10: 1.51 | F10: 1.51 | G10: 1.53238962 | H10: 1.555736204 | I10: 1.555736204 | J10: 1.555736204 | K10: 2.599990248 | L10: 2.622674366 | M10: 2.648733495 | N10: 2.649424101
A11: Jan-16 | B11: 2.05 | C11: 1.48 | D11: 1.45 | E11: 1.49 | F11: 1.49 | G11: 1.510162487 | H11: 1.533048819 | I11: 1.533048819 | J11: 1.533048819 | K11: 1.533048819 | L11: 2.021863336 | M11: 2.03242058 | N11: 2.049413706
A12: Feb-16 | B12: 1.53 | C12: 1.49 | D12: 1.46 | E12: 1.5 | F12: 1.5 | G12: 1.521658347 | H12: 1.543951703 | I12: 1.543951703 | J12: 1.543951703 | K12: 1.543951703 | L12: 1.543951703 | M12: 1.506559103 | N12: 1.528391008
A13: Mar-16 | B13: 1.37 | C13: 1.54 | D13: 1.51 | E13: 1.55 | F13: 1.55 | G13: 1.575946672 | H13: 1.600375808 | I13: 1.600375808 | J13: 1.600375808 | K13: 1.600375808 | L13: 1.600375808 | M13: 1.600375808 | N13: 1.374858545
A14: Apr-16 | B14: 1.54 | C14: 1.43 | D14: 1.43 | E14: 1.41 | F14: 1.41 | G14: 1.410653928 | H14: 1.410653928 | I14: 1.410653928 | J14: 1.410653928 | K14: 1.410653928 | L14: 1.410653928 | M14: 1.410653928 | N14: 1.410653928 | O14: 1.37 | P14: 1.391224432 | Q14: 1.38 | R14: 1.39 | S14: 1.4 | T14: 1.39 | U14: 1.4 | V14: 1.61 | W14: 1.613705616 | X14: 1.62 | Y14: 1.57
A15: May-16 | B15: 2.1 | C15: 1.52 | D15: 1.52 | E15: 1.5 | F15: 1.5 | G15: 1.497394677 | H15: 1.497394677 | I15: 1.497394677 | J15: 1.497394677 | K15: 1.497394677 | L15: 1.497394677 | M15: 1.497394677 | N15: 1.497394677 | O15: 2.32 | P15: 1.799493683 | Q15: 1.82 | R15: 1.9 | S15: 1.92 | T15: 1.92 | U15: 1.93 | V15: 2.18 | W15: 2.177208886 | X15: 2.18 | Y15: 2.14
A16: Jun-16 | B16: 2.14 | C16: 1.58 | D16: 1.58 | E16: 1.56 | F16: 1.56 | G16: 1.558394493 | H16: 1.558394493 | I16: 1.558394493 | J16: 1.558394493 | K16: 1.558394493 | L16: 1.558394493 | M16: 1.558394493 | N16: 1.558394493 | O16: 2.09 | P16: 2.086280112 | Q16: 1.93 | R16: 1.98 | S16: 1.99 | T16: 1.99 | U16: 2 | V16: 2.24 | W16: 2.235625282 | X16: 2.24 | Y16: 2.18
A17: Jul-16 | B17: 2.7 | C17: 1.9 | D17: 1.9 | E17: 1.88 | F17: 1.88 | G17: 1.879431963 | H17: 1.879431963 | I17: 1.879431963 | J17: 1.879431963 | K17: 1.879431963 | L17: 1.879431963 | M17: 1.879431963 | N17: 1.879431963 | O17: 2 | P17: 1.996364939 | Q17: 2 | R17: 2.5 | S17: 2.54 | T17: 2.56 | U17: 2.56 | V17: 2.8 | W17: 2.807719463 | X17: 2.81 | Y17: 2.74
A18: Aug-16 | B18: 2.89 | C18: 2.01 | D18: 2.02 | E18: 1.99 | F18: 1.99 | G18: 1.9911458 | H18: 1.9911458 | I18: 1.9911458 | J18: 1.9911458 | K18: 1.9911458 | L18: 1.9911458 | M18: 1.9911458 | N18: 1.9911458 | O18: 1.99 | P18: 1.99191476 | Q18: 1.99 | R18: 1.99 | S18: 2.8 | T18: 2.85 | U18: 2.88 | V18: 3.09 | W18: 3.088992659 | X18: 3.1 | Y18: 2.93
A19: Sep-16 | B19: 3.18 | C19: 2.04 | D19: 2.04 | E19: 2.02 | F19: 2.02 | G19: 2.01559103 | H19: 2.01559103 | I19: 2.01559103 | J19: 2.01559103 | K19: 2.01559103 | L19: 2.01559103 | M19: 2.01559103 | N19: 2.01559103 | O19: 1.56 | P19: 1.564093551 | Q19: 1.56 | R19: 1.56 | S19: 1.56 | T19: 3.11 | U19: 3.12 | V19: 3.35 | W19: 3.357775757 | X19: 3.36 | Y19: 3.21
A20: Oct-16 | B20: 2.36 | C20: 1.91 | D20: 1.91 | E20: 1.89 | F20: 1.89 | G20: 1.885124757 | H20: 1.885124757 | I20: 1.885124757 | J20: 1.885124757 | K20: 1.885124757 | L20: 1.885124757 | M20: 1.885124757 | N20: 1.885124757 | O20: 1.54 | P20: 1.54483888 | Q20: 1.54 | R20: 1.54 | S20: 1.54 | T20: 1.54 | U20: 2.5 | V20: 2.49 | W20: 2.483892269 | X20: 2.49 | Y20: 2.39
A21: Nov-16 | B21: 3.61 | C21: 1.59 | D21: 1.58 | E21: 1.56 | F21: 1.56 | G21: 1.559107136 | H21: 1.559107136 | I21: 1.559107136 | J21: 1.559107136 | K21: 1.559107136 | L21: 1.559107136 | M21: 1.559107136 | N21: 1.559107136 | O21: 1.97 | P21: 1.97103714 | Q21: 1.97 | R21: 1.97 | S21: 1.97 | T21: 1.97 | U21: 1.97 | V21: 3.63 | W21: 3.676320489 | X21: 3.69 | Y21: 3.64
A22: Dec-16 | B22: 2.61 | C22: 1.49 | D22: 1.48 | E22: 1.46 | F22: 1.46 | G22: 1.462679529 | H22: 1.462679529 | I22: 1.462679529 | J22: 1.462679529 | K22: 1.462679529 | L22: 1.462679529 | M22: 1.462679529 | N22: 1.462679529 | O22: 2.05 | P22: 2.048908914 | Q22: 2.05 | R22: 2.05 | S22: 2.05 | T22: 2.05 | U22: 2.05 | V22: 2.47 | W22: 2.598481397 | X22: 2.67 | Y22: 2.64
A23: Jan-17 | B23: 2.14 | C23: 1.45 | D23: 1.46 | E23: 1.45 | F23: 1.45 | G23: 1.445352274 | H23: 1.445352274 | I23: 1.445352274 | J23: 1.445352274 | K23: 1.445352274 | L23: 1.445352274 | M23: 1.445352274 | N23: 1.445352274 | O23: 1.79 | P23: 1.788744451 | Q23: 1.79 | R23: 1.79 | S23: 1.79 | T23: 1.79 | U23: 1.79 | V23: 2.13 | W23: 2.130468135 | X23: 2.14 | Y23: 1.99
A24: Feb-17 | B24: 2.37 | C24: 1.46 | D24: 1.47 | E24: 1.45 | F24: 1.45 | G24: 1.451118043 | H24: 1.451118043 | I24: 1.451118043 | J24: 1.451118043 | K24: 1.451118043 | L24: 1.451118043 | M24: 1.451118043 | N24: 1.451118043 | O24: 1.46 | P24: 1.46008602 | Q24: 1.46 | R24: 1.46 | S24: 1.46 | T24: 1.46 | U24: 1.46 | V24: 1.99 | W24: 1.992920141 | X24: 1.99 | Y24: 2.36
A25: Mar-17 | B25: 1.96 | C25: 1.52 | D25: 1.53 | E25: 1.51 | F25: 1.51 | G25: 1.507491361 | H25: 1.507491361 | I25: 1.507491361 | J25: 1.507491361 | K25: 1.508631638 | L25: 1.508631638 | M25: 1.508631638 | N25: 1.508631638 | O25: 1.2 | P25: 1.195275732 | Q25: 1.2 | R25: 1.2 | S25: 1.2 | T25: 1.2 | U25: 1.2 | V25: 1.29 | W25: 1.293937922 | X25: 1.29 | Y25: 1.26
A26: Apr-17 | B26: 1.957421044 | O26: 1.77 | P26: 1.454894576 | Q26: 1.45 | R26: 1.39 | S26: 1.45 | T26: 1.45 | U26: 1.45 | V26: 1.45 | W26: 1.40507342 | X26: 1.47 | Y26: 1.45 | Z26: 1.542790711 | AA26: 1.83 | AB26: 1.898052794 | AC26: 1.933454536 | AD26: 1.93218229 | AE26: 1.932764596 | AF26: 1.939256871 | AG26: 1.939858579 | AH26: 1.958204952 | AI26: 1.869047182 | AJ26: 1.944532969
A27: May-17 | B27: 2.277056921 | O27: 2.22 | P27: 2.217925511 | Q27: 2.22 | R27: 2.15 | S27: 2.22 | T27: 2.22 | U27: 2.22 | V27: 2.22 | W27: 2.116124224 | X27: 2.24 | Y27: 2.22 | Z27: 2.104658806 | AA27: 1.55 | AB27: 2.095099388 | AC27: 2.227641258 | AD27: 2.232488494 | AE27: 2.232397686 | AF27: 2.237776184 | AG27: 2.238239906 | AH27: 2.255213489 | AI27: 2.313263336 | AJ27: 2.243095374
A28: Jun-17 | B28: 3.69828067 | O28: 1.98 | P28: 1.983432349 | Q28: 1.98 | R28: 1.91 | S28: 1.98 | T28: 1.98 | U28: 1.98 | V28: 1.98 | W28: 1.971553482 | X28: 1.99 | Y28: 1.98 | Z28: 2.142241422 | AA28: 1.7 | AB28: 1.91132359 | AC28: 3.651130454 | AD28: 3.663152347 | AE28: 3.652809028 | AF28: 3.660823469 | AG28: 3.661461446 | AH28: 3.682142791 | AI28: 3.441561116 | AJ28: 3.66631343
A29: Jul-17 | B29: 2.644229894 | O29: 1.89 | P29: 1.891520078 | Q29: 1.89 | R29: 1.83 | S29: 1.89 | T29: 1.89 | U29: 1.89 | V29: 1.89 | W29: 1.859573165 | X29: 1.92 | Y29: 1.89 | Z29: 2.696681614 | AA29: 2.11 | AB29: 2.399192417 | AC29: 2.604235667 | AD29: 2.526467221 | AE29: 2.593767755 | AF29: 2.602552626 | AG29: 2.603182902 | AH29: 2.6256911 | AI29: 2.721527329 | AJ29: 2.611702379
A30: Aug-17 | B30: 2.861490882 | O30: 1.89 | P30: 1.886899221 | Q30: 1.89 | R30: 1.82 | S30: 1.89 | T30: 1.89 | U30: 1.89 | V30: 1.89 | W30: 1.882140859 | X30: 1.91 | Y30: 1.89 | Z30: 2.893519884 | AA30: 2.23 | AB30: 2.478756557 | AC30: 2.685468591 | AD30: 2.685468591 | AE30: 2.793764799 | AF30: 2.807852427 | AG30: 2.807774672 | AH30: 2.827676904 | AI30: 2.836828687 | AJ30: 2.812758003
A31: Sep-17 | B31: 2.316029641 | O31: 1.47 | P31: 1.466592403 | Q31: 1.47 | R31: 1.4 | S31: 1.47 | T31: 1.47 | U31: 1.47 | V31: 1.47 | W31: 1.461989029 | X31: 1.49 | Y31: 1.47 | Z31: 3.181657663 | AA31: 2.64 | AB31: 2.939047781 | AC31: 3.174773861 | AD31: 3.174773861 | AE31: 3.174773861 | AF31: 2.254610172 | AG31: 2.179678908 | AH31: 2.310597337 | AI31: 2.333545204 | AJ31: 2.296823317
A32: Oct-17 | B32: 3.107035853 | O32: 1.45 | P32: 1.454507451 | Q32: 1.45 | R32: 1.4 | S32: 1.45 | T32: 1.45 | U32: 1.45 | V32: 1.45 | W32: 1.434924074 | X32: 1.47 | Y32: 1.45 | Z32: 2.360898375 | AA32: 1.88 | AB32: 2.086986781 | AC32: 2.234856583 | AD32: 2.234856583 | AE32: 2.234856583 | AF32: 2.234856583 | AG32: 2.969347365 | AH32: 3.084280855 | AI32: 2.859618835 | AJ32: 2.902945869
A33: Nov-17 | B33: 2.07142731 | O33: 1.89 | P33: 1.888506424 | Q33: 1.89 | R33: 1.83 | S33: 1.89 | T33: 1.89 | U33: 1.89 | V33: 1.89 | W33: 1.871928302 | X33: 1.9 | Y33: 1.89 | Z33: 3.609806105 | AA33: 2.52 | AB33: 2.704451071 | AC33: 2.878737312 | AD33: 2.878737312 | AE33: 2.878737312 | AF33: 2.878737312 | AG33: 2.878737312 | AH33: 2.046354372 | AI33: 2.01373178 | AJ33: 1.989572147
A34: Dec-17 | B34: 2.196825583 | O34: 1.97 | P34: 1.968544647 | Q34: 1.97 | R34: 1.92 | S34: 1.97 | T34: 1.97 | U34: 1.97 | V34: 1.97 | W34: 1.924784602 | X34: 1.99 | Y34: 1.97 | Z34: 2.611342973 | AA34: 1.63 | AB34: 1.759692303 | AC34: 1.866454862 | AD34: 1.866454862 | AE34: 1.866454862 | AF34: 1.866454862 | AG34: 1.866454862 | AH34: 2.067419253 | AI34: 1.974162728 | AJ34: 2.054104772
A35: Jan-18 | B35: 1.92860422 | O35: 1.71 | P35: 1.709964476 | Q35: 1.71 | R35: 1.68 | S35: 1.71 | T35: 1.71 | U35: 1.71 | V35: 1.71 | W35: 1.668117549 | X35: 1.74 | Y35: 1.71 | Z35: 2.138098055 | AA35: 1.35 | AB35: 1.426114136 | AC35: 1.508828547 | AD35: 1.508828547 | AE35: 1.508828547 | AF35: 1.508828547 | AG35: 1.508828547 | AH35: 1.839973246 | AI35: 1.510336881 | AJ35: 1.709571574
A36: Feb-18 | B36: 1.514123289 | O36: 1.39 | P36: 1.390321641 | Q36: 1.39 | R36: 1.35 | S36: 1.39 | T36: 1.39 | U36: 1.39 | V36: 1.39 | W36: 1.354165098 | X36: 1.41 | Y36: 1.39 | Z36: 2.37137706 | AA36: 1.34 | AB36: 1.479138229 | AC36: 1.577021028 | AD36: 1.577021028 | AE36: 1.577021028 | AF36: 1.577021028 | AG36: 1.577021028 | AH36: 2.016274681 | AI36: 1.710893963 | AJ36: 1.593484011
A37: Mar-18 | B37: 1.958728431 | O37: 1.08 | P37: 1.111185077 | Q37: 1.11 | R37: 1.08 | S37: 1.11 | T37: 1.11 | U37: 1.11 | V37: 1.11 | W37: 1.061761359 | X37: 1.15 | Y37: 1.11 | Z37: 1.958870517 | AA37: 1.52 | AB37: 1.694818887 | AC37: 1.806869936 | AD37: 1.806869936 | AE37: 1.806869936 | AF37: 1.806869936 | AG37: 1.806869936 | AH37: 1.944323131 | AI37: 1.640654807 | AJ37: 1.519431014 | AK37: 1.519431014
A38: Apr-18 | B38: 1.897945144 | Z38: 1.201918903 | AA38: 1.27 | AB38: 1.364128345 | AC38: 1.609260565 | AD38: 1.609260565 | AE38: 1.609260565 | AF38: 1.696179146 | AG38: 1.696179146 | AH38: 2.079218328 | AI38: 1.786468292 | AJ38: 1.71492188 | AK38: 1.861338959 | AL38: 1.861338959
A39: May-18 | B39: 2.172677263 | Z39: 1.499864328 | AA39: 1.64 | AB39: 1.742510243 | AC39: 2.055637234 | AD39: 2.055637234 | AE39: 2.055637234 | AF39: 2.016141155 | AG39: 2.016141155 | AH39: 2.536685592 | AI39: 2.08005581 | AJ39: 2.004228694 | AK39: 2.359478131 | AL39: 2.359478131 | AM39: 2.359478131 | AN39: 2.110805676
A40: Jun-18 | B40: 2.996020927 | Z40: 1.615669228 | AA40: 1.84 | AB40: 1.948716311 | AC40: 2.298898285 | AD40: 2.298898285 | AE40: 2.298898285 | AF40: 2.198586908 | AG40: 2.198586908 | AH40: 2.731980285 | AI40: 2.400560403 | AJ40: 2.21090209 | AK40: 2.342028226 | AL40: 2.342028226 | AM40: 2.342028226 | AN40: 2.428692218 | AO40: 2.81377427
A41: Jul-18 | B41: 2.730910577 | Z41: 2.028718304 | AA41: 2 | AB41: 2.107395574 | AC41: 2.486092019 | AD41: 2.486092019 | AE41: 2.486092019 | AF41: 2.149230027 | AG41: 2.149230027 | AH41: 2.828171852 | AI41: 2.510968252 | AJ41: 2.323713879 | AK41: 2.488745035 | AL41: 2.488745035 | AM41: 2.488745035 | AN41: 2.706093099 | AO41: 2.90043841 | AP41: 2.744678045
A42: Aug-18 | B42: 2.562392124 | Z42: 2.133971452 | AA42: 1.9 | AB42: 2.007885168 | AC42: 2.368699713 | AD42: 2.368699713 | AE42: 2.368699713 | AF42: 2.215092322 | AG42: 2.215092322 | AH42: 2.939953151 | AI42: 2.594705817 | AJ42: 2.407146611 | AK42: 2.510129213 | AL42: 2.510129213 | AM42: 2.510129213 | AN42: 2.764692745 | AO42: 2.960626994 | AP42: 2.960626994 | AQ42: 2.874769722
A43: Sep-18 | B43: 4.432898632 | Z43: 2.567221382 | AA43: 1.77 | AB43: 1.868721168 | AC43: 2.204528111 | AD43: 2.204528111 | AE43: 2.204528111 | AF43: 1.80936353 | AG43: 1.80936353 | AH43: 2.746467066 | AI43: 2.427065419 | AJ43: 2.24726663 | AK43: 2.409569685 | AL43: 2.409569685 | AM43: 2.409569685 | AN43: 2.746501969 | AO43: 2.746501969 | AP43: 2.746501969 | AQ43: 2.746501969 | AR43: 3.342097769
A44: Oct-18 | Z44: 1.831553272 | AA44: 1.62 | AB44: 1.708057036 | AC44: 2.014992827 | AD44: 2.014992827 | AE44: 2.014992827 | AF44: 1.416596196 | AG44: 1.416596196 | AH44: 2.482812752 | AI44: 2.189761178 | AJ44: 1.957631908 | AK44: 2.088427564 | AL44: 2.088427564 | AM44: 2.088427564 | AN44: 2.483879746 | AO44: 2.483879746 | AP44: 2.483879746 | AQ44: 2.483879746 | AR44: 2.485411923 | AS44: 3.321932934
A45: Nov-18 | Z45: 2.447902522 | AA45: 2.4 | AB45: 2.489160422 | AC45: 2.936459551 | AD45: 2.936459551 | AE45: 2.936459551 | AF45: 1.922884599 | AG45: 1.922884599 | AH45: 2.346297933 | AI45: 1.965426161 | AJ45: 1.746395413 | AK45: 1.986840499 | AL45: 1.986840499 | AM45: 1.986840499 | AN45: 2.270142279 | AO45: 2.270142279 | AP45: 2.270142279 | AQ45: 2.270142279 | AR45: 2.209837937 | AS45: 2.330161303
A46: Dec-18 | Z46: 1.583340337 | AA46: 1.75 | AB46: 1.835514996 | AC46: 2.165354829 | AD46: 2.165354829 | AE46: 2.165354829 | AF46: 1.873027705 | AG46: 1.873027705 | AH46: 2.190825713 | AI46: 1.798821603 | AJ46: 1.592305457 | AK46: 1.851978025 | AL46: 1.851978025 | AM46: 1.851978025 | AN46: 2.033526669 | AO46: 2.033526669 | AP46: 2.033526669 | AQ46: 2.033526669 | AR46: 1.989642024 | AS46: 2.012807031
A47: Jan-19 | Z47: 1.308423438 | AA47: 1.53 | AB47: 1.609263718 | AC47: 1.898446469 | AD47: 1.898446469 | AE47: 1.898446469 | AF47: 1.581882956 | AG47: 1.581882956 | AH47: 2.042307191 | AI47: 1.691398251 | AJ47: 1.488953342 | AK47: 1.710139508 | AL47: 1.710139508 | AM47: 1.710139508 | AN47: 1.721707443 | AO47: 1.721707443 | AP47: 1.721707443 | AQ47: 1.721707443 | AR47: 1.678380739 | AS47: 1.701730968
A48: Feb-19 | Z48: 1.305459535 | AA48: 1.1 | AB48: 1.172054118 | AC48: 1.382670831 | AD48: 1.382670831 | AE48: 1.382670831 | AF48: 1.173568089 | AG48: 1.173568089 | AH48: 1.98952749 | AI48: 1.682248323 | AJ48: 1.464285014 | AK48: 1.631670289 | AL48: 1.631670289 | AM48: 1.631670289 | AN48: 1.888886928 | AO48: 1.888886928 | AP48: 1.888886928 | AQ48: 1.888886928 | AR48: 1.888886928 | AS48: 1.911593481
A49: Mar-19 | Z49: 1.466896435 | AA49: 1.02 | AB49: 1.102467433 | AC49: 1.300579502 | AD49: 1.300579502 | AE49: 1.300579502 | AF49: 1.130316139 | AG49: 1.130316139 | AH49: 1.970532538 | AI49: 1.667823796 | AJ49: 1.451731762 | AK49: 1.615972918 | AL49: 1.615972918 | AM49: 1.615972918 | AN49: 1.88307349 | AO49: 1.88307349 | AP49: 1.88307349 | AQ49: 1.88307349 | AR49: 1.84150464 | AS49: 1.86490428
A50: Apr-19 | AN50: 2.253799634 | AO50: 2.253799634 | AP50: 2.253799634 | AQ50: 2.281759318 | AR50: 2.222683112 | AS50: 2.222683112
A51: May-19 | AN51: 2.478888417 | AO51: 2.478888417 | AP51: 2.478888417 | AQ51: 2.507326893 | AR51: 2.426622171 | AS51: 2.426622171
A52: Jun-19 | AN52: 2.521506887 | AO52: 2.521506887 | AP52: 2.521506887 | AQ52: 2.551325321 | AR52: 2.466498317 | AS52: 2.466498317
A53: Jul-19 | AN53: 2.529443386 | AO53: 2.692841773 | AP53: 2.692841773 | AQ53: 2.722951692 | AR53: 2.635589662 | AS53: 2.635589662
A54: Aug-19 | AN54: 2.821296592 | AO54: 2.650150324 | AP54: 2.821296592 | AQ54: 2.851652685 | AR54: 2.76510679 | AS54: 2.76510679
A55: Sep-19 | AN55: 2.832126807 | AO55: 2.832126807 | AP55: 2.660417693 | AQ55: 2.860195256 | AR55: 2.751486523 | AS55: 2.751486523
A56: Oct-19 | AN56: 2.657155588 | AO56: 2.657155588 | AP56: 2.657155588 | AQ56: 2.683581681 | AR56: 2.607425591 | AS56: 2.607425591
A57: Nov-19 | AN57: 2.317877471 | AO57: 2.317877471 | AP57: 2.317877471 | AQ57: 2.340358442 | AR57: 2.276188437 | AS57: 2.276188437
A58: Dec-19 | AN58: 2.099651106 | AO58: 2.099651106 | AP58: 2.099651106 | AQ58: 2.121900519 | AR58: 2.059636836 | AS58: 2.059636836
A59: Jan-20 | AN59: 1.918239022 | AO59: 1.918239022 | AP59: 1.918239022 | AQ59: 1.940666337 | AR59: 1.87919426 | AS59: 1.87919426
A60: Feb-20 | AN60: 2.041197978 | AO60: 2.041197978 | AP60: 2.041197978 | AQ60: 2.063007057 | AR60: 2.033841649 | AS60: 2.033841649
A61: Mar-20 | AN61: 1.91559139 | AO61: 1.91559139 | AP61: 1.91559139 | AQ61: 1.938066163 | AR61: 1.906288465 | AS61: 1.906288465
A62: Apr-20 | AN62: 2.254159727 | AO62: 2.254159727 | AP62: 2.254159727 | AQ62: 2.28211941 | AR62: 2.257464844 | AS62: 2.257464844
A63: May-20 | AO63: 2.478888417 | AP63: 2.478888417 | AQ63: 2.507326893 | AR63: 2.480655618 | AS63: 2.480655618
A64: Jun-20 | AP64: 2.521506887 | AQ64: 2.551325321 | AR64: 2.523652041 | AS64: 2.523652041
A65: Jul-20 | AQ65: 2.722951692 | AR65: 2.700421786 | AS65: 2.700421786
A66: Aug-20 | AR66: 2.853057257 | AS66: 2.853057257
A67: Sep-20 | AS67: 2.786107128

Sheet Error Stats
A1: Month | B1: Actual | C1: Month ahead forecast | D1: AE | E1: APE | F1: RMSE | K1: Year ahead forecast | L1: Outturn | M1: APE
A2: Oct-17 | B2: 3.107035853 | C2: 2.234856583 | D2: =ABS(B2-C2) -> 0.8721792701 | E2: =ABS((B2-C2)/B2) -> 0.2807110414 | F2: =D2^2 -> 0.7606966791 | J2: 13/14 | K2: 1.5 | L2: 1.72 | M2: =ABS((L2-K2)/L2) -> 0.1279069767
A3: Nov-17 | B3: 2.07142731 | C3: 2.878737312 | D3: 0.8073100018 | E3: 0.3897361002 | F3: 0.651749439 | J3: 14/15 | K3: 1.51 | L3: 1.91 | M3: =ABS((L3-K3)/L3) -> 0.2094240838
A4: Dec-17 | B4: 2.196825583 | C4: 2.067419253 | D4: 0.1294063303 | E4: 0.05890605575 | F4: 0.01674599832 | J4: 15/16 | K4: 1.71 | L4: 2 | M4: 0.145
A5: Jan-18 | B5: 1.92860422 | C5: 1.510336881 | D5: 0.4182673395 | E5: 0.2168756736 | F5: 0.1749475673 | J5: 16/17 | K5: 1.63 | L5: 2.47 | M5: 0.3400809717
A6: Feb-18 | B6: 1.514123289 | C6: 1.593484011 | D6: 0.07936072179 | E6: 0.05241364582 | F6: 0.006298124164 | J6: 17/18 | K6: 1.73 | L6: 2.31 | M6: 0.2510822511
A7: Mar-18 | B7: 1.958728431 | C7: 1.519431014 | D7: 0.4392974168 | E7: 0.2242768369 | F7: 0.1929822204 | J7: 18/19 | K7: 2.23
A8: Apr-18 | B8: 1.897945144 | C8: 1.861338959 | D8: 0.036606185 | E8: 0.01928727241 | F8: 0.00134001278
A9: May-18 | B9: 2.172677263 | C9: 2.359478131 | D9: 0.1868008678 | E9: 0.08597727373 | F9: 0.03489456421
A10: Jun-18 | B10: 2.996020927 | C10: 2.428692218 | D10: 0.5673287086 | E10: 0.1893607296 | F10: 0.3218618636
A11: Jul-18 | B11: 2.730910577 | C11: 2.90043841 | D11: 0.1695278327 | E11: 0.06207740162 | F11: 0.02873968605
A12: Aug-18 | B12: 2.562392124 | C12: 2.960626994 | D12: 0.3982348696 | E12: 0.1554152723 | F12: 0.1585910114
A13: Sep-18 | B13: 4.432898632 | C13: 2.746501969 | D13: 1.686396663 | E13: 0.3804275267 | F13: 2.843933703

Sheet Data
C1: Date | D1: Total | E1: Energy Imbalance | F1: Operating Reserve | G1: STOR | H1: Constraints - E&W | I1: Constraints - Cheviot | J1: Constraints - Scotland | K1: Constraints - AS | L1: Negative Reserve | M1: Fast Reserve | N1: Response | O1: Other Reserve | P1: Reactive | Q1: Minor Components | R1: Black Start | S1: Total
A2: Y17W40 | B2: Oct-17 | C2: 2017-10-01 | D2: 4.91922342 | E2: 0.053969528 | F2: 0.2354557348 | G2: 0.12263414 | H2: 0.6571186598 | I2: 2.431711136 | J2: 0.08115252607 | K2: 0.1522196986 | L2: 0 | M2: 0.2005696231 | N2: 0.5779137546 | O2: 0.08627693806 | P2: 0.2475220369 | Q2: 0.07267964434 | R2: 0 | S2: 4.91922342
A3: Y17W41 | B3: Oct-17 | C3: 2017-10-02 | D3: 7.77034015 | E3: -0.013123486 | F3: 0.1720314435 | G3: 0.2055457283 | H3: 0.9688480169 | I3: 5.438134221 | J3: 0.1422262041 | K3: 0.004137698592 | L3: 5.272138645e-05 | M3: 0.3021804545 | N3: 0.3556492278 | O3: 0.03603045806 | P3: 0.1698840469 | Q3: -0.01125658553 | R3: 0 | S3: 7.77034015
A4: Y17W41 | B4: Oct-17 | C4: 2017-10-03 | D4: 5.027890781 | E4: -0.200070439 | F4: 0.2251941332 | G4: 0.1900433515 | H4: 0.1978917142 | I4: 3.501605265 | J4: 0.1126753995 | K4: 0.004137698592 | L4: 0.006854448944 | M4: 0.2648881142 | N4: 0.3638111325 | O4: 0.04940406806 | P4: 0.1672749869 | Q4: 0.1441809077 | R4: 0 | S4: 5.027890781
A5: Y17W41 | B5: Oct-17 | C5: 2017-10-04 | D5: 5.996676883 | E5: 0.519997023 | F5: 0.3570771766 | G5: 0.1576761123 | H5: 0.2043067923 | I5: 3.588355796 | J5: 0.09411671979 | K5: 0.004137698592 | L5: 0.1851894864 | M5: 0.286222248 | N5: 0.3206140734 | O5: 0.04249061806 | P5: 0.1826502269 | Q5: 0.05384291167 | R5: 0 | S5: 5.996676883
A6: Y17W41 | B6: Oct-17 | C6: 2017-10-05 | D6: 2.831334318 | E6: 0.225297831 | F6: 0.1160513558 | G6: 0.16077873 | H6: 0.3857949495 | I6: 0.905750078 | J6: 0 | K6: 0.004137698592 | L6: 0.002123347 | M6: 0.3335819587 | N6: 0.4362500633 | O6: 0.04722213806 | P6: 0.1701262169 | Q6: 0.04421995147 | R6: 0 | S6: 2.831334318
A7: Y17W41 | B7: Oct-17 | C7: 2017-10-06 | D7: 2.388266098 | E7: 0.221189842 | F7: 0.04151006742 | G7: 0.3241172221 | H7: 0.4092523081 | I7: 0.4189732142 | J7: 0 | K7: 0.004137698592 | L7: 0.009664708699 | M7: 0.2894537638 | N7: 0.3824233252 | O7: 0.04744125806 | P7: 0.1979803869 | Q7: 0.04212230304 | R7: 0 | S7: 2.388266098
A8: Y17W41 | B8: Oct-17 | C8: 2017-10-07 | D8: 3.412080595 | E8: 0.253797211 | F8: 0.169960106 | G8: 0.14036831 | H8: 0.3409356882 | I8: 1.523390979 | J8: 0 | K8: 0.07563769859 | L8: 0.002451915779 | M8: 0.1957819966 | N8: 0.4196874537 | O8: 0.04458728806 | P8: 0.2081468569 | Q8: 0.03733509055 | R8: 0 | S8: 3.412080595
A9: Y17W41 | B9: Oct-17 | C9: 2017-10-08 | D9: 1.934758021 | E9: 0.151215674 | F9: 0.2095124633 | G9: 0.06601871 | H9: 0.4741115215 | I9: 0 | J9: 0 | K9: 0.05913769859 | L9: 0.01122261855 | M9: 0.2089454602 | N9: 0.3743105674 | O9: 0.04657296806 | P9: 0.2876357969 | Q9: 0.04607454222 | R9: 0 | S9: 1.934758021
A10: Y17W42 | B10: Oct-17 | C10: 2017-10-09 | D10: 2.00789206 | E10: 0.325266284 | F10: 0.2199335668 | G10: 0.2179674719 | H10: 0.1837865323 | I10: 0.1305551082 | J10: 0.01055233795 | K10: 0.004137698592 | L10: 0 | M10: 0.2679728089 | N10: 0.331465827 | O10: 0.04737528806 | P10: 0.2125140769 | Q10: 0.05636505984 | R10: 0 | S10: 2.00789206
A11: Y17W42 | B11: Oct-17 | C11: 2017-10-10 | D11: 2.531029406 | E11: -0.604898112 | F11: 0.08497315044 | G11: 0.14216684 | H11: 0.1849384843 | I11: 1.771167724 | J11: 0.1348437436 | K11: 0.01456330859 | L11: 0.001401821247 | M11: 0.1478699626 | N11: 0.3486790048 | O11: 0.06278525806 | P11: 0.1777707369 | Q11: 0.0647674827 | R11: 0 | S11: 2.531029406
A12: Y17W42 | B12: Oct-17 | C12: 2017-10-11 | D12: 3.66524494 | E12: -0.028415589 | F12: 0.1873919618 | G12: 0.14419389 | H12: 0.01239491294 | I12: 2.254198159 | J12: 0.150446771 | K12: 0.03539559859 | L12: 0.001105552 | M12: 0.2308764276 | N12: 0.3947882052 | O12: 0.04833974806 | P12: 0.1670682269 | Q12: 0.06746107605 | R12: 0 | S12: 3.66524494
A13: Y17W42 | B13: Oct-17 | C13: 2017-10-12 | D13: 4.004662515 | E13: -0.579492869 | F13: 0.123115753 | G13: 0.27095261 | H13: 0.2593486359 | I13: 2.415736841 | J13: 0.2507506419 | K13: 0.007082688592 | L13: 0.2330670597 | M13: 0.2501192832 | N13: 0.4329130481 | O13: 0.06180649806 | P13: 0.1654447469 | Q13: 0.1138175776 | R13: 0 | S13: 4.004662515
A14: Y17W42 | B14: Oct-17 | C14: 2017-10-13 | D14: 7.288713338 | E14: 0.38279963 | F14: 0.2248772552 | G14: 0.15008065 | H14: 0.1377909259 | I14: 5.681188615 | J14: 0 | K14: 0.004137698592 | L14: 0.0005892386407 | M14: 0.2071243047 | N14: 0.3827247609 | O14: 0.04603814806 | P14: 0.1648851169 | Q14: -0.09352300576 | R14: 0 | S14: 7.288713338
A15: Y17W42 | B15: Oct-17 | C15: 2017-10-14 | D15: 3.132259097 | E15: 0.012058332 | F15: 0.0616563282 | G15: 0.2496276239 | H15: 0.05582889582 | I15: 1.850220488 | J15: 0 | K15: 0.004137698592 | L15: 0.01886024579 | M15: 0.2709566763 | N15: 0.3846294496 | O15: 0.04825094806 | P15: 0.183089099 | Q15: -0.007056687882 | R15: 0 | S15: 3.132259097
A16: Y17W42 | B16: Oct-17 | C16: 2017-10-15 | D16: 5.971042356 | E16: 0.109726386 | F16: 0.2666839493 | G16: 0.1804074676 | H16: 0.3389586407 | I16: 4.026873285 | J16: 0.07600365752 | K16: 0.004137698592 | L16: 0.01392438302 | M16: 0.3201695394 | N16: 0.3680080744 | O16: 0.04403493806 | P16: 0.1942437703 | Q16: 0.02787056646 | R16: 0 | S16: 5.971042356
A17: Y17W43 | B17: Oct-17 | C17: 2017-10-16 | D17: 3.519523425 | E17: 0.304976385 | F17: 0.3930553252 | G17: 0.2404174975 | H17: 0.1935150796 | I17: 1.459109451 | J17: 0.04826334305 | K17: 0.004137698592 | L17: 0.02063886222 | M17: 0.2730904786 | N17: 0.3166987628 | O17: 0.03273414806 | P17: 0.2136901569 | Q17: 0.01919623607 | R17: 0 | S17: 3.519523425
A18: Y17W43 | B18: Oct-17 | C18: 2017-10-17 | D18: 3.532815769 | E18: -0.3878676 | F18: 0.2166386885 | G18: 0.281599414 | H18: -0.03803372896 | I18: 2.509121318 | J18: 0.05372042999 | K18: 0.004137698592 | L18: 0.001243884206 | M18: 0.2113174703 | N18: 0.3930502561 | O18: 0.02264413806 | P18: 0.2003220469 | Q18: 0.06492175314 | R18: 0 | S18: 3.532815769
A19: Y17W43 | B19: Oct-17 | C19: 2017-10-18 | D19: 1.926442759 | E19: 0.018485637 | F19: 0.2562455136 | G19: 0.2596031434 | H19: 0.1258620062 | I19: 0 | J19: 0 | K19: 0.004137698592 | L19: 0.0464273351 | M19: 0.314973888 | N19: 0.3166496082 | O19: 0.2407667881 | P19: 0.2313970569 | Q19: 0.1118940838 | R19: 0 | S19: 1.926442759
A20: Y17W43 | B20: Oct-17 | C20: 2017-10-19 | D20: 1.724079473 | E20: -0.018628174 | F20: 0.1928977786 | G20: 0.2188800075 | H20: 0.04067371681 | I20: 0.2102822527 | J20: 0.1249960658 | K20: 0.01427102859 | L20: 0.0194317088 | M20: 0.2277410124 | N20: 0.3644219413 | O20: 0.07799420806 | P20: 0.1958157869 | Q20: 0.05530213961 | R20: 0 | S20: 1.724079473
A21: Y17W43 | B21: Oct-17 | C21: 2017-10-20 | D21: 1.29552002 | E21: -0.425407105 | F21: 0.2778941759 | G21: 0.1564249377 | H21: 0.2546128271 | I21: 0.1642803841 | J21: 0.0147334638 | K21: 0.07950434359 | L21: 0.003104303144 | M21: 0.1910000571 | N21: 0.3102472258 | O21: 0.04656713806 | P21: 0.1891717169 | Q21: 0.03338655222 | R21: 0 | S21: 1.29552002
A22: Y17W43 | B22: Oct-17 | C22: 2017-10-21 | D22: 4.216234097 | E22: -0.231735908 | F22: 0.330783116 | G22: 0.14404467 | H22: 1.033983675 | I22: 1.54371079 | J22: 0.05731713178 | K22: 0.1160376986 | L22: 0.002131064169 | M22: 0.1645036993 | N22: 0.3270570106 | O22: 0.04604140806 | P22: 0.2296548969 | Q22: 0.4527048444 | R22: 0 | S22: 4.216234097
A23: Y17W43 | B23: Oct-17 | C23: 2017-10-22 | D23: 2.855581541 | E23: -0.163587074 | F23: 0.18187584 | G23: 0.1515662 | H23: 0.8115137365 | I23: 0.3056101608 | J23: 0.09624731481 | K23: 0.2036200586 | L23: 0.00150483238 | M23: 0.2626920548 | N23: 0.3237252125 | O23: 0.04394964806 | P23: 0.2202669369 | Q23: 0.4165966195 | R23: 0 | S23: 2.855581541
A24: Y17W44 | B24: Oct-17 | C24: 2017-10-23 | D24: 1.783371929 | E24: -0.127707577 | F24: 0.08350294354 | G24: 0.314760935 | H24: 0.3275538054 | I24: 0.204521264 | J24: 0 | K24: 0.07238869859 | L24: 5.139e-06 | M24: 0.2475712881 | N24: 0.3564802238 | O24: 0.03490046806 | P24: 0.2090208869 | Q24: 0.06037385373 | R24: 0 | S24: 1.783371929
A25: Y17W44 | B25: Oct-17 | C25: 2017-10-24 | D25: 1.895365874 | E25: -0.25380278 | F25: 0.04877345283 | G25: 0.1602064 | H25: 0.1979193826 | I25: 0.654503116 | J25: 0 | K25: 0.08013767359 | L25: 9.972e-05 | M25: 0.2811703918 | N25: 0.3564819594 | O25: 0.03196188806 | P25: 0.2095402469 | Q25: 0.1283744225 | R25: 0 | S25: 1.895365874
A26: Y17W44 | B26: Oct-17 | C26: 2017-10-25 | D26: 2.96909062 | E26: -0.702434043 | F26: 0.05082889589 | G26: 0.201902915 | H26: 0.3031756445 | I26: 2.124964127 | J26: 0 | K26: 0.08013767359 | L26: 0 | M26: 0.2127062948 | N26: 0.4123389892 | O26: 0.04492705806 | P26: 0.1775911469 | Q26: 0.06295191871 | R26: 0 | S26: 2.96909062
A27: Y17W44 | B27: Oct-17 | C27: 2017-10-26 | D27: 3.110682933 | E27: -0.462156499 | F27: 0.09366319613 | G27: 0.28408874 | H27: 0.1880856219 | I27: 1.835141344 | J27: 0.1624047384 | K27: 0.1234161036 | L27: 5.4912e-05 | M27: 0.245481911 | N27: 0.3402412333 | O27: 0.03120428806 | P27: 0.2083316169 | Q27: 0.06072572678 | R27: 0 | S27: 3.110682933
A28: Y17W44 | B28: Oct-17 | C28: 2017-10-27 | D28: 1.371752164 | E28: -0.619734877 | F28: 0.06251274824 | G28: 0.25053982 | H28: 0.1039117392 | I28: 0.3820704119 | J28: 0.1805023752 | K28: 0.1946147986 | L28: 0.009510827565 | M28: 0.1602306069 | N28: 0.3230791198 | O28: 0.03049594806 | P28: 0.2108572469 | Q28: 0.08316139922 | R28: 0 | S28: 1.371752164
A29: Y17W44 | B29: Oct-17 | C29: 2017-10-28 | D29: 8.103612743 | E29: -0.404350274 | F29: 0.3918761135 | G29: 0.15965513 | H29: 0.5291859118 | I29: 5.147121474 | J29: 0.9732274953 | K29: 0.07084877859 | L29: 0.000723486 | M29: 0.2011616589 | N29: 0.3885617979 | O29: 0.03775355806 | P29: 0.1828457569 | Q29: 0.4250018561 | R29: 0 | S29: 8.103612743
A30: Y17W44 | B30: Oct-17 | C30: 2017-10-29 | D30: 4.685743896 | E30: -0.164621665 | F30: 0.193839742 | G30: 0.13023655 | H30: 0.5064297698 | I30: 2.018739291 | J30: 0.1143864225 | K30: 0.08267102859 | L30: 0.1770878486 | M30: 0.2797282718 | N30: 0.3988515265 | O30: 0.04968198806 | P30: 0.2754968169 | Q30: 0.6232163053 | R30: 0 | S30: 4.685743896
A31: Y17W45 | B31: Oct-17 | C31: 2017-10-30 | D31: 1.510420794 | E31: -0.146244078 | F31: 0.2536105046 | G31: 0.217412987 | H31: 0.2626192064 | I31: 0 | J31: 0 | K31: 0.08013767359 | L31: 0 | M31: 0.2177031123 | N31: 0.3261755047 | O31: 0.03279694806 | P31: 0.2428495269 | Q31: 0.02335940872 | R31: 0 | S31: 1.510420794
A32: Y17W45 | B32: Oct-17 | C32: 2017-10-31 | D32: 2.059547419 | E32: 0.112981418 | F32: 0.2953939177 | G32: 0.2840907577 | H32: 0.3058821156 | I32: 0.1056214944 | J32: 0 | K32: 0.07507100859 | L32: 0.01924428696 | M32: 0.3047173755 | N32: 0.3124263932 | O32: 0.02743625806 | P32: 0.1805255469 | Q32: 0.03615684608 | R32: 0 | S32: 2.059547419
A33: Y17W45 | B33: Nov-17 | C33: 2017-11-01 | D33: 2.467476213 | E33: -0.066392769 | F33: 0.08098874096 | G33: 0.208826801 | H33: 0.2124512645 | I33: 0.8747760838 | J33: 0 | K33: 0.08362323859 | L33: 0.002780874645 | M33: 0.2097280944 | N33: 0.5030390863 | O33: 0.02278031 | P33: 0.3167303091 | Q33: 0.0181441784 | R33: 0 | S33: 2.467476213
A34: Y17W45 | B34: Nov-17 | C34: 2017-11-02 | D34: 1.808659577 | E34: 0.041457552 | F34: 0.305515806 | G34: 0.3233135392 | H34: 0.08618531864 | I34: 0 | J34: 0 | K34: 0.1408198186 | L34: 0.03227845008 | M34: 0.2236164014 | N34: 0.3244900306 | O34: 0.04360985 | P34: 0.2150066491 | Q34: 0.07236616095 | R34: 0 | S34: 1.808659577
A35: Y17W45 | B35: Nov-17 | C35: 2017-11-03 | D35: 0.9168361865 | E35: -0.618833637 | F35: 0.1733354017 | G35: 0.30692081 | H35: 0.06531813262 | I35: 0 | J35: 0 | K35: 0.1892133686 | L35: 0.005093652269 | M35: 0.1670202843 | N35: 0.2893057916 | O35: 0.03812582 | P35: 0.2128349591 | Q35: 0.08850160332 | R35: 0 | S35: 0.9168361865
A36: Y17W45 | B36: Nov-17 | C36: 2017-11-04 | D36: 1.50298971 | E36: -0.406802249 | F36: 0.3480847613 | G36: 0.2740876073 | H36: 0.211259342 | I36: 0.1208341075 | J36: 0 | K36: 0.1298909786 | L36: 0.007338043842 | M36: 0.1867501655 | N36: 0.2952677319 | O36: 0.04043938 | P36: 0.2162444491 | Q36: 0.07959539238 | R36: 0 | S36: 1.50298971
A37: Y17W45 | B37: Nov-17 | C37: 2017-11-05 | D37: 1.842192036 | E37: -0.414594156 | F37: 0.08605913038 | G37: 0.1749707007 | H37: 0.4793413652 | I37: 0.5104557533 | J37: 0 | K37: 0.07569321859 | L37: 4.259102154e-05 | M37: 0.2194112982 | N37: 0.3228400063 | O37: 0.04169204 | P37: 0.2705273191 | Q37: 0.07575276914 | R37: 0 | S37: 1.842192036
A38: Y17W46 | B38: Nov-17 | C38: 2017-11-06 | D38: 2.997432109 | E38: -0.57953991 | F38: 0.1677507149 | G38: 0.30487262 | H38: 1.55573297 | I38: 0 | J38: 0.6217191845 | K38: 0.01144830859 | L38: 0.01396700338 | M38: 0.2624559961 | N38: 0.2960700739 | O38: 0.0414347 | P38: 0.2218477791 | Q38: 0.07967266866 | R38: 0 | S38: 2.997432109
A39: Y17W46 | B39: Nov-17 | C39: 2017-11-07 | D39: 2.798652869 | E39: -0.157901788 | F39: 0.09553631996 | G39: 0.2908076306 | H39: 0.8000302643 | I39: 0 | J39: 0.2410417232 | K39: 0.01013729859 | L39: 0.06837529446 | M39: 0.2676105517 | N39: 0.3218843691 | O39: 0.03088288 | P39: 0.1786166391 | Q39: 0.6516316862 | R39: 0 | S39: 2.798652869
A40: Y17W46 | B40: Nov-17 | C40: 2017-11-08 | D40: 2.69101733 | E40: -0.297957664 | F40: 0.4124548021 | G40: 0.2825055906 | H40: 1.060484455 | I40: 0 | J40: 0 | K40: 0.1013133786 | L40: 0.03527245019 | M40: 0.2168873862 | N40: 0.269421166 | O40: 0.03467507 | P40: 0.2026338891 | Q40: 0.3733268064 | R40: 0 | S40: 2.69101733
A41: Y17W46 | B41: Nov-17 | C41: 2017-11-09 | D41: 5.945369727 | E41: -0.251976726 | F41: 0.2353516154 | G41: 0.4040776294 | H41: 0.2010545851 | I41: 4.443286112 | J41: 0.01212558 | K41: 0.02727977859 | L41: 0.0001243752943 | M41: 0.2670256671 | N41: 0.3139882137 | O41: 0.04140255 | P41: 0.1645446391 | Q41: 0.08708570737 | R41: 0 | S41: 5.945369727
A42: Y17W46 | B42: Nov-17 | C42: 2017-11-10 | D42: 5.044571181 | E42: -0.414555072 | F42: 0.1719178217 | G42: 0.27295492 | H42: 0.2908749703 | I42: 3.707906139 | J42: 0 | K42: 0.06723701859 | L42: 0.03349140041 | M42: 0.2223196514 | N42: 0.3691712675 | O42: 0.03652893 | P42: 0.1464016891 | Q42: 0.1403224452 | R42: 0 | S42: 5.044571181
A43: Y17W46 | B43: Nov-17 | C43: 2017-11-11 | D43: 2.059049788 | E43: 0.149914607 | F43: 0.07467271482 | G43: 0.32105345 | H43: 0.2084391975 | I43: 0.3340313475 | J43: 0 | K43: 0.09817101859 | L43: 0.01545553006 | M43: 0.2045224868 | N43: 0.3292796461 | O43: 0.04498311 | P43: 0.2048495991 | Q43: 0.07367708029 | R43: 0 | S43: 2.059049788
A44: Y17W46 | B44: Nov-17 | C44: 2017-11-12 | D44: 2.730365945 | E44: -0.05973638 | F44: 0.1584768321 | G44: 0.18861812 | H44: 0.3589671016 | I44: 1.199792926 | J44: 0 | K44: 0.06469467859 | L44: 0.0002733726004 | M44: 0.1926329025 | N44: 0.3446623728 | O44: 0.04882184 | P44: 0.2077161091 | Q44: 0.02544607053 | R44: 0 | S44: 2.730365945
A45: Y17W47 | B45: Nov-17 | C45: 2017-11-13 | D45: 1.722207508 | E45: -0.275923196 | F45: 0.06622985554 | G45: 0.280900186 | H45: 0.6720693219 | I45: 0.2967228592 | J45: 0 | K45: 0.05419817859 | L45: 0.003396264138 | M45: 0.2012621302 | N45: 0.3058577395 | O45: 0.0575355 | P45: 0.2051367891 | Q45: -0.1451781206 | R45: 0 | S45: 1.722207508
A46: Y17W47 | B46: Nov-17 | C46: 2017-11-14 | D46: 1.296523571 | E46: -0.603366295 | F46: 0.09077217592 | G46: 0.2613649 | H46: 0.1529917379 | I46: 0.5641094221 | J46: 0 | K46: 0.06435499859 | L46: 0 | M46: 0.1679111391 | N46: 0.3146961876 | O46: 0.0358491 | P46: 0.2046056991 | Q46: 0.04323450572 | R46: 0 | S46: 1.296523571
A47: Y17W47 | B47: Nov-17 | C47: 2017-11-15 | D47: 2.128446451 | E47: -0.138911582 | F47: 0.1709984439 | G47: 0.28105706 | H47: 0.06754854066 | I47: 0.849666066 | J47: 0.003832097258 | K47: 0.09538587859 | L47: 0 | M47: 0.1886065105 | N47: 0.3091448717 | O47: 0.0320172 | P47: 0.2132671591 | Q47: 0.05583420522 | R47: 0 | S47: 2.128446451
A48: Y17W47 | B48: Nov-17 | C48: 2017-11-16 | D48: 3.84063884 | E48: -0.293131739 | F48: 0.1348254537 | G48: 0.306719319 | H48: 2.587818114 | I48: 0 | J48: 0.08236076184 | K48: 0.1097228286 | L48: 0.01214592401 | M48: 0.2795526301 | N48: 0.32555512 | O48: 0.04133773 | P48: 0.1868193991 | Q48: 0.06691329904 | R48: 0 | S48: 3.84063884
A49: Y17W47 | B49: Nov-17 | C49: 2017-11-17 | D49: 4.15343231 | E49: 0.04733728 | F49: 0.1373073987 | G49: 0.319039534 | H49: 2.599419443 | I49: 0 | J49: 0.03386877499 | K49: 0.06327058859 | L49: 0.0283632732 | M49: 0.2894422188 | N49: 0.325481945 | O49: 0.05992693 | P49: 0.2114866491 | Q49: 0.0384882748 | R49: 0 | S49: 4.15343231
A50: Y17W47 | B50: Nov-17 | C50: 2017-11-18 | D50: 4.833258378 | E50: 0.062645416 | F50: 0.1667768029 | G50: 0.5598228063 | H50: 0.03160856236 | I50: 0 | J50: 2.882554508 | K50: 0.05563899859 | L50: 0.02459953747 | M50: 0.3929149795 | N50: 0.3569662613 | O50: 0.03711303 | P50: 0.1883200291 | Q50: 0.07429744604 | R50: 0 | S50: 4.833258378
A51: Y17W47 | B51: Nov-17 | C51: 2017-11-19 | D51: 1.431777941 | E51: -0.027037779 | F51: 0.1017386677 | G51: 0.1848714301 | H51: 0.01506461743 | I51: 0 | J51: 0.1882978357 | K51: 0.05414205859 | L51: 0.0002257807487 | M51: 0.1986631236 | N51: 0.3517792251 | O51: 0.0428869 | P51: 0.2671730191 | Q51: 0.05397306236 | R51: 0 | S51: 1.431777941
A52: Y17W48 | B52: Nov-17 | C52: 2017-11-20 | D52: 1.330662544 | E52: -0.206502867 | F52: 0.2532686808 | G52: 0.27164277 | H52: 0.001216433182 | I52: 0.122130702 | J52: 0 | K52: 0.009020738592 | L52: 0.0001317937769 | M52: 0.2432670288 | N52: 0.3435636362 | O52: 0.05011878 | P52: 0.2107053491 | Q52: 0.03209949812 | R52: 0 | S52: 1.330662544
A53: Y17W48 | B53: Nov-17 | C53: 2017-11-21 | D53: 2.106075227 | E53: -0.45745801 | F53: 0.2278615172 | G53: 0.34768614 | H53: 0.901276337 | I53: 0 | J53: 0.1354128553 | K53: 0.09499068859 | L53: 4.989440919e-05 | M53: 0.205235851 | N53: 0.3318378466 | O53: 0.04761668 | P53: 0.2242015091 | Q53: 0.04736391781 | R53: 0 | S53: 2.106075227
A54: Y17W48 | B54: Nov-17 | C54: 2017-11-22 | D54: 3.138759423 | E54: 0.464179083 | F54: 0.3318748255 | G54: 0.3076665905 | H54: 0.6693962359 | I54: 0 | J54: 0.3521805893 | K54: 0.1259548886 | L54: 0.01248362479 | M54: 0.1874740643 | N54: 0.422939983 | O54: 0.04641778 | P54: 0.1939212191 | Q54: 0.02427053888 | R54: 0 | S54: 3.138759423
A55: Y17W48 | B55: Nov-17 | C55: 2017-11-23 | D55: 2.577652311 | E55: 0.131966221 | F55: 0.390086631 | G55: 0.3611088911 | H55: 0.3686117459 | I55: 0 | J55: 0 | K55: 0.1449387386 | L55: 0.1789500639 | M55: 0.2454774382 | N55: 0.4425899329 | O55: 0.04334461 | P55: 0.2073356591 | Q55: 0.06324237895 | R55: 0 | S55: 2.577652311
A56: Y17W48 | B56: Nov-17 | C56: 2017-11-24 | D56: 1.517315619 | E56: -0.173691643 | F56: 0.1881793742 | G56: 0.3266805 | H56: 0.1509316771 | I56: 0.0197427728 | J56: 0 | K56: 0.1816308286 | L56: 0.04834973302 | M56: 0.2707944635 | N56: 0.370833071 | O56: 0.04954733 | P56: 0.2077807391 | Q56: -0.1234632269 | R56: 0 | S56: 1.517315619
A57: Y17W48 | B57: Nov-17 | C57: 2017-11-25 | D57: 3.161528517 | E57: 0.194408666 | F57: 0.3908049525 | G57: 0.2699266036 | H57: 0.3445055512 | I57: 0.5339490466 | J57: 0.7752925421 | K57: 0.1424009786 | L57: 0.005975105532 | M57: 0.2488038559 | N57: 0.3123890112 | O57: 0.0447855 | P57: 0.1725448491 | Q57: -0.274258145 | R57: 0 | S57: 3.161528517
A58: Y17W48 | B58: Nov-17 | C58: 2017-11-26 | D58: 2.815380926 | E58: 0.377638765 | F58: 0.2393083298 | G58: 0.249261583 | H58: 0.1664089274 | I58: 0 | J58: 1.007429853 | K58: 0.1401694686 | L58: 0.0009382694781 | M58: 0.2249049726 | N58: 0.3506658287 | O58: 0.03210782 | P58: 0.1796316891 | Q58: -0.1530845801 | R58: 0 | S58: 2.815380926
A59: Y17W49 | B59: Nov-17 | C59: 2017-11-27 | D59: 2.046705378 | E59: -0.114661565 | F59: 0.1477030576 | G59: 0.30898815 | H59: 0.1208327746 | I59: 1.362072831 | J59: 0.08225118073 | K59: 0.1348675286 | L59: 0.00402246247 | M59: 0.2084017798 | N59: 0.406461073 | O59: 0.0272296 | P59: 0.1824114491 | Q59: -0.8238749435 | R59: 0 | S59: 2.046705378
A60: Y17W49 | B60: Nov-17 | C60: 2017-11-28 | D60: 3.003772869 | E60: 0.223366108 | F60: 0.3913398634 | G60: 0.4152262847 | H60: 0.02330544703 | I60: 0 | J60: 0.7262658027 | K60: 0.07507103859 | L60: 0.001785 | M60: 0.4092068202 | N60: 0.3992873875 | O60: 0.03365126 | P60: 0.2012625791 | Q60: 0.1040052773 | R60: 0 | S60: 3.003772869
A61: Y17W49 | B61: Nov-17 | C61: 2017-11-29 | D61: 3.126264454 | E61: 0.409864153 | F61: 0.1490376144 | G61: 0.28317114 | H61: 0.812552623 | I61: 0.540615313 | J61: 0 | K61: 0.08013769859 | L61: 0.06418505793 | M61: 0.2130370274 | N61: 0.3370539886 | O61: 0.02464467 | P61: 0.1796056691 | Q61: 0.03235949931 | R61: 0 | S61: 3.126264454
A62: Y17W49 | B62: Nov-17 | C62: 2017-11-30 | D62: 2.787970553 | E62: 0.322933378 | F62: 0.2583715993 | G62: 0.25247254 | H62: 1.107260738 | I62: 0.05620449646 | J62: 0 | K62: 0.07507103859 | L62: 0.001035187334 | M62: 0.1828788243 | N62: 0.2929087217 | O62: 0.02541009 | P62: 0.1751454091 | Q62: 0.03827853006 | R62: 0 | S62: 2.787970553
A63: Y17W49 | B63: Dec-17 | C63: 2017-12-01 | D63: 1.953316556 | E63: 0.047044039 | F63: 0.2289968794 | G63: 0.27111932 | H63: 0.2078466721 | I63: 0 | J63: 0 | K63: 0.07283671859 | L63: 1.822e-05 | M63: 0.199936158 | N63: 0.5956474669 | O63: 0.05378886 | P63: 0.2427355969 | Q63: 0.03334662534 | R63: 0 | S63: 1.953316556
A64: Y17W49 | B64: Dec-17 | C64: 2017-12-02 | D64: 1.521100393 | E64: -0.03690141 | F64: 0.1231984413 | G64: 0.29774993 | H64: 0.293849385 | I64: 0 | J64: 0 | K64: 0.1253920386 | L64: 0.00455982242 | M64: 0.1629411673 | N64: 0.3320344043 | O64: 0.04057299 | P64: 0.1964343969 | Q64: -0.01873077298 | R64: 0 | S64: 1.521100393
A65: Y17W49 | B65: Dec-17 | C65: 2017-12-03 | D65: 2.52889216 | E65: 0.444890384 | F65: 0.132610288 | G65: 0.2673924126 | H65: 0.009439541 | I65: 0.641671011 | J65: 0 | K65: 0.08182654859 | L65: 0.0009188099836 | M65: 0.2963076451 | N65: 0.3240518697 | O65: 0.04129809 | P65: 0.2598097769 | Q65: 0.02867578293 | R65: 0 | S65: 2.52889216
A66: Y17W50 | B66: Dec-17 | C66: 2017-12-04 | D66: 1.303987629 | E66: -0.438838883 | F66: 0.3169798619 | G66: 0.31277453 | H66: 0.111795166 | I66: 0 | J66: 0.067445045 | K66: 0.07507103859 | L66: 0 | M66: 0.1854886502 | N66: 0.3579081158 | O66: 0.02948029 | P66: 0.2371271569 | Q66: 0.04875665765 | R66: 0 | S66: 1.303987629
A67: Y17W50 | B67: Dec-17 | C67: 2017-12-05 | D67: 3.983522032 | E67: -0.044611497 | F67: 0.06131845848 | G67: 0.3361451761 | H67: 0.2065961952 | I67: 2.230495787 | J67: 0.03763116804 | K67: 0.07507103859 | L67: 0 | M67: 0.2244842233 | N67: 0.3666218923 | O67: 0.0349785 | P67: 0.1934599169 | Q67: 0.2613311728 | R67: 0 | S67: 3.983522032
A68: Y17W50 | B68: Dec-17 | C68: 2017-12-06 | D68: 7.570844761 | E68: 0.082696179 | F68: 0.4215496858 | G68: 0.3555260519 | H68: 0.2036965032 | I68: 5.335541182 | J68: 0.2971495758 | K68: 0.07507103859 | L68: 0 | M68: 0.2747376029 | N68: 0.3487498543 | O68: 0.02981796 | P68: 0.1978886469 | Q68: -0.05157951943 | R68: 0 | S68: 7.570844761
A69: Y17W50 | B69: Dec-17 | C69: 2017-12-07 | D69: 6.649579361 | E69: -0.040335799 | F69: 0.2845758552 | G69: 0.3767762239 | H69: 0.2099960887 | I69: 4.393721937 | J69: 0.3220374942 | K69: 0.08013769859 | L69: 0 | M69: 0.24946403 | N69: 0.4549438682 | O69: 0.02684322 | P69: 0.2061847969 | Q69: 0.08523394717 | R69: 0 | S69: 6.649579361
A70: Y17W50 | B70: Dec-17 | C70: 2017-12-08 | D70: 2.967092943 | E70: 0.464656113 | F70: 0.2092295847 | G70: 0.3905511573 | H70: 0.1936483393 | I70: 0.3912394368 | J70: 0.3396543933 | K70: 0.08471194859 | L70: 0.006558407301 | M70: 0.2534941696 | N70: 0.4278537342 | O70: 0.0237924 | P70: 0.1704548969 | Q70: 0.01124836176 | R70: 0 | S70: 2.967092943
A71: Y17W50 | B71: Dec-17 | C71: 2017-12-09 | D71: 2.618579898 | E71: 0.536198155 | F71: 0.2641613836 | G71: 0.35239991 | H71: 0.1938861238 | I71: 0 | J71: 0.08002042 | K71: 0.1227173386 | L71: 0.004073125 | M71: 0.4276882487 | N71: 0.3646003914 | O71: 0.0277211 | P71: 0.2217445169 | Q71: 0.02336918536 | R71: 0 | S71: 2.618579898
A72: Y17W50 | B72: Dec-17 | C72: 2017-12-10 | D72: 2.338561922 | E72: 0.633452911 | F72: 0.3949981735 | G72: 0.24398255 | H72: 0 | I72: 0 | J72: 0 | K72: 0.08182654859 | L72: 0.021454885 | M72: 0.2261187243 | N72: 0.3939974994 | O72: 0.05284296 | P72: 0.2655569869 | Q72: 0.0243306829 | R72: 0 | S72: 2.338561922
A73: Y17W51 | B73: Dec-17 | C73: 2017-12-11 | D73: 2.197053566 | E73: 0.019576302 | F73: 0.786089619 | G73: 0.3451827031 | H73: 0.00211453 | I73: 0 | J73: 0 | K73: 0.08751291859 | L73: 0.002500414626 | M73: 0.3319432627 | N73: 0.3306748073 | O73: 0.04039324 | P73: 0.2181851369 | Q73: 0.0328806315 | R73: 0 | S73: 2.197053566
A74: Y17W51 | B74: Dec-17 | C74: 2017-12-12 | D74: 3.013498704 | E74: 0.582099787 | F74: 0.6558522983 | G74: 0.303845166 | H74: 0.376725444 | I74: 0 | J74: 0 | K74: 0.1151790686 | L74: 0.000184813 | M74: 0.3012595039 | N74: 0.3668861198 | O74: 0.02121089 | P74: 0.1976842069 | Q74: 0.09257140605 | R74: 0 | S74: 3.013498704
A75: Y17W51 | B75: Dec-17 | C75: 2017-12-13 | D75: 2.846251284 | E75: 0.945515574 | F75: 0.3745886583 | G75: 0.3404889416 | H75: 0.1902681966 | I75: 0.09769430499 | J75: 0 | K75: 0.004137698592 | L75: 0 | M75: 0.2831187381 | N75: 0.3878558104 | O75: 0.02488099 | P75: 0.1875908469 | Q75: 0.01011152431 | R75: 0 | S75: 2.846251284
A76: Y17W51 | B76: Dec-17 | C76: 2017-12-14 | D76: 1.594204076 | E76: -0.390640486 | F76: 0.2694849387 | G76: 0.27717742 | H76: 0.5872028251 | I76: 0 | J76: 0 | K76: 0.004137698592 | L76: 0.0005251670562 | M76: 0.2289700379 | N76: 0.3732521828 | O76: 0.03627952 | P76: 0.1774467069 | Q76: 0.03036806514 | R76: 0 | S76: 1.594204076
A77: Y17W51 | B77: Dec-17 | C77: 2017-12-15 | D77: 1.593658755 | E77: -0.245516206 | F77: 0.4571681734 | G77: 0.32594136 | H77: 0.1023415576 | I77: 0.06110418041 | J77: 0 | K77: 0.004137698592 | L77: 8.437e-06 | M77: 0.2275969372 | N77: 0.3849027789 | O77: 0.03607297 | P77: 0.1710618369 | Q77: 0.06883903063 | R77: 0 | S77: 1.593658755
A78: Y17W51 | B78: Dec-17 | C78: 2017-12-16 | D78: 2.14560303 | E78: 0.593777471 | F78: 0.1685899038 | G78: 0.32309725 | H78: 0.1558896941 | I78: 0 | J78: 0 | K78: 0.004137698592 | L78: 0 | M78: 0.2521274901 | N78: 0.3455336922 | O78: 0.03413481 | P78: 0.2239955869 | Q78: 0.04431943331 | R78: 0 | S78: 2.14560303
A79: Y17W51 | B79: Dec-17 | C79: 2017-12-17 | D79: 2.345951362 | E79: 0.397174672 | F79: 0.1442429001 | G79: 0.15218793 | H79: 0.1194250653 | I79: 0.6550551538 | J79: 0.01991870821 | K79: 0.01130025859 | L79: 0 | M79: 0.2500548892 | N79: 0.3438084285 | O79: 0.03624883 | P79: 0.1796372669 | Q79: 0.03689725889 | R79: 0 | S79: 2.345951362
A80: Y17W52 | B80: Dec-17 | C80: 2017-12-18 | D80: 1.950822809 | E80: 0.321175702 | F80: 0.2855209927 | G80: 0.3629498956 | H80: 0 | I80: 0.000177625 | J80: 0 | K80: 0.05673697859 | L80: 0 | M80: 0.2706984114 | N80: 0.3748782904 | O80: 0.02819204 | P80: 0.2148861969 | Q80: 0.03560667688 | R80: 0 | S80: 1.950822809
A81: Y17W52 | B81: Dec-17 | C81: 2017-12-19 | D81: 2.089842804 | E81: 0.083359231 | F81: 0.1828729222 | G81: 0.294838 | H81: 0.3179831911 | I81: 0 | J81: 0.3102838378 | K81: 0.05196183859 | L81: 0 | M81: 0.2348777808 | N81: 0.3177057671 | O81: 0.03183578 | P81: 0.2059326969 | Q81: 0.05819175901 | R81: 0 | S81: 2.089842804
A82: Y17W52 | B82: Dec-17 | C82: 2017-12-20 | D82: 2.293830132 | E82: 0.47331642 | F82: 0.04271740008 | G82: 0.36008577 | H82: 0.2184746351 | I82: 0.02825547589 | J82: 0.2653331919 | K82: 0.004137698592 | L82: 2.203059549e-05 | M82: 0.2037817583 | N82: 0.3982890286 | O82: 0.03711534 | P82: 0.2061972469 | Q82: 0.05610413649 | R82: 0 | S82: 2.293830132
A83: Y17W52 | B83: Dec-17 | C83: 2017-12-21 | D83: 1.266525761 | E83: -0.255834677 | F83: 0.3443505814 | G83: 0.2785051475 | H83: 0.06925383864 | I83: 0 | J83: 0 | K83: 0.004137698592 | L83: 0.0029378 | M83: 0.2153026297 | N83: 0.3033991883 | O83: 0.03860717 | P83: 0.2138591269 | Q83: 0.0520072568 | R83: 0 | S83: 1.266525761
A84: Y17W52 | B84: Dec-17 | C84: 2017-12-22 | D84: 1.214481791 | E84: -0.55767426 | F84: 0.0640568696 | G84: 0.341303283 | H84: 0.1459160064 | I84: 0.09530135729 | J84: 0.250845841 | K84: 0.004137698592 | L84: 8.064946455e-05 | M84: 0.2570776487 | N84: 0.3008829983 | O84: 0.03369186 | P84: 0.1935520369 | Q84: 0.08530980151 | R84: 0 | S84: 1.214481791
A85: Y17W52 | B85: Dec-17 | C85: 2017-12-23 | D85: 6.323439457 | E85: -0.03086347 | F85: 0.2956092174 | G85: 0.3914330753 | H85: 0.6190270374 | I85: 4.063232499 | J85: 0 | K85: 0.01494837859 | L85: 0.0010332 | M85: 0.3230920688 | N85: 0.3823241411 | O85: 0.07465475 | P85: 0.2010008069 | Q85: -0.0120522478 | R85: 0 | S85: 6.323439457
A86: Y17W52 | B86: Dec-17 | C86: 2017-12-24 | D86: 4.642714024 | E86: -0.166327877 | F86: 0.3112680629 | G86: 0.15500212 | H86: 0.3920724188 | I86: 0 | J86: 3.056710307 | K86: 0.1087629386 | L86: -0.02622690085 | M86: 0.19597349 | N86: 0.3616376414 | O86: 0.05375084 | P86: 0.1802004269 | Q86: 0.01989055577 | R86: 0 | S86: 4.642714024
A87: Y17W53 | B87: Dec-17 | C87: 2017-12-25 | D87: 2.861202686 | E87: -0.091118954 | F87: 0.2555744693 | G87: 0.16336964 | H87: 1.39118709 | I87: 0 | J87: 0 | K87: 0.1001235386 | L87: 0.007818800684 | M87: 0.1980035774 | N87: 0.4314537529 | O87: 0.057818 | P87: 0.2971866069 | Q87: 0.04978616406 | R87: 0 | S87: 2.861202686
A88: Y17W53 | B88: Dec-17 | C88: 2017-12-26 | D88: 2.88421121 | E88: 0.177117688 | F88: 0.2709545355 | G88: 0.21503015 | H88: 1.050180099 | I88: 0 | J88: 0 | K88: 0.1321882586 | L88: 0.0219095206 | M88: 0.2568187716 | N88: 0.3477179919 | O88: 0.04691841 | P88: 0.3114294869 | Q88: 0.05394629754 | R88: 0 | S88: 2.88421121
A89: Y17W53 | B89: Dec-17 | C89: 2017-12-27 | D89: 2.724015773 | E89: 0.13242441 | F89: 0.2645997437 | G89: 0.37712026 | H89: 0.868780208 | I89: 0 | J89: 0.1104627221 | K89: 0.09605973859 | L89: 3.602507191e-05 | M89: 0.2621680202 | N89: 0.345897157 | O89: 0.03333641 | P89: 0.2141509969 | Q89: 0.01898008116 | R89: 0 | S89: 2.724015773
A90: Y17W53 | B90: Dec-17 | C90: 2017-12-28 | D90: 1.865672051 | E90: 0.003781109 | F90: 0.2676919085 | G90: 0.3494016891 | H90: 0.3080436518 | I90: 0 | J90: 0 | K90: 0.004137698592 | L90: 0.001536738 | M90: 0.2026779454 | N90: 0.3413773908 | O90: 0.11297895 | P90: 0.2321770369 | Q90: 0.04186793326 | R90: 0 | S90: 1.865672051
A91: Y17W53 | B91: Dec-17 | C91: 2017-12-29 | D91: 2.283505842 | E91: 0.38699602 | F91: 0.5334180635 | G91: 0.28777446 | H91: 0.1774129356 | I91: 0 | J91: 0 | K91: 0.01449203859 | L91: 0.001735875 | M91: 0.1905973429 | N91: 0.3308794499 | O91: 0.03571031 | P91: 0.2430231969 | Q91: 0.08146614988 | R91: 0 | S91: 2.283505842
A92: Y17W53 | B92: Dec-17 | C92: 2017-12-30 | D92: 3.062212387 | E92: 0.869795592 | F92: 0.3233841432 | G92: 0.32187352 | H92: 0.3413093674 | I92: 0.2178388575 | J92: 0 | K92: 0.09578821859 | L92: 5.052456792e-05 | M92: 0.2081976509 | N92: 0.3323603758 | O92: 0.04289614 | P92: 0.2386682369 | Q92: 0.0700497606 | R92: 0 | S92: 3.062212387
A93: Y17W53 | B93: Dec-17 | C93: 2017-12-31 | D93: 4.238920936 | E93: 0.216219004 | F93: 0.25186745 | G93: 0.2599736017 | H93: 0.704604147 | I93: 0.939854321 | J93: 0.06634163973 | K93: 0.1374718786 | L93: 0.04761066497 | M93: 0.2846031113 | N93: 0.3305988537 | O93: 0.07356637 | P93: 0.2104940869 | Q93: 0.7157158073 | R93: 0 | S93: 4.238920936
A94: Y18W1 | B94: Jan-18 | C94: 2018-01-01 | D94: 4.108241965 | E94: 0.091976817 | F94: 0.3823495451 | G94: 0.21944779 | H94: 1.161967408 | I94: 0 | J94: 0 | K94: 0.1449376986 | L94: 0.6315547852 | M94: 0.2963857172 | N94: 0.7990766305 | O94: 0.0495145 | P94: 0.2785162369 | Q94: 0.05251483576 | R94: 0 | S94: 4.108241965
A95: Y18W1 | B95: Jan-18 | C95: 2018-01-02 | D95: 2.003280352 | E95: -0.446204996 | F95: 0.5557330743 | G95: 0.299888993 | H95: 0.4668252027 | I95: 0.014031782 | J95: 0.006070112904 | K95: 0.004137698592 | L95: 0.001741842803 | M95: 0.3400303474 | N95: 0.3471242771 | O95: 0.070657 | P95: 0.2488809769 | Q95: 0.09436404054 | R95: 0 | S95: 2.003280352
A96: Y18W1 | B96: Jan-18 | C96: 2018-01-03 | D96: 2.056311633 | E96: -0.308476277 | F96: 0.5536827982 | G96: 0.27343262 | H96: 0.6488166699 | I96: 0 | J96: 0.04271441383 | K96: 0.004137698592 | L96: -1.0505e-05 | M96: 0.198582456 | N96: 0.3225901545 | O96: 0.04505793 | P96: 0.2147325769 | Q96: 0.06105109725 | R96: 0 | S96: 2.056311633
A97: Y18W1 | B97: Jan-18 | C97: 2018-01-04 | D97: 1.146450442 | E97: -0.417190322 | F97: 0.2107361253 | G97: 0.28758893 | H97: 0.07345139654 | I97: 0 | J97: 0 | K97: 0.004137698592 | L97: 2.8216e-05 | M97: 0.2178535194 | N97: 0.3786096666 | O97: 0.0616805 | P97: 0.2573809469 | Q97: 0.07217376432 | R97: 0 | S97: 1.146450442
A98: Y18W1 | B98: Jan-18 | C98: 2018-01-05 | D98: 1.408361711 | E98: -0.06687004 | F98: 0.2150647765 | G98: 0.3539459892 | H98: 0.01795329475 | I98: 0.00633239 | J98: 0 | K98: 0.004137698592 | L98: 8.16926312e-05 | M98: 0.2379330127 | N98: 0.3290593597 | O98: 0.03381992 | P98: 0.2202336769 | Q98: 0.05666993996 | R98: 0 | S98: 1.408361711
A99: Y18W1 | B99: Jan-18 | C99: 2018-01-06 | D99: 2.053350364 | E99: -0.005780933 | F99: 0.378050694 | G99: 0.30956724 | H99: 0.1673561563 | I99: 0.3609404261 | J99: 0 | K99: 0.01516843859 | L99: 9.677e-06 | M99: 0.2147479499 | N99: 0.3171665358 | O99: 0.05560207 | P99: 0.1925471069 | Q99: 0.0479750027 | R99: 0 | S99: 2.053350364
A100: Y18W1 | B100: Jan-18 | C100: 2018-01-07 | D100: 1.684103797 | E100: -0.055074277 | F100: 0.3948136855 | G100: 0.1784719649 | H100: 0.2079240718 | I100: 0 | J100: 0 | K100: 0.09296587859 | L100: 0.001993358978 | M100: 0.2250387817 | N100: 0.2923964111 | O100: 0.04378842 | P100: 0.2439901469 | Q100: 0.05779535505 | R100: 0 | S100: 1.684103797
A101: Y18W2 | B101: Jan-18 | C101: 2018-01-08 | D101: 2.034637977 | E101: 0.075694797 | F101: 0.4008921624 | G101: 0.38378823 | H101: 0.166864072 | I101: 0.04671660296 | J101: 0 | K101: 0.004137698592 | L101: 0.004190057812 | M101: 0.3351531633 | N101: 0.2957522542 | O101: 0.03148162 | P101: 0.1910111669 | Q101: 0.09895615226 | R101: 0 | S101: 2.034637977
A102: Y18W2 | B102: Jan-18 | C102: 2018-01-09 | D102: 2.029871239 | E102: 0.154157135 | F102: 0.4813840242 | G102: 0.294873288 | H102: 0.06190249794 | I102: 0 | J102: 0.1801360952 | K102: 0.004137698592 | L102: 0.001261553076 | M102: 0.3063426543 | N102: 0.2993651875 | O102: 0.03739861 | P102: 0.2053858669 | Q102: 0.003526628601 | R102: 0 | S102: 2.029871239
A103: Y18W2 | B103: Jan-18 | C103: 2018-01-10 | D103: 0.742600312 | E103: -0.602487668 | F103: 0.1854157004 | G103: 0.27869126 | H103: 0 | I103: 0 | J103: 0 | K103: 0.01978769859 | L103: 0 | M103: 0.2223450988 | N103: 0.3057061928 | O103: 0.03166481 | P103: 0.2314948269 | Q103: 0.06998239254 | R103: 0 | S103: 0.742600312
A104: Y18W2 | B104: Jan-18 | C104: 2018-01-11 | D104: 1.371896677 | E104: -0.178483201 | F104: 0.3741077421 | G104: 0.2958930105 | H104: 0 | I104: 0 | J104: 0 | K104: 0.02933769859 | L104: 0.001223807825 | M104: 0.1921423182 | N104: 0.3246488629 | O104: 0.057592 | P104: 0.2228026669 | Q104: 0.05263177113 | R104: 0 | S104: 1.371896677
A105: Y18W2 | B105: Jan-18 | C105: 2018-01-12 | D105: 0.8429115339 | E105: -0.475761957 | F105: 0.0268302593 | G105: 0.29169024 | H105: 0.230845563 | I105: 0 | J105: 0 | K105: 0.02913769859 | L105: 0 | M105: 0.1779066124 | N105: 0.306639848 | O105: 0.03301302 | P105: 0.1819442769 | Q105: 0.04066597271 | R105: 0 | S105: 0.8429115339
A106: Y18W2 | B106: Jan-18 | C106: 2018-01-13 | D106: 1.372133944 | E106: -0.33660262 | F106: 0.06820188281 | G106: 0.3651132055 | H106: 0.4985710867 | I106: 0 | J106: 0.007660742062 | K106: 0.004137698592 | L106: 0 | M106: 0.1913888771 | N106: 0.3114603225 | O106: 0.03856653 | P106: 0.1962973369 | Q106: 0.02733888232 | R106: 0 | S106: 1.372133944
A107: Y18W2 | B107: Jan-18 | C107: 2018-01-14 | D107: 2.743839827 | E107: -0.73168252 | F107: 0.1526349976 | G107: 0.231400626 | H107: 1.953872889 | I107: 0 | J107: 0 | K107: 0.004137698592 | L107: 0.02243640702 | M107: 0.2967597709 | N107: 0.3132047889 | O107: 0.0520645 | P107: 0.2179239669 | Q107: 0.2310867028 | R107: 0 | S107: 2.743839827
A108: Y18W3 | B108: Jan-18 | C108: 2018-01-15 | D108: 3.393716573 | E108: 0.404779651 | F108: 0.1916516136 | G108: 0.3574588131 | H108: 1.461096973 | I108: 0 | J108: 0.02745489301 | K108: 0.004137698592 | L108: 3.487837835e-05 | M108: 0.3396819355 | N108: 0.334317865 | O108: 0.03929001 | P108: 0.2132076469 | Q108: 0.02060459451 | R108: 0 | S108: 3.393716573
A109: Y18W3 | B109: Jan-18 | C109: 2018-01-16 | D109: 2.747405329 | E109: 0.684188252 | F109: 0.4702141562 | G109: 0.2803353119 | H109: 0.1947077094 | I109: 0 | J109: 0.08322248602 | K109: 0.03281369859 | L109: 0.127883415 | M109: 0.2572610681 | N109: 0.3456039415 | O109: 0.04611935 | P109: 0.1879174469 | Q109: 0.03713849321 | R109: 0 | S109: 2.747405329
A110: Y18W3 | B110: Jan-18 | C110: 2018-01-17 | D110: 2.266749999 | E110: 0.211180271 | F110: 0.221754736 | G110: 0.3315208372 | H110: 0.07675877371 | I110: 0 | J110: 0.5551814774 | K110: 0.004137698592 | L110: 0.004470424993 | M110: 0.2479294644 | N110: 0.3409564158 | O110: 0.03758715 | P110: 0.2062921769 | Q110: 0.02898057339 | R110: 0 | S110: 2.266749999
A111: Y18W3 | B111: Jan-18 | C111: 2018-01-18 | D111: 2.100341898 | E111: 0.415968549 | F111: 0.2424383526 | G111: 0.3702143332 | H111: 0.08419538813 | I111: 0 | J111: 0 | K111: 0.004137698592 | L111: 0.002591563 | M111: 0.3427862051 | N111: 0.2990351058 | O111: 0.04419701 | P111: 0.2227215869 | Q111: 0.07205610577 | R111: 0 | S111: 2.100341898
A112: Y18W3 | B112: Jan-18 | C112: 2018-01-19 | D112: 1.65416951 | E112: 0.100092713 | F112: 0.1992434915 | G112: 0.336105903 | H112: 0.08073910636 | I112: 0 | J112: 0 | K112: 0.004137698592 | L112: 0.01956437753 | M112: 0.2545707997 | N112: 0.3079230027 | O112: 0.06857666 | P112: 0.2279344269 | Q112: 0.055281331 | R112: 0 | S112: 1.65416951
A113: Y18W3 | B113: Jan-18 | C113: 2018-01-20 | D113: 1.88522208 | E113: -0.042858696 | F113: 0.5530164269 | G113: 0.32368843 | H113: 0.0008435639493 | I113: 0 | J113: 0 | K113: 0.004137698592 | L113: 0.001878854 | M113: 0.2372354953 | N113: 0.3069192646 | O113: 0.09337917 | P113: 0.3109493969 | Q113: 0.09603247593 | R113: 0 | S113: 1.88522208
A114: Y18W3 | B114: Jan-18 | C114: 2018-01-21 | D114: 1.861166916 | E114: 0.309699105 | F114: 0.3188021792 | G114: 0.24144822 | H114: 0.03835707455 | I114: 0.074581836 | J114: 0 | K114: 0.004137698592 | L114: 0.004298566824 | M114: 0.2330073559 | N114: 0.3055138169 | O114: 0.03664497 | P114: 0.2630283269 | Q114: 0.03164776606 | R114: 0 | S114: 1.861166916
A115: Y18W4 | B115: Jan-18 | C115: 2018-01-22 | D115: 1.077320084 | E115: -0.499494326 | F115: 0.06501722386 | G115: 0.27191681 | H115: 0.2921195339 | I115: 0 | J115: 0.002504268948 | K115: 0.004137698592 | L115: 0.0001359583429 | M115: 0.2746568124 | N115: 0.3259879371 | O115: 0.05212077 | P115: 0.1933886069 | Q115: 0.09482879 | R115: 0 | S115: 1.077320084
A116: Y18W4 | B116: Jan-18 | C116: 2018-01-23 | D116: 3.294656663 | E116: -0.450426711 | F116: 0.3682539427 | G116: 0.27372636 | H116: 2.025009799 | I116: 0 | J116: 0.145350356 | K116: 0.004137698592 | L116: 0.008730241332 | M116: 0.298397457 | N116: 0.3493499874 | O116: 0.04758466 | P116: 0.1944321569 | Q116: 0.0301107153 | R116: 0 | S116: 3.294656663
A117: Y18W4 | B117: Jan-18 | C117: 2018-01-24 | D117: 5.698986192 | E117: 0.663242798 | F117: 0.3941522685 | G117: 0.3900152223 | H117: 0.6987261962 | I117: 2.395367142 | J117: 0.2214575802 | K117: 0.01017284859 | L117: 0.002442562 | M117: 0.3040642127 | N117: 0.3725592726 | O117: 0.04633538 | P117: 0.1790216869 | Q117: 0.02142902225 | R117: 0 | S117: 5.698986192
A118: Y18W4 | B118: Jan-18 | C118: 2018-01-25 | D118: 2.286662501 | E118: 0.163226077 | F118: 0.2016654427 | G118: 0.3399105811 | H118: 0.3218564852 | I118: 0.227766994 | J118: 0 | K118: 0.004137698592 | L118: 0 | M118: 0.3287877424 | N118: 0.3333980914 | O118: 0.11369767 | P118: 0.1812390069 | Q118: 0.07097671174 | R118: 0 | S118: 2.286662501
A119: Y18W4 | B119: Jan-18 | C119: 2018-01-26 | D119: 0.803123643 | E119: -0.496618381 | F119: 0.1004410558 | G119: 0.29841195 | H119: 0 | I119: 0.02182057374 | J119: 0.04121137153 | K119: 0.004137698592 | L119: 0.005896313237 | M119: 0.2213577806 | N119: 0.2988740811 | O119: 0.03433402 | P119: 0.2135284769 | Q119: 0.05972870245 | R119: 0 | S119: 0.803123643
A120: Y18W4 | B120: Jan-18 | C120: 2018-01-27 | D120: 5.690524205 | E120: -0.190239238 | F120: 0.3882063336 | G120: 0.2782870993 | H120: 0.1683018797 | I120: 2.565911504 | J120: 1.666390558 | K120: 0.004137698592 | L120: 0.003651662281 | M120: 0.2739583178 | N120: 0.291913727 | O120: 0.03904385 | P120: 0.1622285069 | Q120: 0.03873230553 | R120: 0 | S120: 5.690524205
A121: Y18W4 | B121: Jan-18 | C121: 2018-01-28 | D121: 4.555608815 | E121: -0.032964271 | F121: 0.2294030504 | G121: 0.1718510683 | H121: 0.6731748561 | I121: 2.5381987 | J121: 0.1963725193 | K121: 0.004137698592 | L121: 6.91022183e-06 | M121: 0.1818731096 | N121: 0.3142204059 | O121: 0.05258593 | P121: 0.2089257269 | Q121: 0.01782311089 | R121: 0 | S121: 4.555608815
A122: Y18W5 | B122: Jan-18 | C122: 2018-01-29 | D122: 3.7362442 | E122: -0.114563922 | F122: 0.06503267146 | G122: 0.3747148206 | H122: 0.2788343599 | I122: 2.158299352 | J122: 0 | K122: 0.004137698592 | L122: 0 | M122: 0.2995259814 | N122: 0.3460552324 | O122: 0.03411458 | P122: 0.1921615469 | Q122: 0.09793187906 | R122: 0 | S122: 3.7362442
A123: Y18W5 | B123: Jan-18 | C123: 2018-01-30 | D123: 3.017747644 | E123: -0.097435664 | F123: 0.1275551806 | G123: 0.3462510935 | H123: 0.08371908994 | I123: 1.539015435 | J123: 0.1601374765 | K123: 0.004137698592 | L123: 0 | M123: 0.269934719 | N123: 0.2854320536 | O123: 0.08774904 | P123: 0.1697732869 | Q123: 0.04147823433 | R123: 0 | S123: 3.017747644
A124: Y18W5 | B124: Jan-18 | C124: 2018-01-31 | D124: 3.928932385 | E124: 0.325284787 | F124: 0.1031682873 | G124: 0.3721445152 | H124: 0.1861741666 | I124: 0 | J124: 2.060144415 | K124: 0.004137698592 | L124: 0.02673568127 | M124: 0.2776371087 | N124: 0.3206401577 | O124: 0.05163081 | P124: 0.1439945869 | Q124: 0.0572401707 | R124: 0 | S124: 3.928932385
A125: Y18W5 | B125: Feb-18 | C125: 2018-02-01 | D125: 3.974034338 | E125: 0.062539372 | F125: 0.1371819348 | G125: 0.357117551 | H125: 0.2069895524 | I125: 1.398215766 | J125: 0.2982958403 | K125: 0.02964769859 | L125: 0.0001994038619 | M125: 0.2363394324 | N125: 0.9435598806 | O125: 0.0438237 | P125: 0.1706541412 | Q125: 0.08947006503 | R125: 0 | S125: 3.974034338
A126: Y18W5 | B126: Feb-18 | C126: 2018-02-02 | D126: 1.991259697 | E126: 0.151936263 | F126: 0.1709465806 | G126: 0.38959926 | H126: 0.2179459186 | I126: 0.1077175514 | J126: 0.05553417132 | K126: 0.004137698592 | L126: 0.00057126141 | M126: 0.2744981735 | N126: 0.3031190771 | O126: 0.04543695 | P126: 0.2172066312 | Q126: 0.05261016014 | R126: 0 | S126: 1.991259697
A127: Y18W5 | B127: Feb-18 | C127: 2018-02-03 | D127: 1.119579965 | E127: -0.132864721 | F127: 0.1144089327 | G127: 0.3193851186 | H127: 0.02498640818 | I127: 0 | J127: 0 | K127: 0.004137698592 | L127: 0 | M127: 0.1716412519 | N127: 0.2829865939 | O127: 0.03314735 | P127: 0.2390394512 | Q127: 0.06271188127 | R127: 0 | S127: 1.119579965
A128: Y18W5 | B128: Feb-18 | C128: 2018-02-04 | D128: 1.344173697 | E128: -0.041907849 | F128: 0.05973707896 | G128: 0.2194906232 | H128: 0.1450448882 | I128: 0 | J128: 0 | K128: 0.004137698592 | L128: 0 | M128: 0.2337048374 | N128: 0.2933137553 | O128: 0.03359255 | P128: 0.3017957012 | Q128: 0.09526441316 | R128: 0 | S128: 1.344173697
A129: Y18W6 | B129: Feb-18 | C129: 2018-02-05 | D129: 1.00239816 | E129: -0.263359253 | F129: 0.05304737161 | G129: 0.2780083 | H129: 0.05884826118 | I129: 0 | J129: 0 | K129: 0.004137698592 | L129: 0.003414333 | M129: 0.2252218675 | N129: 0.3149423134 | O129: 0.02189162 | P129: 0.2458046612 | Q129: 0.06044098696 | R129: 0 | S129: 1.00239816
A130: Y18W6 | B130: Feb-18 | C130: 2018-02-06 | D130: 1.221315136 | E130: -0.103874716 | F130: 0.1242176847 | G130: 0.32572178 | H130: 0.06292834805 | I130: 0 | J130: 0 | K130: 0.004137698592 | L130: 0 | M130: 0.2238003345 | N130: 0.3198258248 | O130: 0.02017012 | P130: 0.2035837612 | Q130: 0.04080430023 | R130: 0 | S130: 1.221315136
A131: Y18W6 | B131: Feb-18 | C131: 2018-02-07 | D131: 1.402535253 | E131: -0.128422236 | F131: 0.1647171973 | G131: 0.28148974 | H131: 0.042940532 | I131: 0 | J131: 0.02812703114 | K131: 0.004137698592 | L131: 0.003212586 | M131: 0.3608001818 | N131: 0.3281845134 | O131: 0.06589785 | P131: 0.2032311712 | Q131: 0.0482189877 | R131: 0 | S131: 1.402535253
A132: Y18W6 | B132: Feb-18 | C132: 2018-02-08 | D132: 1.337466167 | E132: -0.26045728 | F132: 0.5246073694 | G132: 0.2619647 | H132: 0.005696885245 | I132: 0.001158259 | J132: 0 | K132: 0.004137698592 | L132: 0.001922959707 | M132: 0.2299482994 | N132: 0.3192875395 | O132: 0.03556189 | P132: 0.1661131212 | Q132: 0.0475247245 | R132: 0 | S132: 1.337466167
A133: Y18W6 | B133: Feb-18 | C133: 2018-02-09 | D133: 1.618967328 | E133: 0.128141781 | F133: 0.1791562897 | G133: 0.4215829668 | H133: 0.01745661296 | I133: 0.006252366 | J133: 0 | K133: 0.004137698592 | L133: 0.04839861212 | M133: 0.2350657624 | N133: 0.3257032075 | O133: 0.03852497 | P133: 0.1724156812 | Q133: 0.04213137923 | R133: 0 | S133: 1.618967328
A134: Y18W6 | B134: Feb-18 | C134: 2018-02-10 | D134: 3.026381013 | E134: 0.092463391 | F134: 0.162827648 | G134: 0.3398334723 | H134: 0.07155155675 | I134: 1.586375339 | J134: 0 | K134: 0.004137698592 | L134: 0.003558294573 | M134: 0.1865994552 | N134: 0.2847371328 | O134: 0.05109468 | P134: 0.1674673012 | Q134: 0.07573504407 | R134: 0 | S134: 3.026381013
A135: Y18W6 | B135: Feb-18 | C135: 2018-02-11 | D135: 1.598861304 | E135: -0.02356214 | F135: 0.2047351316 | G135: 0.17481221 | H135: 0.3582879333 | I135: 0 | J135: 0.03602859022 | K135: 0.004137698592 | L135: 0.0011410079 | M135: 0.1899280015 | N135: 0.3083904323 | O135: 0.05717976 | P135: 0.2041968512 | Q135: 0.08358582757 | R135: 0 | S135: 1.598861304
A136: Y18W7 | B136: Feb-18 | C136: 2018-02-12 | D136: 1.470686783 | E136: -0.375262686 | F136: 0.2133206446 | G136: 0.26757158 | H136: 0.09925527292 | I136: 0 | J136: 0.4624057778 | K136: 0.004137698592 | L136: 0.002487480063 | M136: 0.2420130002 | N136: 0.2957613452 | O136: 0.03989763 | P136: 0.1721183312 | Q136: 0.0469807083 | R136: 0 | S136: 1.470686783
A137: Y18W7 | B137: Feb-18 | C137: 2018-02-13 | D137: 2.981523684 | E137: 0.307954606 | F137: 0.2606238428 | G137: 0.3255067771 | H137: 0.08843128032 | I137: 0 | J137: 0.9826639067 | K137: 0.004137698592 | L137: -9.98605e-08 | M137: 0.3702993709 | N137: 0.3329342396 | O137: 0.051295 | P137: 0.1605143612 | Q137: 0.09716270113 | R137: 0 | S137: 2.981523684
A138: Y18W7 | B138: Feb-18 | C138: 2018-02-14 | D138: 3.098380351 | E138: 0.392422587 | F138: 0.2254983435 | G138: 0.3509870983 | H138: 0.0365018967 | I138: 1.213098524 | J138: 0.038684429 | K138: 0.004137698592 | L138: 0.003328 | M138: 0.2934283141 | N138: 0.3020792497 | O138: 0.0460063 | P138: 0.1717737612 | Q138: 0.02043414859 | R138: 0 | S138: 3.098380351
A139: Y18W7 | B139: Feb-18 | C139: 2018-02-15 | D139: 2.282383486 | E139: -0.219751015 | F139: 0.1682279434 | G139: 0.28374647 | H139: 0.09919587567 | I139: 1.071034896 | J139: 0.08782033759 | K139: 0.004137698592 | L139: 0.004062774359 | M139: 0.2178025789 | N139: 0.3052097353 | O139: 0.03681909 | P139: 0.1873673112 | Q139: 0.03670979043 | R139: 0 | S139: 2.282383486
A140: Y18W7 | B140: Feb-18 | C140: 2018-02-16 | D140: 1.652306173 | E140: -0.39053132 | F140: 0.1335196075 | G140: 0.3602231487 | H140: 0.0702587438 | I140: 0 | J140: 0.5555662137 | K140: 0.004137698592 | L140: 0.000116963 | M140: 0.3260062052 | N140: 0.3145150688 | O140: 0.04515164 | P140: 0.1644046812 | Q140: 0.06893752275 | R140: 0 | S140: 1.652306173
A141: Y18W7 | B141: Feb-18 | C141: 2018-02-17 | D141: 1.197555173 | E141: -0.304172288 | F141: 0.1609803038 | G141: 0.3192396 | H141: 0 | I141: 0 | J141: 0.12504468 | K141: 0.004137698592 | L141: 0.000359278 | M141: 0.2639258361 | N141: 0.3158500155 | O141: 0.03755691 | P141: 0.2224328112 | Q141: 0.05220032816 | R141: 0 | S141: 1.197555173
A142: Y18W7 | B142: Feb-18 | C142: 2018-02-18 | D142: 0.8099138664 | E142: -0.218915481 | F142: 0.1426235823 | G142: 0.14640871 | H142: 0 | I142: 0 | J142: 0 | K142: 0.004137698592 | L142: 0.000659138 | M142: 0.1357346005 | N142: 0.2868346824 | O142: 0.03841111 | P142: 0.2405860312 | Q142: 0.03343379456 | R142: 0 | S142: 0.8099138664
A143: Y18W8 | B143: Feb-18 | C143: 2018-02-19 | D143: 1.164965342 | E143: -0.304701078 | F143: 0.3390456528 | G143: 0.2605799 | H143: 0.003400573835 | I143: 0 | J143: 0 | K143: 0.004137698592 | L143: 0 | M143: 0.1885868894 | N143: 0.3102059664 | O143: 0.10573415 | P143: 0.2342827412 | Q143: 0.02369284831 | R143: 0 | S143: 1.164965342
A144: Y18W8 | B144: Feb-18 | C144: 2018-02-20 | D144: 0.7542808642 | E144: -0.644194792 | F144: 0.1600820627 | G144: 0.27104909 | H144: 0.03162247725 | I144: 0 | J144: 0.014066773 | K144: 0.004137698592 | L144: 3.826747259e-05 | M144: 0.3143662372 | N144: 0.3376422765 | O144: 0.03007796 | P144: 0.1823686612 | Q144: 0.0530241523 | R144: 0 | S144: 0.7542808642
A145: Y18W8 | B145: Feb-18 | C145: 2018-02-21 | D145: 1.153131385 | E145: -0.280570337 | F145: 0.08311662776 | G145: 0.4440404397 | H145: 0 | I145: 0 | J145: 0 | K145: 0.004137698592 | L145: 0.001630324014 | M145: 0.3063583301 | N145: 0.3166759931 | O145: 0.0285549 | P145: 0.2086729012 | Q145: 0.04051450726 | R145: 0 | S145: 1.153131385
A146: Y18W8 | B146: Feb-18 | C146: 2018-02-22 | D146: 0.3993433749 | E146: -0.719869365 | F146: 0.04838730575 | G146: 0.30895509 | H146: 0 | I146: 0 | J146: 0 | K146: 0.004137698592 | L146: 0 | M146: 0.2056201522 | N146: 0.264876132 | O146: 0.0303342 | P146: 0.2135802812 | Q146: 0.04332188015 | R146: 0 | S146: 0.3993433749
A147: Y18W8 | B147: Feb-18 | C147: 2018-02-23 | D147: 1.071423394 | E147: -0.367004751 | F147: 0.3106532883 | G147: 0.280889117 | H147: 0.0008870043873 | I147: 0 | J147: 0.084002998 | K147: 0.004137698592 | L147: 0.006762106 | M147: 0.2088073682 | N147: 0.276362105 | O147: 0.03755076 | P147: 0.1742771412 | Q147: 0.05409855835 | R147: 0 | S147: 1.071423394
A148: Y18W8 | B148: Feb-18 | C148: 2018-02-24 | D148: 0.4568282414 | E148: -0.839693685 | F148: 0.1008896661 | G148: 0.30089524 | H148: 0.09849919632 | I148: 0 | J148: 0 | K148: 0.004137698592 | L148: 0.000565875 | M148: 0.1870685593 | N148: 0.2765230455 | O148: 0.04044838 | P148: 0.2103300612 | Q148: 0.0771642044 | R148: 0 | S148: 0.4568282414
A149: Y18W8 | B149: Feb-18 | C149: 2018-02-25 | D149: 0.5577566612 | E149: -0.589554166 | F149: 0.05420014684 | G149: 0.14794833 | H149: 0.1428439526 | I149: 0 | J149: 0 | K149: 0.004137698592 | L149: 0.002448891585 | M149: 0.1611424219 | N149: 0.2818146065 | O149: 0.04592497 | P149: 0.2261343912 | Q149: 0.08071541794 | R149: 0 | S149: 0.5577566612
A150: Y18W9 | B150: Feb-18 | C150: 2018-02-26 | D150: 1.113937009 | E150: -0.406727195 | F150: 0.1229694759 | G150: 0.3491917277 | H150: 0.037927153 | I150: 0 | J150: 0 | K150: 0.07813769859 | L150: 0.009262768201 | M150: 0.3281855751 | N150: 0.2946536301 | O150: 0.04200235 | P150: 0.1969209912 | Q150: 0.0614128341 | R150: 0 | S150: 1.113937009
A151: Y18W9 | B151: Feb-18 | C151: 2018-02-27 | D151: 4.775844458 | E151: 0.575020763 | F151: 1.677176034 | G151: 0.3357310274 | H151: 1.208824974 | I151: 0 | J151: 0 | K151: 0.07813769859 | L151: 7.248505734e-05 | M151: 0.281157396 | N151: 0.3453780279 | O151: 0.03388796 | P151: 0.1925867012 | Q151: 0.04787139095 | R151: 0 | S151: 4.775844458
A152: Y18W9 | B152: Feb-18 | C152: 2018-02-28 | D152: 7.39284741 | E152: 1.892876494 | F152: 3.131221097 | G152: 0.4310822718 | H152: 0.8916708579 | I152: 0 | J152: 0 | K152: 0.06913769859 | L152: 0 | M152: 0.2732711884 | N152: 0.4333979557 | O152: 0.03666723 | P152: 0.2045904212 | Q152: 0.02893219512 | R152: 0 | S152: 7.39284741
A153: Y18W9 | B153: Mar-18 | C153: 2018-03-01 | D153: 16.76137431 | E153: 4.702616066 | F153: 7.492179064 | G153: 0.4795658142 | H153: 0.1536788179 | I153: 2.152782463 | J153: 0 | K153: 0.06913769859 | L153: 0.0100706485 | M153: 0.255259076 | N153: 1.266536422 | O153: 0.02280057 | P153: 0.2234289969 | Q153: -0.06668132578 | R153: 0 | S153: 16.76137431
A154: Y18W9 | B154: Mar-18 | C154: 2018-03-02 | D154: 4.161563447 | E154: 0.78953807 | F154: 2.000887766 | G154: 0.2313568076 | H154: 0.04964858743 | I154: 0 | J154: 0.01061026687 | K154: 0.06913769859 | L154: 0.000369805687 | M154: 0.2378655877 | N154: 0.4279547642 | O154: 0.03247344 | P154: 0.1806838769 | Q154: 0.1310367756 | R154: 0 | S154: 4.161563447
A155: Y18W9 | B155: Mar-18 | C155: 2018-03-03 | D155: 3.110022541 | E155: 0.77211606 | F155: 0.7822319237 | G155: 0.3334712075 | H155: 0.00548675 | I155: 0 | J155: 0 | K155: 0.08011269859 | L155: 0.0001268974766 | M155: 0.3516545041 | N155: 0.4099156525 | O155: 0.02861917 | P155: 0.2094193069 | Q155: 0.1368683701 | R155: 0 | S155: 3.110022541
A156: Y18W9 | B156: Mar-18 | C156: 2018-03-04 | D156: 2.649215204 | E156: 1.08610731 | F156: 0.5326747527 | G156: 0.07559545452 | H156: 0.056481333 | I156: 0 | J156: 0 | K156: 0.07813769859 | L156: 0 | M156: 0.2283620933 | N156: 0.3257814427 | O156: 0.03203208 | P156: 0.2261887869 | Q156: 0.007854251915 | R156: 0 | S156: 2.649215204
A157: Y18W10 | B157: Mar-18 | C157: 2018-03-05 | D157: 1.386997184 | E157: -0.182958437 | F157: 0.3308813355 | G157: 0.2141294745 | H157: 0.1385243568 | I157: 0 | J157: 0 | K157: 0.07813769859 | L157: 3.8471e-05 | M157: 0.2390984649 | N157: 0.2965182308 | O157: 0.02189362 | P157: 0.2011179369 | Q157: 0.04961603233 | R157: 0 | S157: 1.386997184
A158: Y18W10 | B158: Mar-18 | C158: 2018-03-06 | D158: 2.112529821 | E158: 0.510041069 | F158: 0.1951773913 | G158: 0.2425879345 | H158: 0.06098046284 | I158: 0 | J158: 0 | K158: 0.07813769859 | L158: 0.023826 | M158: 0.3695752179 | N158: 0.3524057462 | O158: 0.02570295 | P158: 0.2031548069 | Q158: 0.05094054407 | R158: 0 | S158: 2.112529821
A159: Y18W10 | B159: Mar-18 | C159: 2018-03-07 | D159: 1.774884861 | E159: 0.076034364 | F159: 0.2987231163 | G159: 0.2202806245 | H159: 0.1467475414 | I159: 0 | J159: 0 | K159: 0.07813769859 | L159: 0.0242985 | M159: 0.2886843157 | N159: 0.3253562045 | O159: 0.0432698 | P159: 0.2112189769 | Q159: 0.06213371917 | R159: 0 | S159: 1.774884861
A160: Y18W10 | B160: Mar-18 | C160: 2018-03-08 | D160: 1.58189817 | E160: -0.170006556 | F160: 0.2992846093 | G160: 0.3137379245 | H160: 0.1408060527 | I160: 0 | J160: 0 | K160: 0.07813769859 | L160: 0.02622620103 | M160: 0.2854292941 | N160: 0.3080452366 | O160: 0.02700698 | P160: 0.2128911169 | Q160: 0.06033961269 | R160: 0 | S160: 1.58189817
A161: Y18W10 | B161: Mar-18 | C161: 2018-03-09 | D161: 1.356570156 | E161: -0.127124391 | F161: 0.1944032074 | G161: 0.2841767969 | H161: 0.03147563176 | I161: 0 | J161: 0 | K161: 0.07813769859 | L161: 0.009960472484 | M161: 0.2780877935 | N161: 0.3322417092 | O161: 0.01791222 | P161: 0.1993679869 | Q161: 0.0579310303 | R161: 0 | S161: 1.356570156
A162: Y18W10 | B162: Mar-18 | C162: 2018-03-10 | D162: 1.320159361 | E162: -0.181072997 | F162: 0.1647320068 | G162: 0.2698453645 | H162: 0.03533671371 | I162: 0 | J162: 0.007159099 | K162: 0.07813769859 | L162: 0.005813862777 | M162: 0.2172658806 | N162: 0.3892946302 | O162: 0.02548196 | P162: 0.2655579869 | Q162: 0.04260715479 | R162: 0 | S162: 1.320159361
A163: Y18W10 | B163: Mar-18 | C163: 2018-03-11 | D163: 0.7374983712 | E163: -0.459091149 | F163: 0.1432217428 | G163: 0.07302305452 | H163: 0.02361528011 | I163: 0 | J163: 0 | K163: 0.07813769859 | L163: 0 | M163: 0.1996668254 | N163: 0.3145100577 | O163: 0.03405696 | P163: 0.3024178469 | Q163: 0.02794005411 | R163: 0 | S163: 0.7374983712
A164: Y18W11 | B164: Mar-18 | C164: 2018-03-12 | D164: 1.214610009 | E164: -0.183774139 | F164: 0.1562649732 | G164: 0.2292308545 | H164: 0.06613987755 | I164: 0 | J164: 0.001099040605 | K164: 0.1428677986 | L164: 0.001221826 | M164: 0.2437588536 | N164: 0.3481740867 | O164: 0.02386679 | P164: 0.2124081269 | Q164: -0.02664807908 | R164: 0 | S164: 1.214610009
A165: Y18W11 | B165: Mar-18 | C165: 2018-03-13 | D165: 0.5825362188 | E165: -0.661479635 | F165: 0.1816394064 | G165: 0.2648045045 | H165: 0 | I165: 0 | J165: 0 | K165: 0.1280280386 | L165: 0 | M165: 0.1930375594 | N165: 0.3292200069 | O165: 0.03393405 | P165: 0.1621600569 | Q165: -0.04880776882 | R165: 0 | S165: 0.5825362188
A166: Y18W11 | B166: Mar-18 | C166: 2018-03-14 | D166: 2.207183615 | E166: -0.459601808 | F166: 0.09604226901 | G166: 0.2152353545 | H166: 1.466978227 | I166: 0 | J166: 0.01807256646 | K166: 0.1925867486 | L166: 0.023753561 | M166: 0.1561761023 | N166: 0.3000050737 | O166: 0.02996115 | P166: 0.1389698869 | Q166: 0.02900448353 | R166: 0 | S166: 2.207183615
A167: Y18W11 | B167: Mar-18 | C167: 2018-03-15 | D167: 5.954192636 | E167: 0.132565862 | F167: 0.1818394882 | G167: 0.2828999439 | H167: 3.90097022 | I167: 0 | J167: 0.4371961561 | K167: 0.1915852986 | L167: 0.0673308745 | M167: 0.1875829523 | N167: 0.384549651 | O167: 0.02674849 | P167: 0.1490622869 | Q167: 0.01186141223 | R167: 0 | S167: 5.954192636
A168: Y18W11 | B168: Mar-18 | C168: 2018-03-16 | D168: 3.622262532 | E168: -0.174818787 | F168: 0.1739029339 | G168: 0.3089040743 | H168: 1.856659186 | I168: 0 | J168: 0.4867947855 | K168: 0.1606944586 | L168: 0.004585526 | M168: 0.2450977733 | N168: 0.3492902038 | O168: 0.03519473 | P168: 0.1438760469 | Q168: 0.03208160117 | R168: 0 | S168: 3.622262532
A169: Y18W11 | B169: Mar-18 | C169: 2018-03-17 | D169: 3.828000865 | E169: -0.07095467 | F169: 0.1755116388 | G169: 0.3302511845 | H169: 2.112422308 | I169: 0.03444773255 | J169: 0.2662345987 | K169: 0.1489746186 | L169: 0.01561539967 | M169: 0.2870466442 | N169: 0.3597107331 | O169: 0.03301941 | P169: 0.1534885769 | Q169: -0.01776730924 | R169: 0 | S169: 3.828000865
A170: Y18W11 | B170: Mar-18 | C170: 2018-03-18 | D170: 3.125422981 | E170: 0.782423045 | F170: 0.3163778764 | G170: 0.2082015845 | H170: 0.5168076484 | I170: 0 | J170: 0.213589886 | K170: 0.1539286186 | L170: 0.04757022 | M170: 0.2613575542 | N170: 0.4283353393 | O170: 0.03278046 | P170: 0.1651048769 | Q170: -0.001054127901 | R170: 0 | S170: 3.125422981
A171: Y18W12 | B171: Mar-18 | C171: 2018-03-19 | D171: 0.8963245155 | E171: -0.630847959 | F171: 0.336810066 | G171: 0.1898508145 | H171: 0.03676015648 | I171: 0 | J171: 0 | K171: 0.1639960186 | L171: 0.032249608 | M171: 0.1903773145 | N171: 0.3183583976 | O171: 0.02527816 | P171: 0.1703668369 | Q171: 0.06312510187 | R171: 0 | S171: 0.8963245155
A172: Y18W12 | B172: Mar-18 | C172: 2018-03-20 | D172: 1.315000999 | E172: -0.036220516 | F172: 0.1088614504 | G172: 0.2747162045 | H172: 0.02751261914 | I172: 0 | J172: 0 | K172: 0.1483196986 | L172: 0.02142141893 | M172: 0.2217305843 | N172: 0.3341492961 | O172: 0.02868189 | P172: 0.1526153869 | Q172: 0.0332129662 | R172: 0 | S172: 1.315000999
A173: Y18W12 | B173: Mar-18 | C173: 2018-03-21 | D173: 1.778124381 | E173: -0.567863572 | F173: 0.113018895 | G173: 0.2241887008 | H173: 0.9780417065 | I173: 0.1002206343 | J173: 0 | K173: 0.1734574286 | L173: 0.000917335801 | M173: 0.2114351513 | N173: 0.3135876052 | O173: 0.04184104 | P173: 0.1543073169 | Q173: 0.03497213872 | R173: 0 | S173: 1.778124381
A174: Y18W12 | B174: Mar-18 | C174: 2018-03-22 | D174: 1.513629803 | E174: -0.524019977 | F174: 0.1680982278 | G174: 0.2610451205 | H174: 0.5669267135 | I174: 0 | J174: 0 | K174: 0.1746815586 | L174: 0.000348959 | M174: 0.2539988017 | N174: 0.3713994896 | O174: 0.0332788 | P174: 0.1450952769 | Q174: 0.06277683291 | R174: 0 | S174: 1.513629803
A175: Y18W12 | B175: Mar-18 | C175: 2018-03-23 | D175: 2.258159116 | E175: -0.358637545 | F175: 0.08423819 | G175: 0.2500142518 | H175: 1.111529834 | I175: 0 | J175: 0 | K175: 0.1540997786 | L175: 0.048892099 | M175: 0.3208089377 | N175: 0.4015282207 | O175: 0.02593539 | P175: 0.1605985969 | Q175: 0.05915136229 | R175: 0 | S175: 2.258159116
A176: Y18W12 | B176: Mar-18 | C176: 2018-03-24 | D176: 1.00987295 | E176: -0.403516611 | F176: 0.2409289373 | G176: 0.2474234408 | H176: 0.03025680088 | I176: 0 | J176: 0 | K176: 0.1437894586 | L176: 0.0001491495402 | M176: 0.1788331982 | N176: 0.2906948458 | O176: 0.03552422 | P176: 0.1976783869 | Q176: 0.04811112308 | R176: 0 | S176: 1.00987295
A177: Y18W12 | B177: Mar-18 | C177: 2018-03-25 | D177: 1.258852859 | E177: -0.245255299 | F177: 0.1421231279 | G177: 0.2067177493 | H177: 0.04311738947 | I177: 0 | J177: 0 | K177: 0.1572650145 | L177: 0.04793663724 | M177: 0.1871589777 | N177: 0.3285969115 | O177: 0.03760292 | P177: 0.1949218169 | Q177: 0.158667614 | R177: 0 | S177: 1.258852859
A178: Y18W13 | B178: Mar-18 | C178: 2018-03-26 | D178: 0.6219299769 | E178: -0.725261149 | F178: 0.06620250382 | G178: 0.2291071845 | H178: 0.05223397554 | I178: 0 | J178: 0 | K178: 0.1471740186 | L178: 6.418588376e-05 | M178: 0.2774361703 | N178: 0.2966945383 | O178: 0.03550138 | P178: 0.1948171169 | Q178: 0.04796005206 | R178: 0 | S178: 0.6219299769
A179: Y18W13 | B179: Mar-18 | C179: 2018-03-27 | D179: 2.547145887 | E179: 0.325148974 | F179: 0.2586414037 | G179: 0.3484806974 | H179: 0.476824536 | I179: 0 | J179: 0 | K179: 0.1596093886 | L179: 0.005962973601 | M179: 0.2861829823 | N179: 0.3699806366 | O179: 0.11356435 | P179: 0.1676972169 | Q179: 0.03505272822 | R179: 0 | S179: 2.547145887
A180: Y18W13 | B180: Mar-18 | C180: 2018-03-28 | D180: 0.8103253642 | E180: -0.498824304 | F180: 0.04910427647 | G180: 0.3036482577 | H180: 0.02991448208 | I180: 0 | J180: 0 | K180: 0.06558185859 | L180: 0.00179875 | M180: 0.2714869239 | N180: 0.3250660135 | O180: 0.03223718 | P180: 0.1938261769 | Q180: 0.03648574908 | R180: 0 | S180: 0.8103253642
A181: Y18W13 | B181: Mar-18 | C181: 2018-03-29 | D181: 1.326236851 | E181: -0.071731145 | F181: 0.2570977125 | G181: 0.2041829145 | H181: 0.015802711 | I181: 0 | J181: 0 | K181: 0.06970717859 | L181: 0.000153989 | M181: 0.2863444131 | N181: 0.30665232 | O181: 0.03479301 | P181: 0.1798329369 | Q181: 0.04340081089 | R181: 0 | S181: 1.326236851
A182: Y18W13 | B182: Mar-18 | C182: 2018-03-30 | D182: 1.94914384 | E182: 0.298381649 | F182: 0.1995634944 | G182: 0.3618606845 | H182: 0.04262239265 | I182: 0.017931255 | J182: 0 | K182: 0.08184509859 | L182: 0.007743914084 | M182: 0.3416859948 | N182: 0.3500298652 | O182: 0.03217094 | P182: 0.1824209069 | Q182: 0.03288764485 | R182: 0 | S182: 1.94914384
A183: Y18W13 | B183: Mar-18 | C183: 2018-03-31 | D183: 2.155485173 | E183: 0.546518627 | F183: 0.1693968831 | G183: 0.4199972045 | H183: 0.02131194493 | I183: 0 | J183: 0 | K183: 0.08979709859 | L183: 0 | M183: 0.2965261423 | N183: 0.312286105 | O183: 0.07325883 | P183: 0.2035364169 | Q183: 0.02285592032 | R183: 0 | S183: 2.155485173
A184: Y18W13 | B184: Apr-18 | C184: 2018-04-01 | D184: 43220 | E184: 0.353090657 | F184: 0.1196502272 | G184: 0.1639173411 | H184: 0.1261128361 | I184: 0 | J184: 0 | K184: 0.09272938949 | L184: 0.007246902 | M184: 0.2806492023 | N184: 0.5133114915 | O184: 0.09845623 | P184: 0.3862230281 | Q184: 0.04356285531 | R184: 0.115030018 | S184: 2.299980178
A185: Y18W14 | B185: Apr-18 | C185: 2018-04-02 | D185: 43220 | E185: 0.478770011 | F185: 0.1874407098 | G185: 0.13162163 | H185: 0.1031780422 | I185: 0 | J185: 0 | K185: 0.08383338949 | L185: 0.000568975 | M185: 0.2001890465 | N185: 0.3535496626 | O185: 0.02462258 | P185: 0.1796997481 | Q185: 0.03914842178 | R185: 0.115005648 | S185: 1.897627864
A186: Y18W14 | B186: Apr-18 | C186: 2018-04-03 | D186: 43220 | E186: -0.196781145 | F186: 0.1040806377 | G186: 0.1885284596 | H186: 0.1692791384 | I186: 0 | J186: 0 | K186: 0.1459964295 | L186: 0.00165 | M186: 0.2654669391 | N186: 0.377248141 | O186: 0.02009672 | P186: 0.210535067 | Q186: 0.05804301806 | R186: 0.113678208 | S186: 1.457821613
A187: Y18W14 | B187: Apr-18 | C187: 2018-04-04 | D187: 43220 | E187: -0.338444415 | F187: 0.08109770475 | G187: 0.1775718016 | H187: 0.07603104771 | I187: 0 | J187: 0 | K187: 0.1511138295 | L187: 0 | M187: 0.2268214539 | N187: 0.3640371955 | O187: 0.01651088 | P187: 0.179306227 | Q187: 0.04486162046 | R187: 0.115397018 | S187: 1.094304363
A188: Y18W14 | B188: Apr-18 | C188: 2018-04-05 | D188: 43220 | E188: -0.442167556 | F188: 0.09665689528 | G188: 0.1643221001 | H188: 0.2535792459 | I188: 0 | J188: 0 | K188: 0.1464709095 | L188: 0.02177915956 | M188: 0.1545369537 | N188: 0.3824590754 | O188: 0.01971842 | P188: 0.150855447 | Q188: 0.05281273499 | R188: 0.114937868 | S188: 1.115961253
A189: Y18W14 | B189: Apr-18 | C189: 2018-04-06 | D189: 43220 | E189: -0.502178774 | F189: 0.1038562344 | G189: 0.2933347364 | H189: 0.1291792371 | I189: 0.2918937517 | J189: 0 | K189: 0.1586734295 | L189: 0.003471853348 | M189: 0.1982483165 | N189: 0.3727377631 | O189: 0.06044602 | P189: 0.153292207 | Q189: 0.05267427033 | R189: 0.114054288 | S189: 1.429683333
A190: Y18W14 | B190: Apr-18 | C190: 2018-04-07 | D190: 43220 | E190: -0.230665772 | F190: 0.0454745128 | G190: 0.2375948096 | H190: 0.4739775549 | I190: 0 | J190: 0 | K190: 0.1436649095 | L190: 0.0058545 | M190: 0.1771829036 | N190: 0.3687409036 | O190: 0.02196142 | P190: 0.195379047 | Q190: 0.02244237641 | R190: 0.114606098 | S190: 1.576213263
A191: Y18W14 | B191: Apr-18 | C191: 2018-04-08 | D191: 43220 | E191: -0.038101325 | F191: 0.08225943885 | G191: 0.14618323 | H191: 0.01165825701 | I191: 0 | J191: 0 | K191: 0.1442009095 | L191: 0 | M191: 0.1529847078 | N191: 0.3339360813 | O191: 0.01921838 | P191: 0.250893017 | Q191: 0.0464646089 | R191: 0.116636838 | S191: 1.266334143
A192: Y18W15 | B192: Apr-18 | C192: 2018-04-09 | D192: 43220 | E192: 0.088728954 | F192: 0.1018290171 | G192: 0.2270803031 | H192: 0.07527590752 | I192: 0 | J192: 0 | K192: 0.1296938695 | L192: 0.01009549795 | M192: 0.2841560292 | N192: 0.3315143559 | O192: 0.02015504 | P192: 0.253366337 | Q192: 0.05088070405 | R192: 0.107441178 | S192: 1.680217193
A193: Y18W15 | B193: Apr-18 | C193: 2018-04-10 | D193: 43220 | E193: 0.91745444 | F193: 0.1206676284 | G193: 0.1861283059 | H193: 0.07657739558 | I193: 0.4806156398 | J193: 0 | K193: 0.1455818695 | L193: 0 | M193: 0.2209221782 | N193: 0.3522050813 | O193: 0.01783223 | P193: 0.154547057 | Q193: 0.04673922972 | R193: 0.120751438 | S193: 2.840022493
A194: Y18W15 | B194: Apr-18 | C194: 2018-04-11 | D194: 43220 | E194: 0.896357883 | F194: 0.2429685971 | G194: 0.251741486 | H194: 0.01642132401 | I194: 0.004332702 | J194: 0 | K194: 0.1357864695 | L194: 0.012446439 | M194: 0.2792751854 | N194: 0.3342353389 | O194: 0.01687884 | P194: 0.176141837 | Q194: 0.04152430345 | R194: 0.109346718 | S194: 2.517457123
A195: Y18W15 | B195: Apr-18 | C195: 2018-04-12 | D195: 43220 | E195: 0.267229959 | F195: 0.2148661426 | G195: 0.2785558452 | H195: 0.009487121046 | I195: 0 | J195: 0 | K195: 0.07627222949 | L195: 0.00965036352 | M195: 0.2650100062 | N195: 0.3364549385 | O195: 0.01619217 | P195: 0.165464547 | Q195: 0.08894950281 | R195: 0.109407518 | S195: 1.837540343
A196: Y18W15 | B196: Apr-18 | C196: 2018-04-13 | D196: 43220 | E196: -0.03105229 | F196: 0.2281720392 | G196: 0.3663847165 | H196: 0.01150690721 | I196: 0 | J196: 0 | K196: 0.07627222949 | L196: 0.013473793 | M196: 0.2714611904 | N196: 0.3595195734 | O196: 0.01579683 | P196: 0.1960511571 | Q196: 0.04099805916 | R196: 0.100964618 | S196: 1.649548823
A197: Y18W15 | B197: Apr-18 | C197: 2018-04-14 | D197: 43220 | E197: -1.167900615 | F197: 0.04080190856 | G197: 0.14640222 | H197: 0.01037546901 | I197: 0 | J197: 0 | K197: 0.07627222949 | L197: -4.0148e-05 | M197: 0.105625545 | N197: 0.3325681476 | O197: 0.01675466 | P197: 0.2604485381 | Q197: 0.0762966517 | R197: 0.102876838 | S197: 0.0004814444526
A198: Y18W15 | B198: Apr-18 | C198: 2018-04-15 | D198: 43220 | E198: -0.117041544 | F198: 0.05049284542 | G198: 0.25809688 | H198: 0.05219729091 | I198: 0.4775935977 | J198: 0 | K198: 0.07627222949 | L198: 0.004612233046 | M198: 0.1986675333 | N198: 0.3384391944 | O198: 0.06402573 | P198: 0.2521632681 | Q198: 0.04333043814 | R198: 0.114076838 | S198: 1.812926534
A199: Y18W16 | B199: Apr-18 | C199: 2018-04-16 | D199: 43220 | E199: -0.848952693 | F199: 0.1545519156 | G199: 0.167007453 | H199: 0.09206158049 | I199: 1.718504086 | J199: 0.03890934196 | K199: 0.08276632949 | L199: 0 | M199: 0.1521958053 | N199: 0.3510363181 | O199: 0.02437008 | P199: 0.1960836281 | Q199: 0.07029798182 | R199: 0.123578978 | S199: 2.322410804
A200: Y18W16 | B200: Apr-18 | C200: 2018-04-17 | D200: 43220 | E200: -0.361659657 | F200: 0.2995012343 | G200: 0.2168378465 | H200: 0.11136372 | I200: 6.227169955 | J200: 0.1713133158 | K200: 0.07627222949 | L200: 0.09154987006 | M200: 0.3077134359 | N200: 0.4191015599 | O200: 0.01805846 | P200: 0.1500103981 | Q200: 0.01913845854 | R200: 0.123155068 | S200: 7.869525894
... 928 more rows

Sheet Monthly Summary Actual
A1: Month | B1: Energy Imbalance | C1: Operating Reserve | D1: STOR | E1: Constraints - E&W | F1: Constraints - Cheviot | G1: Constraints - Scotland | H1: Constraints - AS | I1: Negative Reserve | J1: Fast Reserve | K1: Response | L1: Other Reserve | M1: Reactive | N1: Minor Components | O1: Black Start | P1: Total | Q1: Demand | R1: Estimated Internal BSUos(£m) | S1: Esitmated NGET Profit/(Loss)
A2: Oct-17 | B2: -2.842516968 | C2: 6.018816398 | D2: 6.178008962 | E2: 9.958197188 | F2: 54.60265779 | G2: 2.878566782 | H2: 1.666545641 | I2: 0.7877157572 | J2: 7.572502194 | K2: 11.44035473 | L2: 1.59051244 | M2: 6.273613719 | N2: 3.3162248 | O2: 4.566070888 | P2: =SUM(B2:O2) -> 114.0072703 | Q2: 41.46052096 | R2: 13.96273973 | S2: 0.8493150685 | T2: =(P2+SUM(R2:S2))/Q2 -> 3.107035853
A3: Nov-17 | B3: -3.133263798 | C3: 6.146629905 | D3: 8.940615847 | E3: 16.32295779 | F3: 15.53629598 | G3: 7.144633289 | H3: 2.700489268 | I3: 0.6011300105 | J3: 6.997815743 | K3: 10.27943159 | L3: 1.19691699 | M3: 6.169308893 | N3: 0.9200239865 | O3: 3.539920584 | P3: 83.36290608 | Q3: 47.16417137 | R3: 13.51232877 | S3: 0.8219178082 | T3: 2.07142731
A4: Dec-17 | B4: 5.112603244 | C4: 8.987521463 | D4: 9.430998645 | E4: 9.768965953 | F4: 19.15118313 | G4: 5.223834344 | H4: 1.930289596 | I4: 0.09934702949 | J4: 7.679601686 | K4: 11.39872494 | L4: 1.29142999 | M4: 6.709756463 | N4: 2.088839606 | O4: 4.494288897 | P4: 93.36738499 | Q4: 49.24352693 | R4: 13.96273973 | S4: 0.8493150685 | T4: 2.196825583
A5: Jan-18 | B5: -1.949725068 | C5: 8.619913881 | D5: 9.421794756 | E5: 12.32096526 | F5: 11.94898274 | G5: 5.396008767 | H5: 0.4694887264 | I5: 0.8728323017 | J5: 8.095275845 | K5: 10.42150085 | L5: 1.56689246 | M5: 6.573886373 | N5: 1.83875352 | O5: 3.809301732 | P5: 79.40587215 | Q5: 48.85290924 | R5: 13.96273973 | S5: 0.8493150685 | T5: 1.92860422
A6: Feb-18 | B6: -3.012041097 | C6: 9.228118844 | D6: 8.55305134 | E6: 4.021996155 | F6: 5.383852701 | G6: 2.768240749 | H6: 0.3543655606 | I6: 0.09421270946 | J6: 6.871321621 | K6: 9.314764346 | L6: 1.17264198 | M6: 5.654450053 | N6: 1.565104753 | O6: 3.35622808 | P6: 55.32630779 | Q6: 45.37605256 | R6: 12.61150685 | S6: 0.7671232877 | T6: 1.514123289
A7: Mar-18 | B7: 3.28843045 | C7: 15.91006067 | D7: 8.098531184 | E7: 14.19561426 | F7: 2.305382085 | G7: 1.440756399 | H7: 3.691478862 | I7: 0.4284472862 | J7: 7.849012085 | K7: 11.56686944 | L7: 1.07642294 | M7: 5.858231873 | N7: 1.217916476 | O7: 3.74831314 | P7: 80.67546714 | Q7: 48.74975032 | R7: 13.96273973 | S7: 0.8493150685 | T7: 1.958728431
A8: Apr-18 | B8: -5.678595773 | C8: 4.056805357 | D8: 6.096036792 | E8: 9.107920387 | F8: 13.23123316 | G8: 0.3588389631 | H8: 2.740013785 | I8: 0.4200337111 | J8: 6.461642445 | K8: 11.01178477 | L8: 0.78711943 | M8: 6.46582811 | N8: 1.416913323 | O8: 3.36605017 | P8: 59.84162464 | Q8: 40.38570033 | R8: 15.57534247 | S8: 1.232876712 | T8: 1.897945144
A9: May-18 | B9: -6.760679548 | C9: 4.384309523 | D9: 7.038844709 | E9: 20.34603563 | F9: 1.45616127 | G9: 2.105893864 | H9: 0.9340882941 | I9: 2.057471895 | J9: 6.469285509 | K9: 12.21229682 | L9: 0.9197058 | M9: 7.054301742 | N9: 1.045670644 | O9: 3.670413224 | P9: 62.93379938 | Q9: 36.96006484 | R9: 16.09452055 | S9: 1.273972603 | T9: 2.172677263
A10: Jun-18 | B10: -2.810221268 | C10: 3.540148552 | D10: 6.649184693 | E10: 33.33151617 | F10: 7.780194908 | G10: 6.258501603 | H10: 3.770372235 | I10: 0.4077661289 | J10: 6.007894146 | K10: 11.46043661 | L10: 0.82597977 | M10: 7.36038081 | N10: 1.174760974 | O10: 3.23176055 | P10: 88.98867588 | Q10: 35.31246865 | R10: 15.57534247 | S10: 1.232876712 | T10: 2.996020927
A11: Jul-18 | B11: -1.110751301 | C11: 4.788280494 | D11: 7.367863841 | E11: 37.33388798 | F11: 1.390168163 | G11: 0.2337361441 | H11: 0.1932135837 | I11: 0.5725288452 | J11: 7.555926175 | K11: 10.53168237 | L11: 1.15896295 | M11: 6.56190176 | N11: 1.202683079 | O11: 3.06142822 | P11: 80.8415123 | Q11: 35.96236592 | R11: 16.09452055 | S11: 1.273972603 | T11: 2.730910577
A12: Aug-18 | B12: -3.902354275 | C12: 4.66708187 | D12: 6.713354274 | E12: 32.28538328 | F12: 1.582099012 | G12: 1.2863796 | H12: 0.3395766641 | I12: 0.3958837945 | J12: 8.244163722 | K12: 10.74746024 | L12: 1.1584881 | M12: 6.696767338 | N12: 2.078673911 | O12: 3.574906769 | P12: 75.86786431 | Q12: 36.38645178 | R12: 16.09452055 | S12: 1.273972603 | T12: 2.562392124
A13: Sep-18 | B13: -0.642132211 | C13: 5.578828882 | D13: 5.690164449 | E13: 78.35859309 | F13: 18.17768928 | G13: 4.068498612 | H13: 1.307313954 | I13: 0.4184334081 | J13: 6.990971019 | K13: 11.32012155 | L13: 1.05673805 | M13: 6.165980141 | N13: 1.413623981 | O13: 3.65337467 | P13: 143.5581989 | Q13: 36.17642346 | R13: 15.57534247 | S13: 1.232876712 | T13: 4.432898632

Sheet Weekly Summary Actual
D1: Energy Imbalance | E1: Operating Reserve | F1: STOR | G1: Constraints - E&W | H1: Constraints - Cheviot | I1: Constraints - Scotland | J1: Constraints - AS | K1: Negative Reserve | L1: Fast Reserve | M1: Response | N1: Other Reserve | O1: Reactive | P1: Minor Components | Q1: Black Start | R1: Total | S1: Demand | T1: Esitmated NGET Profit/(Loss) | U1: Estimated Internal BSUos(£m) | V1: BSUOS | W1: Total constraints | X1: Frequency control | Y1: Reserve | Z1: Other
A2: Y17W40 | B2: Oct-17 | C2: 02/10/2017 | D2: 0.053969528 | E2: 0.2354557348 | F2: 0.12263414 | G2: 0.6571186598 | H2: 2.431711136 | I2: 0.08115252607 | J2: 0.1522196986 | K2: 0 | L2: 0.2005696231 | M2: 0.5779137546 | N2: 0.08627693806 | O2: 0.2475220369 | P2: 0.07267964434 | Q2: 1.031048265 | R2: =SUM(D2:Q2) -> 5.950271685 | S2: 9.36205312 | T2: 3.152876712 | U2: 0.1917808219 | V2: =(R2+SUM(T2:U2))/S2 -> 0.9928302158 | W2: 3.32220202 | X2: 0.7784833777 | Y2: 0.4443668129 | Z2: 1.351249946
A3: Y17W41 | B3: Oct-17 | C3: 09/10/2017 | D3: 1.158303656 | E3: 1.291336746 | F3: 1.244548164 | G3: 2.981140991 | H3: 15.37620955 | I3: 0.3490183233 | J3: 0.1554638901 | K3: 0.2175592467 | L3: 1.881053996 | M3: 2.652745843 | N3: 0.3137487965 | O3: 1.383698518 | P3: 0.3565191211 | Q3: 1.065416541 | R3: 30.42676339 | S3: 9.674121557 | T3: 3.152876712 | U3: 0.1917808219 | V3: 3.490903099 | W3: 18.86183276 | X3: 4.533799839 | Y3: 3.067192953 | Z3: 2.80563418
A4: Y17W42 | B4: Oct-17 | C4: 16/10/2017 | D4: -0.382955938 | E4: 1.168631965 | F4: 1.355396553 | G4: 1.173047028 | H4: 18.12994022 | I4: 0.6225971519 | J4: 0.07359239014 | K4: 0.2689483004 | L4: 1.695089003 | M4: 2.64320837 | N4: 0.3586308265 | O4: 1.265015774 | P4: 0.229702069 | Q4: 1.031048265 | R4: 29.63189198 | S4: 9.36205312 | T4: 3.152876712 | U4: 0.1917808219 | V4: 3.522363 | W4: 19.99917679 | X4: 4.338297373 | Y4: 3.151607645 | Z4: 2.525766108
A5: Y17W43 | B5: Oct-17 | C5: 23/10/2017 | D5: -0.903763839 | E5: 1.849390438 | F5: 1.45253587 | G5: 2.422127312 | H5: 6.192114356 | I5: 0.3952777492 | J5: 0.4258462251 | K5: 0.09448199002 | L5: 1.645318661 | M5: 2.351850017 | N5: 0.5106974765 | O5: 1.480318598 | P5: 1.154002229 | Q5: 1.031048265 | R5: 20.10124535 | S5: 9.36205312 | T5: 3.152876712 | U5: 0.1917808219 | V5: 2.504354823 | W5: 9.435365643 | X5: 3.997168678 | Y5: 3.907105774 | Z5: 3.665369092
A6: Y17W44 | B6: Oct-17 | C6: 30/10/2017 | D6: -2.734807715 | E6: 0.9249970921 | F6: 1.50139049 | G6: 2.156261875 | H6: 12.36706103 | I6: 1.430521031 | J6: 0.7042147551 | K6: 0.1874819331 | L6: 1.628050423 | M6: 2.57603485 | N6: 0.2609251965 | O6: 1.473683718 | P6: 1.443805482 | Q6: 1.141517722 | R6: 25.06113788 | S6: 10.36513024 | T6: 3.152876712 | U6: 0.1917808219 | V6: 2.74051505 | W6: 16.65805869 | X6: 4.204085273 | Y6: 2.874794712 | Z6: 4.059006923
A7: Y17W45 | B7: Nov-17 | C7: 06/11/2017 | D7: -1.498427919 | E7: 1.542988263 | F7: 1.789623203 | G7: 1.623056745 | H7: 1.611687439 | I7: 0 | J7: 0.7744493051 | K7: 0.06677789881 | L7: 1.528946732 | M7: 2.373544545 | N7: 0.2468806061 | O7: 1.654718759 | P7: 0.393876359 | Q7: 0.799336906 | R7: 12.90745884 | S7: 10.64997418 | T7: 3.152876712 | U7: 0.1917808219 | V7: 1.526024017 | W7: 4.009193489 | X7: 3.902491276 | Y7: 3.646269971 | Z7: 2.847932024
A8: Y17W46 | B8: Nov-17 | C8: 13/11/2017 | D8: -1.611752933 | E8: 1.316160821 | F8: 2.064889961 | G8: 4.475583544 | H8: 9.685016524 | I8: 0.8748864878 | J8: 0.3802814801 | K8: 0.1669594264 | L8: 1.633454642 | M8: 2.244477109 | N8: 0.27872908 | O8: 1.326610344 | P8: 1.431162465 | Q8: 0.8259814695 | R8: 25.09244042 | S8: 11.00497332 | T8: 3.634246575 | U8: 0.2876712329 | V8: 2.636476926 | W8: 15.41576804 | X8: 3.877931751 | Y8: 3.826739288 | Z8: 3.583754278
A9: Y17W47 | B9: Nov-17 | C9: 20/11/2017 | D9: -1.228387895 | E9: 0.8686487984 | F9: 2.193775235 | G9: 6.126520337 | H9: 1.710498347 | I9: 3.190913978 | J9: 0.4967135301 | K9: 0.06873077956 | L9: 1.718352732 | M9: 2.28948135 | N9: 0.30666639 | O9: 1.476808744 | P9: 0.1875626726 | Q9: 0.799336906 | R9: 20.20562191 | S9: 10.64997418 | T9: 3.634246575 | U9: 0.2876712329 | V9: 2.265502179 | W9: 11.52464619 | X9: 4.007834082 | Y9: 3.437821203 | Z9: 2.463708322
A10: Y17W48 | B10: Nov-17 | C10: 27/11/2017 | D10: 0.330540215 | E10: 2.021384311 | F10: 2.133973078 | G10: 2.602346908 | H10: 0.6758225214 | I10: 2.270315839 | J10: 0.8391063301 | K10: 0.2468784849 | L10: 1.625957674 | M10: 2.57481931 | N10: 0.3139385 | O10: 1.396121014 | P10: -0.3838296182 | Q10: 0.8259814695 | R10: 17.47335604 | S10: 11.00497332 | T10: 3.634246575 | U10: 0.2876712329 | V10: 1.944145908 | W10: 6.387591598 | X10: 4.200776984 | Y10: 4.716174374 | Z10: 1.838272865
A11: Y17W49 | B11: Dec-17 | C11: 04/12/2017 | D11: 1.296535087 | E11: 1.431257743 | F11: 2.096119777 | G11: 2.575087181 | H11: 2.600563651 | I11: 0.8085169835 | J11: 0.6452026101 | K11: 0.07652456014 | L11: 1.672709422 | M11: 2.687444912 | N11: 0.24659556 | O11: 1.437404877 | P11: -0.6059400015 | Q11: 1.014839428 | R11: 17.98286179 | S11: 11.11950608 | T11: 3.634246575 | U11: 0.2876712329 | V11: 1.96994178 | W11: 6.629370426 | X11: 4.360154334 | Y11: 3.850497641 | Z11: 1.846304304
A12: Y17W50 | B12: Dec-17 | C12: 11/12/2017 | D12: 1.193217179 | E12: 1.952813003 | F12: 2.368155599 | G12: 1.119618416 | H12: 12.35099834 | I12: 1.143938096 | J12: 0.5946066501 | K12: 0.0320864173 | L12: 1.841475649 | M12: 2.714675356 | N12: 0.22547643 | O12: 1.492416918 | P12: 0.4026904882 | Q12: 1.014839428 | R12: 28.44700797 | S12: 11.11950608 | T12: 3.634246575 | U12: 0.2876712329 | V12: 2.911003919 | W12: 15.20916151 | X12: 4.556151005 | Y12: 4.57853145 | Z12: 2.909946835
A13: Y17W51 | B13: Dec-17 | C13: 18/12/2017 | D13: 1.901987114 | E13: 2.856016492 | F13: 2.067920771 | G13: 1.533967313 | H13: 0.8138536392 | I13: 0.01991870821 | J13: 0.2305430401 | K13: 0.003218831682 | L13: 1.875070859 | M13: 2.53291382 | N13: 0.22922125 | O13: 1.355601588 | P13: 0.3159873498 | Q13: 1.048667409 | R13: 16.78488818 | S13: 11.49015628 | T13: 3.634246575 | U13: 0.2876712329 | V13: 1.802134408 | W13: 2.5982827 | X13: 4.407984679 | Y13: 5.156377344 | Z13: 2.720256347
A14: Y17W52 | B14: Dec-17 | C14: 25/12/2017 | D14: -0.132848931 | E14: 1.526396046 | F14: 2.184117291 | G14: 1.762727127 | H14: 4.186966957 | I14: 3.883173178 | J14: 0.2448232301 | K14: -0.02215322079 | L14: 1.700803788 | M14: 2.439117055 | N14: 0.29784778 | O14: 1.415628538 | P14: 0.2950579387 | Q14: 1.014839428 | R14: 20.79649621 | S14: 11.11950608 | T14: 3.634246575 | U14: 0.2876712329 | V14: 2.222977696 | W14: 10.07769049 | X14: 4.139920843 | Y14: 3.986207897 | Z14: 2.725525905
A15: Y17W53 | B15: Dec-17 | C15: 01/01/2018 | D15: 1.695214869 | E15: 2.167490314 | F15: 1.974543321 | G15: 4.841517499 | H15: 1.157693178 | I15: 0.1768043618 | J15: 0.5802613701 | K15: 0.0806981489 | L15: 1.60306642 | M15: 2.460284972 | N15: 0.40322459 | O15: 1.747129648 | P15: 1.031812194 | Q15: 1.048667409 | R15: 20.96840829 | S15: 11.49015628 | T15: 3.634246575 | U15: 0.2876712329 | V15: 2.166230423 | W15: 6.756276409 | X15: 4.063351392 | Y15: 4.625956373 | Z15: 3.827609251
A16: Y18W1 | B16: Jan-18 | C16: 01/01/2018 | D16: -1.207620028 | E16: 2.690430699 | F16: 1.922343527 | G16: 2.7442942 | H16: 0.3813045981 | I16: 0.04878452673 | J16: 0.2696228101 | K16: 0.6353990676 | L16: 1.730571784 | M16: 2.786023035 | N16: 0.36012034 | O16: 1.656281668 | P16: 0.4425440356 | Q16: 0.8601649073 | R16: 15.32026517 | S16: 11.03130209 | T16: 3.634246575 | U16: 0.2876712329 | V16: 1.744325632 | W16: 3.444006135 | X16: 4.516594819 | Y16: 5.608293634 | Z16: 2.958990611
A17: Y18W2 | B17: Jan-18 | C17: 08/01/2018 | D17: -2.095166034 | E17: 1.689466769 | F17: 2.14144986 | G17: 2.912056108 | H17: 0.04671660296 | I17: 0.1877968373 | J17: 0.09481389014 | K17: 0.02911182573 | L17: 1.722038495 | M17: 2.156777457 | N17: 0.28178109 | O17: 1.446860108 | P17: 0.5241885023 | Q17: 0.8601649073 | R17: 11.99805642 | S17: 11.03130209 | T17: 3.634246575 | U17: 0.2876712329 | V17: 1.443163654 | W17: 3.241383439 | X17: 3.878815952 | Y17: 4.141809545 | Z17: 2.831213518
A18: Y18W3 | B18: Jan-18 | C18: 15/01/2018 | D18: 2.083049845 | E18: 2.197120956 | F18: 2.240771848 | G18: 1.936698589 | H18: 0.074581836 | I18: 0.6658588564 | J18: 0.05763989014 | K18: 0.1607220797 | L18: 1.912472324 | M18: 2.240269412 | N18: 0.36579432 | O18: 1.632051008 | P18: 0.3417413399 | Q18: 0.9523254331 | R18: 16.86109774 | S18: 12.21322731 | T18: 3.634246575 | U18: 0.2876712329 | V18: 1.701680892 | W18: 2.734779172 | X18: 4.152741736 | Y18: 4.964409204 | Z18: 2.926117781
A19: Y18W4 | B19: Jan-18 | C19: 22/01/2018 | D19: -0.843274052 | E19: 1.747139318 | F19: 2.024119091 | G19: 4.17918875 | H19: 7.749064913 | I19: 2.273286654 | J19: 0.03499904014 | K19: 0.02086364741 | L19: 1.883095432 | M19: 2.286303503 | N19: 0.38570228 | O19: 1.332764168 | P19: 0.3336293582 | Q19: 0.8601649073 | R19: 24.26704701 | S19: 11.03130209 | T19: 3.634246575 | U19: 0.2876712329 | V19: 2.555361516 | W19: 14.23653936 | X19: 4.169398935 | Y19: 4.177824336 | Z19: 2.526558434
A20: Y18W5 | B20: Feb-18 | C20: 29/01/2018 | D20: 0.152988266 | E20: 0.7780306664 | F20: 2.378702982 | G20: 1.143694384 | H20: 5.203248103 | I20: 2.574111904 | J20: 0.05447389014 | K20: 0.02750634655 | L20: 1.763281504 | M20: 2.775106751 | N20: 0.32949498 | O20: 1.434625345 | P20: 0.4967068037 | Q20: 0.7831198853 | R20: 19.89509181 | S20: 10.5877456 | T20: 3.634246575 | U20: 0.2876712329 | V20: 2.249488279 | W20: 8.975528281 | X20: 4.538388255 | Y20: 3.513734975 | Z20: 2.714452034
A21: Y18W6 | B21: Feb-18 | C21: 05/02/2018 | D21: -0.559070453 | E21: 1.413308692 | F21: 2.083413169 | G21: 0.6177101295 | H21: 1.593785964 | I21: 0.06415562136 | J21: 0.02896389014 | K21: 0.0616477933 | L21: 1.651363902 | M21: 2.201070964 | N21: 0.29032089 | O21: 1.362812548 | P21: 0.3984412503 | Q21: 0.7578579535 | R21: 11.96578231 | S21: 10.24620542 | T21: 3.634246575 | U21: 0.2876712329 | V21: 1.550593559 | W21: 2.304615605 | X21: 3.852434866 | Y21: 3.848690545 | Z21: 2.519111752
A22: Y18W7 | B22: Feb-18 | C22: 12/02/2018 | D22: -0.808255597 | E22: 1.304794268 | F22: 2.053683384 | G22: 0.3936430694 | H22: 2.28413342 | I22: 2.252185345 | J22: 0.02896389014 | K22: 0.01101353356 | L22: 1.849209906 | M22: 2.153184336 | N22: 0.29513768 | O22: 1.319197288 | P22: 0.3558589939 | Q22: 0.7831198853 | R22: 14.2758694 | S22: 10.5877456 | T22: 3.634246575 | U22: 0.2876712329 | V22: 1.718759395 | W22: 4.958925724 | X22: 4.002394242 | Y22: 3.664628866 | Z22: 2.458176168
A23: Y18W8 | B23: Feb-18 | C23: 19/02/2018 | D23: -3.745588174 | E23: 1.09637475 | F23: 2.014357207 | G23: 0.2772532044 | H23: 0 | I23: 0.098069771 | J23: 0.02896389014 | K23: 0.01144546407 | L23: 1.571949958 | M23: 2.064100125 | N23: 0.31862532 | O23: 1.449646178 | P23: 0.3725315687 | Q23: 0.7578579535 | R23: 6.315587217 | S23: 10.24620542 | T23: 3.634246575 | U23: 0.2876712329 | V23: 0.999150867 | W23: 0.4042868656 | X23: 3.636050083 | Y23: 3.440802741 | Z23: 2.580035701
A24: Y18W9 | B24: Mar-18 | C24: 26/02/2018 | D24: 9.411547568 | E24: 15.73934011 | F24: 2.235994311 | G24: 2.403718473 | H24: 2.152782463 | I24: 0.01061026687 | J24: 0.5219388901 | K24: 0.01990260492 | L24: 1.955755421 | M24: 3.503617895 | N24: 0.2284828 | O24: 1.433819081 | P24: 0.347294492 | Q24: 0.8463932897 | R24: 40.81119767 | S24: 11.00800814 | T24: 3.634246575 | U24: 0.2876712329 | V24: 4.063688446 | W24: 5.089050093 | X24: 5.459373315 | Y24: 18.22371983 | Z24: 2.627506863
A25: Y18W10 | B25: Mar-18 | C25: 05/03/2018 | D25: -0.534178097 | E25: 1.626423409 | F25: 1.617781174 | G25: 0.5774860393 | H25: 0 | I25: 0.007159099 | J25: 0.5469638901 | K25: 0.09016350729 | L25: 1.877807792 | M25: 2.318371815 | N25: 0.19532449 | O25: 1.595726658 | P25: 0.3515081474 | Q25: 0.8746063993 | R25: 11.14514432 | S25: 11.37494174 | T25: 3.634246575 | U25: 0.2876712329 | V25: 1.324583675 | W25: 1.131609028 | X25: 4.196179607 | Y25: 3.529692581 | Z25: 2.821841205
A26: Y18W11 | B26: Mar-18 | C26: 12/03/2018 | D26: -0.635640132 | E26: 1.281578586 | F26: 1.839527501 | G26: 9.919977467 | H26: 0.03444773255 | I26: 1.422987033 | J26: 1.11866558 | K26: 0.1600774072 | L26: 1.574057439 | M26: 2.499285094 | N26: 0.21550508 | O26: 1.125069858 | P26: -0.02132978812 | Q26: 0.8463932897 | R26: 21.38060215 | S26: 11.00800814 | T26: 3.634246575 | U26: 0.2876712329 | V26: 2.29855571 | W26: 12.49607781 | X26: 4.073342534 | Y26: 3.496688574 | Z26: 1.95013336
A27: Y18W12 | B27: Mar-18 | C27: 19/03/2018 | D27: -2.766361479 | E27: 1.194078894 | F27: 1.653956282 | G27: 2.79414522 | H27: 0.1002206343 | I27: 0 | J27: 1.115608956 | K27: 0.1519152075 | L27: 1.564342965 | M27: 2.358314767 | N27: 0.22814242 | O27: 1.175583618 | P27: 0.460017139 | Q27: 0.8463932897 | R27: 10.87635791 | S27: 11.00800814 | T27: 3.634246575 | U27: 0.2876712329 | V27: 1.344319112 | W27: 4.009974811 | X27: 3.922657732 | Y27: 3.228092804 | Z27: 2.481994047
A28: Y18W13 | B28: Apr-18 | C28: 26/03/2018 | D28: 0.227323309 | E28: 1.119656501 | F28: 2.031194284 | G28: 0.7648228782 | H28: 0.017931255 | I28: 0 | J28: 0.706444031 | K28: 0.02297071457 | L28: 2.040311829 | M28: 2.47402097 | N28: 0.41998192 | O28: 1.508353799 | P28: 0.2622057607 | Q28: 0.115030018 | R28: 11.71024727 | S28: 9.119351688 | T28: 3.634246575 | U28: 0.2876712329 | V28: 1.714175044 | W28: 1.489198164 | X28: 4.514332799 | Y28: 3.59380342 | Z28: 1.885589578
A29: Y18W14 | B29: Apr-18 | C29: 02/04/2018 | D29: -1.269568976 | E29: 0.7008661335 | F29: 1.339156767 | G29: 1.216882523 | H29: 0.2918937517 | I29: 0 | J29: 0.9739538064 | K29: 0.03332448791 | L29: 1.375430321 | M29: 2.552708822 | N29: 0.18257442 | O29: 1.31996076 | P29: 0.3164470509 | Q29: 0.804315966 | R29: 9.837945835 | S29: 9.119351688 | T29: 3.634246575 | U29: 0.2876712329 | V29: 1.508864239 | W29: 2.482730081 | X29: 3.928139144 | Y29: 2.255921809 | Z29: 2.440723777
A30: Y18W15 | B30: Apr-18 | C30: 09/04/2018 | D30: 0.853776787 | E30: 0.9997981784 | F30: 1.714389757 | G30: 0.2518414153 | H30: 0.9625419395 | I30: 0 | J30: 0.7161511264 | K30: 0.05023817852 | L30: 1.625117668 | M30: 2.38493663 | N30: 0.1676355 | O30: 1.458182741 | P30: 0.388718889 | Q30: 0.764865146 | R30: 12.33819396 | S30: 9.119351688 | T30: 3.634246575 | U30: 0.2876712329 | V30: 1.783033742 | W30: 1.930534481 | X30: 4.010054298 | Y30: 2.932061614 | Z30: 2.611766776
A31: Y18W16 | B31: Apr-18 | C31: 16/04/2018 | D31: -3.113254881 | E31: 1.24548734 | F31: 1.330287154 | G31: 1.566440951 | H31: 10.74644632 | I31: 0.2624214092 | J31: 0.4902908764 | K31: 0.2983218047 | L31: 1.448057574 | M31: 2.650631734 | N31: 0.15708086 | O31: 1.465881106 | P31: 0.328399009 | Q31: 0.819684686 | R31: 19.69617594 | S31: 9.119351688 | T31: 3.634246575 | U31: 0.2876712329 | V31: 2.589887369 | W31: 13.06559955 | X31: 4.098689308 | Y31: 3.031177159 | Z31: 2.613964801
A32: Y18W17 | B32: Apr-18 | C32: 23/04/2018 | D32: -2.262532954 | E32: 0.6872826765 | F32: 1.305130053 | G32: 5.604595531 | H32: 1.230351154 | I32: 0.09641755396 | J32: 0.4106163564 | K32: 0.02954856597 | L32: 1.501618083 | M32: 2.573381244 | N32: 0.16369526 | O32: 1.582399816 | P32: 0.3041845447 | Q32: 0.759277516 | R32: 13.9859654 | S32: 9.119351688 | T32: 3.634246575 | U32: 0.2876712329 | V32: 1.96372328 | W32: 7.341980596 | X32: 4.074999327 | Y32: 2.185656555 | Z32: 2.645861877
A33: Y18W18 | B33: May-18 | C33: 30/04/2018 | D33: -1.861037127 | E33: 0.9146025416 | F33: 1.726444815 | G33: 4.78514534 | H33: 0.04102943608 | I33: 1.747956818 | J33: 0.6152809964 | K33: 0.2722817863 | L33: 1.48237702 | M33: 2.882360382 | N33: 0.2696073029 | O33: 1.54624508 | P33: 0.2976253356 | Q33: 0.9442862333 | R33: 15.66420596 | S33: 8.345821094 | T33: 3.634246575 | U33: 0.2876712329 | V33: 2.346818072 | W33: 7.189412591 | X33: 4.364737402 | Y33: 3.182936446 | Z33: 2.788156649
A34: Y18W19 | B34: May-18 | C34: 07/05/2018 | D34: -2.401501722 | E34: 0.7901119577 | F34: 1.467379269 | G34: 2.286655076 | H34: 1.415131834 | I34: 0.2078863585 | J34: 0.03903592642 | K34: 0.1244406611 | L34: 1.477801842 | M34: 2.639950934 | N34: 0.2263378184 | O34: 1.807658584 | P34: 0.3522802314 | Q34: 0.7619854848 | R34: =SUM(D34:Q34) -> 11.19515425 | S34: 8.345821094 | T34: 3.634246575 | U34: 0.2876712329 | V34: =(R34+SUM(T34:U34))/S34 -> 1.811334306 | W34: 3.948709194 | X34: 4.117752776 | Y34: 2.608269706 | Z34: 2.9219243
A35: Y18W20 | B35: May-18 | C35: 14/05/2018 | D35: -2.014561888 | E35: 0.9619239082 | F35: 1.531523347 | G35: 4.424618875 | H35: 0 | I35: 0.1174417766 | J35: 0.03673190642 | K35: 1.14030123 | L35: 1.41416456 | M35: 2.669461019 | N35: 0.2117341484 | O35: 1.497431244 | P35: 0.1555233129 | Q35: 0.7932966548 | R35: 12.93959009 | S35: 8.345821094 | T35: 3.634246575 | U35: 0.2876712329 | V35: 2.020353386 | W35: 4.578792558 | X35: 4.08362558 | Y35: 3.845482633 | Z35: 2.446251212
A36: Y18W21 | B36: May-18 | C36: 21/05/2018 | D36: -0.909902313 | E36: 1.155086808 | F36: 1.543325307 | G36: 7.404409825 | H36: 0 | I36: 0.03260891107 | J36: 0.04871277642 | K36: 0.4772800378 | L36: 1.36744575 | M36: 2.78514075 | N36: 0.1406571684 | O36: 1.560419544 | P36: 0.176471696 | Q36: 0.7931231948 | R36: 16.57477945 | S36: 8.345821094 | T36: 3.634246575 | U36: 0.2876712329 | V36: 2.455923394 | W36: 7.485731512 | X36: 4.1525865 | Y36: 3.316349321 | Z36: 2.530014435
A37: Y18W22 | B37: Jun-18 | C37: 28/05/2018 | D37: 0.850649771 | E37: 1.137426142 | F37: 1.567987411 | G37: 3.311232553 | H37: 0 | I37: 0 | J37: 0.7517606064 | K37: 0.1452250795 | L37: 1.476696488 | M37: 2.656108304 | N37: 0.2323384689 | O37: 1.881178688 | P37: 0.1665488161 | Q37: 0.8490825292 | R37: 15.02623486 | S37: 7.973783244 | T37: 3.634246575 | U37: 0.2876712329 | V37: 2.376306464 | W37: 4.062993159 | X37: 4.132804792 | Y37: 3.082977101 | Z37: 2.896810033
A38: Y18W23 | B38: Jun-18 | C38: 04/06/2018 | D38: -1.569063824 | E38: 0.8065271409 | F38: 1.850730457 | G38: 3.434254616 | H38: 0 | I38: 0 | J38: 0.9875056064 | K38: 0.0009175075033 | L38: 1.140950115 | M38: 2.580240264 | N38: 0.1358523197 | O38: 1.65253965 | P38: 0.2239659273 | Q38: 0.8104272217 | R38: 12.054847 | S38: 7.973783244 | T38: 3.634246575 | U38: 0.2876712329 | V38: 2.00366179 | W38: 4.421760222 | X38: 3.72119038 | Y38: 2.794027425 | Z38: 2.686932799
A39: Y18W24 | B39: Jun-18 | C39: 11/06/2018 | D39: -0.969266159 | E39: 0.8083523975 | F39: 1.541145834 | G39: 6.444798694 | H39: 6.687200512 | I39: 3.318152657 | J39: 0.7937852169 | K39: 0.2456594453 | L39: 1.54892004 | M39: 2.731849786 | N39: 0.1730828797 | O39: 1.71496955 | P39: 0.2597830177 | Q39: 0.7364981217 | R39: 26.03493199 | S39: 7.973783244 | T39: 3.634246575 | U39: 0.2876712329 | V39: 3.756918 | W39: 17.24393708 | X39: 4.280769825 | Y39: 2.768240556 | Z39: 2.711250689
A40: Y18W25 | B40: Jun-18 | C40: 18/06/2018 | D40: -0.255371036 | E40: 0.871278166 | F40: 1.439630203 | G40: 19.01276551 | H40: 1.092994397 | I40: 2.940348945 | J40: 0.9509013464 | K40: 0.05993916466 | L40: 1.618186626 | M40: 2.853240008 | N40: 0.2290696597 | O40: 1.65258775 | P40: 0.6132961366 | Q40: 0.7153921717 | R40: 33.79425904 | S40: 7.973783244 | T40: 3.634246575 | U40: 0.2876712329 | V40: 4.730022838 | W40: 23.99701019 | X40: 4.471426634 | Y40: 2.599917193 | Z40: 2.981276058
A41: Y18W26 | B41: Jul-18 | C41: 25/06/2018 | D41: 0.006040975 | E41: 0.9684190724 | F41: 1.428380841 | G41: 4.811706236 | H41: 0 | I41: 0.00664299 | J41: 0.5412906064 | K41: 0.2570803903 | L41: 1.394720409 | M41: 2.604390372 | N41: 0.1856997646 | O41: 1.663416266 | P41: 0.01311763071 | Q41: 0.7129997832 | R41: 14.59390534 | S41: 8.120534239 | T41: 3.634246575 | U41: 0.2876712329 | V41: 2.28012377 | W41: 5.359639833 | X41: 3.999110781 | Y41: 2.839580068 | Z41: 2.38953368
A42: Y18W27 | B42: Jul-18 | C42: 02/07/2018 | D42: 0.104081025 | E42: 0.9285307868 | F42: 1.911278405 | G42: 3.588329163 | H42: 0.01401895 | I42: 0.057567482 | J42: 0.02990560642 | K42: 0.1774501992 | L42: 1.847540962 | M42: 2.358263217 | N42: 0.2282524645 | O42: 1.575141103 | P42: 0.2337596647 | Q42: 0.7336253426 | R42: 13.78774437 | S42: 8.120534239 | T42: 3.634246575 | U42: 0.2876712329 | V42: 2.180849395 | W42: 3.689821202 | X42: 4.205804178 | Y42: 3.245511856 | Z42: 2.54252611
A43: Y18W28 | B43: Jul-18 | C43: 09/07/2018 | D43: -0.994989948 | E43: 1.075840632 | F43: 1.61279814 | G43: 4.04798532 | H43: 0.7574441917 | I43: 0 | J43: 0.02990560642 | K43: 0.05854023243 | L43: 1.951333786 | M43: 2.173482418 | N43: 0.2375466745 | O43: 1.529968463 | P43: 0.2017163628 | Q43: 0.7460844426 | R43: 13.42765632 | S43: 8.120534239 | T43: 3.634246575 | U43: 0.2876712329 | V43: 2.136506493 | W43: 4.835335118 | X43: 4.124816204 | Y43: 2.984725678 | Z43: 2.477769268
A44: Y18W29 | B44: Jul-18 | C44: 16/07/2018 | D44: -1.029918966 | E44: 0.8972630071 | F44: 1.574858616 | G44: 3.297033097 | H44: 0 | I44: 0 | J44: 0.02990560642 | K44: 0.006937771401 | L44: 1.410842882 | M44: 2.277073079 | N44: 0.2661060345 | O44: 1.515767503 | P44: 0.2567701276 | Q44: 0.6247264226 | R44: 11.12736518 | S44: 8.120534239 | T44: 3.634246575 | U44: 0.2876712329 | V44: 1.853238044 | W44: 3.326938703 | X44: 3.687915961 | Y44: 2.745165429 | Z44: 2.397264053
A45: Y18W30 | B45: Jul-18 | C45: 23/07/2018 | D45: 0.703475822 | E45: 1.409815818 | F45: 1.663010336 | G45: 17.78506398 | H45: 0.021304249 | I45: 0.1695256721 | J45: 0.05981703602 | K45: 0.008355860594 | L45: 1.640668517 | M45: 2.567345345 | N45: 0.3056468845 | O45: 1.235709053 | P45: 0.3002200326 | Q45: 0.6451294826 | R45: 28.51508809 | S45: 8.120534239 | T45: 3.634246575 | U45: 0.2876712329 | V45: 3.994442354 | W45: 18.03571094 | X45: 4.208013862 | Y45: 3.386828899 | Z45: 2.181058568
A46: Y18W31 | B46: Aug-18 | C46: 30/07/2018 | D46: -1.505413746 | E46: 0.7386326691 | F46: 1.448925089 | G46: 12.45234562 | H46: 2.031410278 | I46: 0.02021073373 | J46: 0.08864182642 | K46: 0.1454129455 | L46: 1.642501202 | M46: 2.468371649 | N46: 0.2155558952 | O46: 1.505245911 | P46: 0.2678156391 | Q46: 0.8112017691 | R46: 22.33085748 | S46: 8.216295563 | T46: 3.634246575 | U46: 0.2876712329 | V46: 3.19520824 | W46: 14.59260846 | X46: 4.110872851 | Y46: 2.548526599 | Z46: 2.584263319
A47: Y18W32 | B47: Aug-18 | C47: 06/08/2018 | D47: -1.489515812 | E47: 0.8600277124 | F47: 1.403990316 | G47: 4.657476277 | H47: 0 | I47: 0 | J47: 0.1183803964 | K47: 0.2833995029 | L47: 1.630615972 | M47: 2.331133641 | N47: 0.2554204574 | O47: 1.492936748 | P47: 0.2107556089 | Q47: 0.7941923474 | R47: 12.54881317 | S47: 8.216295563 | T47: 3.634246575 | U47: 0.2876712329 | V47: 2.004641976 | W47: 4.775856674 | X47: 3.961749614 | Y47: 2.802837989 | Z47: 2.497884704
A48: Y18W33 | B48: Aug-18 | C48: 13/08/2018 | D48: -0.508069293 | E48: 0.8082408266 | F48: 1.593657427 | G48: 13.12453009 | H48: 0 | I48: 0.020381637 | J48: 0.09854452642 | K48: -0.006638912367 | L48: 1.798768115 | M48: 2.467239616 | N48: 0.2544512174 | O48: 1.536737778 | P48: 0.6733930846 | Q48: 0.7721951774 | R48: 22.63343129 | S48: 8.216295563 | T48: 3.634246575 | U48: 0.2876712329 | V48: 3.232034303 | W48: 13.24345626 | X48: 4.26600773 | Y48: 2.649710559 | Z48: 2.98232604
A49: Y18W34 | B49: Aug-18 | C49: 20/08/2018 | D49: -0.350309966 | E49: 1.364482971 | F49: 1.545196266 | G49: 6.397448425 | H49: 0.1480895063 | I49: 0 | J49: 0.04723391642 | K49: 0.009226516488 | L49: 2.262769523 | M49: 2.32372182 | N49: 0.3136111674 | O49: 1.516696378 | P49: 0.7152464063 | Q49: 0.8105030974 | R49: 17.10391603 | S49: 8.216295563 | T49: 3.634246575 | U49: 0.2876712329 | V49: 2.559040589 | W49: 6.592771848 | X49: 4.586491343 | Y49: 3.232516922 | Z49: 3.042445882
A50: Y18W35 | B50: Sep-18 | C50: 27/08/2018 | D50: -1.100368688 | E50: 1.282747145 | F50: 1.433457254 | G50: 4.759949236 | H50: 5.06938138e-05 | I50: 1.52634092 | J50: 0.03639495642 | K50: 0.09250232722 | L50: 1.854396966 | M50: 2.556131011 | N50: 0.2711886339 | O50: 1.562045399 | P50: 0.5800879986 | Q50: 1.168844757 | R50: 16.02376861 | S50: 8.168869814 | T50: 3.634246575 | U50: 0.2876712329 | V50: 2.441670252 | W50: 6.322735806 | X50: 4.410527976 | Y50: 3.07989536 | Z50: 3.310978154
A51: Y18W36 | B51: Sep-18 | C51: 03/09/2018 | D51: -1.281771679 | E51: 0.9787790284 | F51: 1.176689267 | G51: 4.902586725 | H51: 0 | I51: 0.2718555723 | J51: 0.2084918364 | K51: 0.006279680866 | L51: 1.511115518 | M51: 2.185406973 | N51: 0.24408341 | O51: 1.544966664 | P51: 0.3282600285 | Q51: 0.7383300467 | R51: 12.81507307 | S51: 8.168869814 | T51: 3.634246575 | U51: 0.2876712329 | V51: 2.048874723 | W51: 5.382934134 | X51: 3.696522491 | Y51: 2.405831387 | Z51: 2.611556739
A52: Y18W37 | B52: Sep-18 | C52: 10/09/2018 | D52: -0.675372807 | E52: 1.071819465 | F52: 1.459602795 | G52: 18.85363524 | H52: 7.021429553 | I52: 1.283003144 | J52: 0.4115923309 | K52: 0.1004363642 | L52: 1.65948423 | M52: 3.116757862 | N52: 0.24203927 | O52: 1.303466154 | P52: 0.1428431204 | Q52: 0.7566575567 | R52: 36.74739428 | S52: 8.168869814 | T52: 3.634246575 | U52: 0.2876712329 | V52: 4.978572681 | W52: 27.56966027 | X52: 4.776242092 | Y52: 2.873897894 | Z52: 2.202966831
A53: Y18W38 | B53: Sep-18 | C53: 17/09/2018 | D53: 3.174764283 | E53: 1.761152885 | F53: 1.435602252 | G53: 26.85744827 | H53: 0.082083384 | I53: 2.233086205 | J53: 0.4110864214 | K53: 0.1945357343 | L53: 1.69908809 | M53: 2.742588094 | N53: 0.25672347 | O53: 1.343662514 | P53: 0.5658010615 | Q53: 0.7641239667 | R53: 43.52174663 | S53: 8.168869814 | T53: 3.634246575 | U53: 0.2876712329 | V53: 5.807861494 | W53: 29.58370428 | X53: 4.441676184 | Y53: 3.648014341 | Z53: 2.673587543

Sheet Monthly Summary Forecast
A1: Month | B1: Energy Imbalance | C1: Operating Reserve | D1: STOR | E1: Constraints - E&W | F1: Constraints - Cheviot | G1: Constraints - Scotland | H1: Constraints - AS | I1: Negative Reserve | J1: Fast Reserve | K1: Response | L1: Other Reserve | M1: Reactive | N1: Minor Components | O1: Black Start | P1: Total | Q1: Demand | R1: Estimated Internal BSUos(£m) | S1: Esitmated NGET Profit/(Loss) | T1: Esitimated BSUoS Charge (£/MWh) | U1: Constraints
A2: Oct-18 | B2: 0.8840120602 | C2: 6.134152397 | D2: 5.994831432 | E2: 64.60974279 | F2: 8.818972127 | G2: 3.107226254 | H2: 0 | I2: 0.4739975229 | J2: 7.440165182 | K2: 11.25450469 | L2: 1.59051244 | M2: 6.064290407 | N2: -1.232806722 | O2: 3.821917808 | P2: =SUM(B2:O2) -> 118.9615184 | Q2: 41.039363 | R2: 16.09452055 | S2: 1.273972603 | T2: =(P2+SUM(R2:S2))/Q2 -> 3.321932934 | U2: =SUM(E2:H2) -> 76.53594117
A3: Nov-18 | B3: -1.50161 | C3: 12.06921782 | D3: 7.428685335 | E3: 26.55141223 | F3: 14.593722 | G3: 3.540982 | H3: 0 | I3: 0.5021293865 | J3: 7.913092712 | K3: 11.26125103 | L3: 1.19691699 | M3: 5.819559456 | N3: -1.098452042 | O3: 3.698630137 | P3: 91.97553705 | Q3: 46.68507545 | R3: 15.57534247 | S3: 1.232876712 | T3: 2.330161303 | U3: 44.68611623
A4: Dec-18 | B4: -1.66084 | C4: 11.7111909 | D4: 7.470250666 | E4: 14.70270807 | F4: 11.803187 | G4: 2.863894 | H4: 0 | I4: 0.467609764 | J4: 10.04094001 | K4: 12.12146899 | L4: 1.29142999 | M4: 6.392731356 | N4: -0.2841069963 | O4: 3.821917808 | P4: 80.74238156 | Q4: 48.74330882 | R4: 16.09452055 | S4: 1.273972603 | T4: 2.012807031 | U4: 29.36978907
A5: Jan-19 | B5: -0.87291 | C5: 9.784243093 | D5: 7.574538827 | E5: 10.59650517 | F5: 4.141712039 | G5: 1.180462 | H5: 0 | I5: 0.6438143638 | J5: 10.29715057 | K5: 11.87242982 | L5: 1.56689246 | M5: 6.329059938 | N5: -2.014285052 | O5: 3.821917808 | P5: 64.92153104 | Q5: 48.35665904 | R5: 16.09452055 | S5: 1.273972603 | T5: 1.701730968 | U5: 15.91867921
A6: Feb-19 | B6: 1.097639 | C6: 12.79447421 | D6: 6.5184684 | E6: 10.42806155 | F6: 5.983822842 | G6: 1.367802 | H6: 0 | I6: 0.1192310308 | J6: 8.712608818 | K6: 12.3105407 | L6: 1.17264198 | M6: 5.086122881 | N6: 1.128311979 | O6: 3.452054795 | P6: 70.17178019 | Q6: 44.91512043 | R6: 14.5369863 | S6: 1.150684932 | T6: 1.911593481 | U6: 17.77968639
A7: Mar-19 | B7: -1.88797 | C7: 13.06150212 | D7: 7.399366707 | E7: 12.81048707 | F7: 8.278738039 | G7: 2.184258 | H7: 0 | I7: 0.2231438847 | J7: 9.713440979 | K7: 11.36668776 | L7: 1.07642294 | M7: 5.410541881 | N7: -0.8369172103 | O7: 3.821917808 | P7: 72.62161998 | Q7: 48.25454801 | R7: 16.09452055 | S7: 1.273972603 | T7: 1.86490428 | U7: 23.27348311
A8: Apr-19 | B8: -6.86193 | C8: 8.240256406 | D8: 5.167662387 | E8: 11.622266 | F8: 7.641157825 | G8: 2.023895 | H8: 0 | I8: 0.404275131 | J8: 9.036835996 | K8: 11.80912289 | L8: 1.14423862 | M8: 6.038171563 | N8: 1.839695 | O8: 3.698630137 | P8: 61.80427696 | Q8: 35.27584128 | R8: 15.61643836 | S8: 0.9863013699 | T8: 2.222683112 | U8: 21.28731883
A9: May-19 | B9: -4.87904 | C9: 8.930688654 | D9: 5.575822434 | E9: 13.588938 | F9: 9.181803086 | G9: 2.403376 | H9: 0 | I9: 0.8954865094 | J9: 8.973187964 | K9: 11.56918306 | L9: 0.869565856 | M9: 6.814015764 | N9: 2.064174342 | O9: 3.821917808 | P9: 69.80911948 | Q9: 35.83799938 | R9: 16.1369863 | S9: 1.019178082 | T9: 2.426622171 | U9: 25.17411709
A10: Jun-19 | B10: -4.18636 | C10: 5.822879521 | D10: 5.434767887 | E10: 10.18817 | F10: 10.76912097 | G10: 2.782856 | H10: 0 | I10: 1.643863178 | J10: 8.81344767 | K10: 11.22325724 | L10: 1.007946391 | M10: 6.383657907 | N10: 1.399141142 | O10: 3.698630137 | P10: 64.98137805 | Q10: 33.07689983 | R10: 15.61643836 | S10: 0.9863013699 | T10: 2.466498317 | U10: 23.74014697
A11: Jul-19 | B11: -3.47302 | C11: 6.967501368 | D11: 5.962998065 | E11: 12.987502 | F11: 11.52777604 | G11: 2.972596 | H11: 0 | I11: 1.846568357 | J11: 9.082911269 | K11: 11.82832355 | L11: 1.171890175 | M11: 6.24820381 | N11: 1.109641065 | O11: 3.821917808 | P11: 72.05480951 | Q11: 33.84858242 | R11: 16.1369863 | S11: 1.019178082 | T11: 2.635589662 | U11: 27.48787404
A12: Aug-19 | B12: -4.09887 | C12: 8.151525632 | D12: 5.817931184 | E12: 15.734746 | F12: 12.78844004 | G12: 3.035843 | H12: 0 | I12: 1.666469361 | J12: 9.597955749 | K12: 11.62279721 | L12: 1.284052818 | M12: 6.115690414 | N12: 0.1412688306 | O12: 3.821917808 | P12: 75.67976804 | Q12: 33.57408573 | R12: 16.1369863 | S12: 1.019178082 | T12: 2.76510679 | U12: 31.55902904
A13: Sep-19 | B13: -2.29425 | C13: 14.07594364 | D13: 6.307976992 | E13: 14.751356 | F13: 11.81177597 | G13: 3.035843 | H13: 0 | I13: 1.761269194 | J13: 8.773887424 | K13: 11.45979667 | L13: 1.049152513 | M13: 5.903843179 | N13: -0.2530733819 | O13: 3.698630137 | P13: 80.08215134 | Q13: 35.13914761 | R13: 15.61643836 | S13: 0.9863013699 | T13: 2.751486523 | U13: 29.59897497
A14: Oct-19 | B14: -1.4504 | C14: 16.34633217 | D14: 6.226388327 | E14: 13.062446 | F14: 12.52777604 | G14: 2.972596 | H14: 0 | I14: 1.210690085 | J14: 9.101970386 | K14: 11.74848183 | L14: 0.886843321 | M14: 6.064290407 | N14: 0.8853786014 | O14: 3.821917808 | P14: 83.40471098 | Q14: 38.56711221 | R14: 16.1369863 | S14: 1.019178082 | T14: 2.607425591 | U14: 28.56281804
A15: Nov-19 | B15: -1.50161 | C15: 16.05215931 | D15: 7.428685335 | E15: 15.458697 | F15: 11.469199 | G15: 3.567115 | H15: 0 | I15: 0.5021293865 | J15: 9.388502548 | K15: 11.26125103 | L15: 0.916175573 | M15: 5.819559456 | N15: -0.8006521155 | O15: 3.698630137 | P15: 83.25984166 | Q15: 43.87272151 | R15: 15.61643836 | S15: 0.9863013699 | T15: 2.276188437 | U15: 30.495011
A16: Dec-19 | B16: -1.66084 | C16: 11.80086942 | D16: 7.470250666 | E16: 13.573569 | F16: 10.426545 | G16: 2.529869 | H16: 0 | I16: 0.467609764 | J16: 10.04094001 | K16: 11.4084414 | L16: 0.882285583 | M16: 6.392731356 | N16: 0.03535889066 | O16: 3.821917808 | P16: 77.1895479 | Q16: 45.80696492 | R16: 16.1369863 | S16: 1.019178082 | T16: 2.059636836 | U16: 26.529983
A17: Jan-20 | B17: -0.87291 | C17: 10.0496849 | D17: 7.574538827 | E17: 8.858994 | F17: 8.914696 | G17: 2.163038 | H17: 0 | I17: 0.6438143638 | J17: 10.29715057 | K17: 11.1740516 | L17: 0.851570155 | M17: 6.329059938 | N17: -1.564404557 | O17: 3.821917808 | P17: 68.2412016 | Q17: 45.44360729 | R17: 16.1369863 | S17: 1.019178082 | T17: 1.87919426 | U17: 19.936728
A18: Feb-20 | B18: 1.036736742 | C18: 12.99519901 | D18: 6.5184684 | E18: 9.408193393 | F18: 7.819908607 | G18: 1.897402 | H18: 0 | I18: 0.1192310308 | J18: 8.712608818 | K18: 11.07948663 | L18: 0.920916997 | M18: 5.086122881 | N18: 1.304996255 | O18: 3.452054795 | P18: 70.35132556 | Q18: 42.20939029 | R18: 14.57534247 | S18: 0.9205479452 | T18: 2.033841649 | U18: 19.125504
A19: Mar-20 | B19: -1.966613075 | C19: 12.85049462 | D19: 7.567027998 | E19: 11.681348 | F19: 6.255927 | G19: 1.517922 | H19: 0 | I19: 0.2231438847 | J19: 9.852717215 | K19: 11.59485645 | L19: 1.042687849 | M19: 5.410541881 | N19: -0.5624386337 | O19: 3.821917808 | P19: 69.289533 | Q19: 45.34764753 | R19: 16.1369863 | S19: 1.019178082 | T19: 1.906288465 | U19: 19.455197
A20: Apr-20 | B20: -6.86193 | C20: 8.292958957 | D20: 5.167662387 | E20: 11.622266 | F20: 7.641157825 | G20: 2.023895 | H20: 0 | I20: 0.404275131 | J20: 9.036835996 | K20: 11.80912289 | L20: 1.14423862 | M20: 6.038171563 | N20: 3.01394728 | O20: 3.698630137 | P20: 63.03123179 | Q20: 35.27584128 | R20: 15.61643836 | S20: 0.9863013699 | T20: 2.257464844 | U20: 21.28731883
A21: May-20 | B21: -4.87904 | C21: 8.955818674 | D21: 5.575822434 | E21: 13.588938 | F21: 9.181803086 | G21: 2.403376 | H21: 0 | I21: 0.8954865094 | J21: 8.973187964 | K21: 12.58148658 | L21: 0.869565856 | M21: 6.814015764 | N21: 2.96319145 | O21: 3.821917808 | P21: 71.74557013 | Q21: 35.83799938 | R21: 16.1369863 | S21: 1.019178082 | T21: 2.480655618 | U21: 25.17411709
A22: Jun-20 | B22: -4.18636 | C22: 5.833712861 | D22: 5.434767887 | E22: 10.18817 | F22: 10.76912097 | G22: 2.782856 | H22: 0 | I22: 1.643863178 | J22: 8.81344767 | K22: 11.92471082 | L22: 1.007946391 | M22: 6.383657907 | N22: 2.577322236 | O22: 3.698630137 | P22: 66.87184606 | Q22: 33.07689983 | R22: 15.61643836 | S22: 0.9863013699 | T22: 2.523652041 | U22: 23.74014697
A23: Jul-20 | B23: -3.47302 | C23: 6.970418038 | D23: 5.962998065 | E23: 12.987502 | F23: 11.52777604 | G23: 2.972596 | H23: 0 | I23: 1.846568357 | J23: 9.082911269 | K23: 12.56759378 | L23: 1.171890175 | M23: 6.24820381 | N23: 2.561929697 | O23: 3.821917808 | P23: 74.24928503 | Q23: 33.84858242 | R23: 16.1369863 | S23: 1.019178082 | T23: 2.700421786 | U23: 27.48787404
A24: Aug-20 | B24: -4.09887 | C24: 8.247641882 | D24: 5.817931184 | E24: 15.734746 | F24: 12.78844004 | G24: 3.035843 | H24: 0 | I24: 1.666469361 | J24: 9.597955749 | K24: 13.07564686 | L24: 1.284052818 | M24: 6.115690414 | N24: 1.545159449 | O24: 3.821917808 | P24: 78.63262456 | Q24: 33.57408573 | R24: 16.1369863 | S24: 1.019178082 | T24: 2.853057257 | U24: 31.55902904
A25: Sep-20 | B25: -2.29425 | C25: 14.12836031 | D25: 6.307976992 | E25: 14.751356 | F25: 11.81177597 | G25: 3.035843 | H25: 0 | I25: 1.761269194 | J25: 8.773887424 | K25: 11.29935952 | L25: 1.049152513 | M25: 5.903843179 | N25: 1.071485672 | O25: 3.698630137 | P25: 81.29868991 | Q25: 35.13914761 | R25: 15.61643836 | S25: 0.9863013699 | T25: 2.786107128 | U25: 29.59897497

Sheet All Monthly
A1: Month | B1: Energy Imbalance | C1: Operating Reserve | D1: STOR | E1: Constraints - E&W | F1: Constraints - Cheviot | G1: Constraints - Scotland | H1: Constraints - AS | I1: Negative Reserve | J1: Fast Reserve | K1: Response | L1: Other Reserve | M1: Reactive | N1: Minor Components | O1: Black Start | P1: Total | Q1: Demand | R1: Estimated Internal BSUos(£m) | S1: Esitmated NGET Profit/(Loss)
A2: Oct-17 | B2: -2.842516968 | C2: 6.018816398 | D2: 6.178008962 | E2: 9.958197188 | F2: 54.60265779 | G2: 2.878566782 | H2: 1.666545641 | I2: 0.7877157572 | J2: 7.572502194 | K2: 11.44035473 | L2: 1.59051244 | M2: 6.273613719 | N2: 3.3162248 | O2: 4.566070888 | P2: =SUM(B2:O2) -> 114.0072703 | Q2: 41.46052096 | R2: 13.96273973 | S2: 0.8493150685 | T2: =(P2+SUM(R2:S2))/Q2 -> 3.107035853
A3: Nov-17 | B3: -3.133263798 | C3: 6.146629905 | D3: 8.940615847 | E3: 16.32295779 | F3: 15.53629598 | G3: 7.144633289 | H3: 2.700489268 | I3: 0.6011300105 | J3: 6.997815743 | K3: 10.27943159 | L3: 1.19691699 | M3: 6.169308893 | N3: 0.9200239865 | O3: 3.539920584 | P3: 83.36290608 | Q3: 47.16417137 | R3: 13.51232877 | S3: 0.8219178082 | T3: 2.07142731
A4: Dec-17 | B4: 5.112603244 | C4: 8.987521463 | D4: 9.430998645 | E4: 9.768965953 | F4: 19.15118313 | G4: 5.223834344 | H4: 1.930289596 | I4: 0.09934702949 | J4: 7.679601686 | K4: 11.39872494 | L4: 1.29142999 | M4: 6.709756463 | N4: 2.088839606 | O4: 4.494288897 | P4: 93.36738499 | Q4: 49.24352693 | R4: 13.96273973 | S4: 0.8493150685 | T4: 2.196825583
A5: Jan-18 | B5: -1.949725068 | C5: 8.619913881 | D5: 9.421794756 | E5: 12.32096526 | F5: 11.94898274 | G5: 5.396008767 | H5: 0.4694887264 | I5: 0.8728323017 | J5: 8.095275845 | K5: 10.42150085 | L5: 1.56689246 | M5: 6.573886373 | N5: 1.83875352 | O5: 3.809301732 | P5: 79.40587215 | Q5: 48.85290924 | R5: 13.96273973 | S5: 0.8493150685 | T5: 1.92860422
A6: Feb-18 | B6: -3.012041097 | C6: 9.228118844 | D6: 8.55305134 | E6: 4.021996155 | F6: 5.383852701 | G6: 2.768240749 | H6: 0.3543655606 | I6: 0.09421270946 | J6: 6.871321621 | K6: 9.314764346 | L6: 1.17264198 | M6: 5.654450053 | N6: 1.565104753 | O6: 3.35622808 | P6: 55.32630779 | Q6: 45.37605256 | R6: 12.61150685 | S6: 0.7671232877 | T6: 1.514123289
A7: Mar-18 | B7: 3.28843045 | C7: 15.91006067 | D7: 8.098531184 | E7: 14.19561426 | F7: 2.305382085 | G7: 1.440756399 | H7: 3.691478862 | I7: 0.4284472862 | J7: 7.849012085 | K7: 11.56686944 | L7: 1.07642294 | M7: 5.858231873 | N7: 1.217916476 | O7: 3.74831314 | P7: 80.67546714 | Q7: 48.74975032 | R7: 13.96273973 | S7: 0.8493150685 | T7: 1.958728431
A8: Apr-18 | B8: -5.678595773 | C8: 4.056805357 | D8: 6.096036792 | E8: 9.107920387 | F8: 13.23123316 | G8: 0.3588389631 | H8: 2.740013785 | I8: 0.4200337111 | J8: 6.461642445 | K8: 11.01178477 | L8: 0.78711943 | M8: 6.46582811 | N8: 1.416913323 | O8: 3.36605017 | P8: 59.84162464 | Q8: 40.38570033 | R8: 15.57534247 | S8: 1.232876712 | T8: 1.897945144
A9: May-18 | B9: -6.760679548 | C9: 4.384309523 | D9: 7.038844709 | E9: 20.34603563 | F9: 1.45616127 | G9: 2.105893864 | H9: 0.9340882941 | I9: 2.057471895 | J9: 6.469285509 | K9: 12.21229682 | L9: 0.9197058 | M9: 7.054301742 | N9: 1.045670644 | O9: 3.670413224 | P9: 62.93379938 | Q9: 36.96006484 | R9: 16.09452055 | S9: 1.273972603 | T9: 2.172677263
A10: Jun-18 | B10: -2.810221268 | C10: 3.540148552 | D10: 6.649184693 | E10: 33.33151617 | F10: 7.780194908 | G10: 6.258501603 | H10: 3.770372235 | I10: 0.4077661289 | J10: 6.007894146 | K10: 11.46043661 | L10: 0.82597977 | M10: 7.36038081 | N10: 1.174760974 | O10: 3.23176055 | P10: 88.98867588 | Q10: 35.31246865 | R10: 15.57534247 | S10: 1.232876712 | T10: 2.996020927
A11: Jul-18 | B11: -1.110751301 | C11: 4.788280494 | D11: 7.367863841 | E11: 37.33388798 | F11: 1.390168163 | G11: 0.2337361441 | H11: 0.1932135837 | I11: 0.5725288452 | J11: 7.555926175 | K11: 10.53168237 | L11: 1.15896295 | M11: 6.56190176 | N11: 1.202683079 | O11: 3.06142822 | P11: 80.8415123 | Q11: 35.96236592 | R11: 16.09452055 | S11: 1.273972603 | T11: 2.730910577
A12: Aug-18 | B12: -3.902354275 | C12: 4.66708187 | D12: 6.713354274 | E12: 32.28538328 | F12: 1.582099012 | G12: 1.2863796 | H12: 0.3395766641 | I12: 0.3958837945 | J12: 8.244163722 | K12: 10.74746024 | L12: 1.1584881 | M12: 6.696767338 | N12: 2.078673911 | O12: 3.574906769 | P12: 75.86786431 | Q12: 36.38645178 | R12: 16.09452055 | S12: 1.273972603 | T12: 2.562392124
A13: Sep-18 | B13: -0.642132211 | C13: 5.578828882 | D13: 5.690164449 | E13: 78.35859309 | F13: 18.17768928 | G13: 4.068498612 | H13: 1.307313954 | I13: 0.4184334081 | J13: 6.990971019 | K13: 11.32012155 | L13: 1.05673805 | M13: 6.165980141 | N13: 1.413623981 | O13: 3.65337467 | P13: 143.5581989 | Q13: 36.17642346 | R13: 15.57534247 | S13: 1.232876712 | T13: 4.432898632
A14: Oct-18 | B14: 0.8840120602 | C14: 6.134152397 | D14: 5.994831432 | E14: 64.60974279 | F14: 8.818972127 | G14: 3.107226254 | H14: 0 | I14: 0.4739975229 | J14: 7.440165182 | K14: 11.25450469 | L14: 1.59051244 | M14: 6.064290407 | N14: -1.232806722 | O14: 3.821917808 | P14: 118.9615184 | Q14: 41.039363 | R14: 16.09452055 | S14: 1.273972603 | T14: 3.321932934
A15: Nov-18 | B15: -1.50161 | C15: 12.06921782 | D15: 7.428685335 | E15: 26.55141223 | F15: 14.593722 | G15: 3.540982 | H15: 0 | I15: 0.5021293865 | J15: 7.913092712 | K15: 11.26125103 | L15: 1.19691699 | M15: 5.819559456 | N15: -1.098452042 | O15: 3.698630137 | P15: 91.97553705 | Q15: 46.68507545 | R15: 15.57534247 | S15: 1.232876712 | T15: 2.330161303
A16: Dec-18 | B16: -1.66084 | C16: 11.7111909 | D16: 7.470250666 | E16: 14.70270807 | F16: 11.803187 | G16: 2.863894 | H16: 0 | I16: 0.467609764 | J16: 10.04094001 | K16: 12.12146899 | L16: 1.29142999 | M16: 6.392731356 | N16: -0.2841069963 | O16: 3.821917808 | P16: 80.74238156 | Q16: 48.74330882 | R16: 16.09452055 | S16: 1.273972603 | T16: 2.012807031
A17: Jan-19 | B17: -0.87291 | C17: 9.784243093 | D17: 7.574538827 | E17: 10.59650517 | F17: 4.141712039 | G17: 1.180462 | H17: 0 | I17: 0.6438143638 | J17: 10.29715057 | K17: 11.87242982 | L17: 1.56689246 | M17: 6.329059938 | N17: -2.014285052 | O17: 3.821917808 | P17: 64.92153104 | Q17: 48.35665904 | R17: 16.09452055 | S17: 1.273972603 | T17: 1.701730968
A18: Feb-19 | B18: 1.097639 | C18: 12.79447421 | D18: 6.5184684 | E18: 10.42806155 | F18: 5.983822842 | G18: 1.367802 | H18: 0 | I18: 0.1192310308 | J18: 8.712608818 | K18: 12.3105407 | L18: 1.17264198 | M18: 5.086122881 | N18: 1.128311979 | O18: 3.452054795 | P18: 70.17178019 | Q18: 44.91512043 | R18: 14.5369863 | S18: 1.150684932 | T18: 1.911593481
A19: Mar-19 | B19: -1.88797 | C19: 13.06150212 | D19: 7.399366707 | E19: 12.81048707 | F19: 8.278738039 | G19: 2.184258 | H19: 0 | I19: 0.2231438847 | J19: 9.713440979 | K19: 11.36668776 | L19: 1.07642294 | M19: 5.410541881 | N19: -0.8369172103 | O19: 3.821917808 | P19: 72.62161998 | Q19: 48.25454801 | R19: 16.09452055 | S19: 1.273972603 | T19: 1.86490428
A20: Apr-19 | B20: -6.86193 | C20: 8.240256406 | D20: 5.167662387 | E20: 11.622266 | F20: 7.641157825 | G20: 2.023895 | H20: 0 | I20: 0.404275131 | J20: 9.036835996 | K20: 11.80912289 | L20: 1.14423862 | M20: 6.038171563 | N20: 1.839695 | O20: 3.698630137 | P20: 61.80427696 | Q20: 35.27584128 | R20: 15.61643836 | S20: 0.9863013699 | T20: 2.222683112
A21: May-19 | B21: -4.87904 | C21: 8.930688654 | D21: 5.575822434 | E21: 13.588938 | F21: 9.181803086 | G21: 2.403376 | H21: 0 | I21: 0.8954865094 | J21: 8.973187964 | K21: 11.56918306 | L21: 0.869565856 | M21: 6.814015764 | N21: 2.064174342 | O21: 3.821917808 | P21: 69.80911948 | Q21: 35.83799938 | R21: 16.1369863 | S21: 1.019178082 | T21: 2.426622171
A22: Jun-19 | B22: -4.18636 | C22: 5.822879521 | D22: 5.434767887 | E22: 10.18817 | F22: 10.76912097 | G22: 2.782856 | H22: 0 | I22: 1.643863178 | J22: 8.81344767 | K22: 11.22325724 | L22: 1.007946391 | M22: 6.383657907 | N22: 1.399141142 | O22: 3.698630137 | P22: 64.98137805 | Q22: 33.07689983 | R22: 15.61643836 | S22: 0.9863013699 | T22: 2.466498317
A23: Jul-19 | B23: -3.47302 | C23: 6.967501368 | D23: 5.962998065 | E23: 12.987502 | F23: 11.52777604 | G23: 2.972596 | H23: 0 | I23: 1.846568357 | J23: 9.082911269 | K23: 11.82832355 | L23: 1.171890175 | M23: 6.24820381 | N23: 1.109641065 | O23: 3.821917808 | P23: 72.05480951 | Q23: 33.84858242 | R23: 16.1369863 | S23: 1.019178082 | T23: 2.635589662
A24: Aug-19 | B24: -4.09887 | C24: 8.151525632 | D24: 5.817931184 | E24: 15.734746 | F24: 12.78844004 | G24: 3.035843 | H24: 0 | I24: 1.666469361 | J24: 9.597955749 | K24: 11.62279721 | L24: 1.284052818 | M24: 6.115690414 | N24: 0.1412688306 | O24: 3.821917808 | P24: 75.67976804 | Q24: 33.57408573 | R24: 16.1369863 | S24: 1.019178082 | T24: 2.76510679
A25: Sep-19 | B25: -2.29425 | C25: 14.07594364 | D25: 6.307976992 | E25: 14.751356 | F25: 11.81177597 | G25: 3.035843 | H25: 0 | I25: 1.761269194 | J25: 8.773887424 | K25: 11.45979667 | L25: 1.049152513 | M25: 5.903843179 | N25: -0.2530733819 | O25: 3.698630137 | P25: 80.08215134 | Q25: 35.13914761 | R25: 15.61643836 | S25: 0.9863013699 | T25: 2.751486523
A26: Oct-19 | B26: -1.4504 | C26: 16.34633217 | D26: 6.226388327 | E26: 13.062446 | F26: 12.52777604 | G26: 2.972596 | H26: 0 | I26: 1.210690085 | J26: 9.101970386 | K26: 11.74848183 | L26: 0.886843321 | M26: 6.064290407 | N26: 0.8853786014 | O26: 3.821917808 | P26: 83.40471098 | Q26: 38.56711221 | R26: 16.1369863 | S26: 1.019178082 | T26: 2.607425591
A27: Nov-19 | B27: -1.50161 | C27: 16.05215931 | D27: 7.428685335 | E27: 15.458697 | F27: 11.469199 | G27: 3.567115 | H27: 0 | I27: 0.5021293865 | J27: 9.388502548 | K27: 11.26125103 | L27: 0.916175573 | M27: 5.819559456 | N27: -0.8006521155 | O27: 3.698630137 | P27: 83.25984166 | Q27: 43.87272151 | R27: 15.61643836 | S27: 0.9863013699 | T27: 2.276188437
A28: Dec-19 | B28: -1.66084 | C28: 11.80086942 | D28: 7.470250666 | E28: 13.573569 | F28: 10.426545 | G28: 2.529869 | H28: 0 | I28: 0.467609764 | J28: 10.04094001 | K28: 11.4084414 | L28: 0.882285583 | M28: 6.392731356 | N28: 0.03535889066 | O28: 3.821917808 | P28: 77.1895479 | Q28: 45.80696492 | R28: 16.1369863 | S28: 1.019178082 | T28: 2.059636836
A29: Jan-20 | B29: -0.87291 | C29: 10.0496849 | D29: 7.574538827 | E29: 8.858994 | F29: 8.914696 | G29: 2.163038 | H29: 0 | I29: 0.6438143638 | J29: 10.29715057 | K29: 11.1740516 | L29: 0.851570155 | M29: 6.329059938 | N29: -1.564404557 | O29: 3.821917808 | P29: 68.2412016 | Q29: 45.44360729 | R29: 16.1369863 | S29: 1.019178082 | T29: 1.87919426
A30: Feb-20 | B30: 1.036736742 | C30: 12.99519901 | D30: 6.5184684 | E30: 9.408193393 | F30: 7.819908607 | G30: 1.897402 | H30: 0 | I30: 0.1192310308 | J30: 8.712608818 | K30: 11.07948663 | L30: 0.920916997 | M30: 5.086122881 | N30: 1.304996255 | O30: 3.452054795 | P30: 70.35132556 | Q30: 42.20939029 | R30: 14.57534247 | S30: 0.9205479452 | T30: 2.033841649
A31: Mar-20 | B31: -1.966613075 | C31: 12.85049462 | D31: 7.567027998 | E31: 11.681348 | F31: 6.255927 | G31: 1.517922 | H31: 0 | I31: 0.2231438847 | J31: 9.852717215 | K31: 11.59485645 | L31: 1.042687849 | M31: 5.410541881 | N31: -0.5624386337 | O31: 3.821917808 | P31: 69.289533 | Q31: 45.34764753 | R31: 16.1369863 | S31: 1.019178082 | T31: 1.906288465
A32: Apr-20 | B32: -6.86193 | C32: 8.292958957 | D32: 5.167662387 | E32: 11.622266 | F32: 7.641157825 | G32: 2.023895 | H32: 0 | I32: 0.404275131 | J32: 9.036835996 | K32: 11.80912289 | L32: 1.14423862 | M32: 6.038171563 | N32: 3.01394728 | O32: 3.698630137 | P32: 63.03123179 | Q32: 35.27584128 | R32: 15.61643836 | S32: 0.9863013699 | T32: 2.257464844
A33: May-20 | B33: -4.87904 | C33: 8.955818674 | D33: 5.575822434 | E33: 13.588938 | F33: 9.181803086 | G33: 2.403376 | H33: 0 | I33: 0.8954865094 | J33: 8.973187964 | K33: 12.58148658 | L33: 0.869565856 | M33: 6.814015764 | N33: 2.96319145 | O33: 3.821917808 | P33: 71.74557013 | Q33: 35.83799938 | R33: 16.1369863 | S33: 1.019178082 | T33: 2.480655618
A34: Jun-20 | B34: -4.18636 | C34: 5.833712861 | D34: 5.434767887 | E34: 10.18817 | F34: 10.76912097 | G34: 2.782856 | H34: 0 | I34: 1.643863178 | J34: 8.81344767 | K34: 11.92471082 | L34: 1.007946391 | M34: 6.383657907 | N34: 2.577322236 | O34: 3.698630137 | P34: 66.87184606 | Q34: 33.07689983 | R34: 15.61643836 | S34: 0.9863013699 | T34: 2.523652041
A35: Jul-20 | B35: -3.47302 | C35: 6.970418038 | D35: 5.962998065 | E35: 12.987502 | F35: 11.52777604 | G35: 2.972596 | H35: 0 | I35: 1.846568357 | J35: 9.082911269 | K35: 12.56759378 | L35: 1.171890175 | M35: 6.24820381 | N35: 2.561929697 | O35: 3.821917808 | P35: 74.24928503 | Q35: 33.84858242 | R35: 16.1369863 | S35: 1.019178082 | T35: 2.700421786
A36: Aug-20 | B36: -4.09887 | C36: 8.247641882 | D36: 5.817931184 | E36: 15.734746 | F36: 12.78844004 | G36: 3.035843 | H36: 0 | I36: 1.666469361 | J36: 9.597955749 | K36: 13.07564686 | L36: 1.284052818 | M36: 6.115690414 | N36: 1.545159449 | O36: 3.821917808 | P36: 78.63262456 | Q36: 33.57408573 | R36: 16.1369863 | S36: 1.019178082 | T36: 2.853057257
A37: Sep-20 | B37: -2.29425 | C37: 14.12836031 | D37: 6.307976992 | E37: 14.751356 | F37: 11.81177597 | G37: 3.035843 | H37: 0 | I37: 1.761269194 | J37: 8.773887424 | K37: 11.29935952 | L37: 1.049152513 | M37: 5.903843179 | N37: 1.071485672 | O37: 3.698630137 | P37: 81.29868991 | Q37: 35.13914761 | R37: 15.61643836 | S37: 0.9863013699 | T37: 2.786107128
